Workbook

Sheet Cover
A2: RIIO-2 Price Control Financial Model (PCFM)
B3: Electricity System Operator
C4: Model Version | G4: =MID(CELL("filename"),SEARCH("[",CELL("filename"))+1,SEARCH("]",CELL("filename"))-SEARCH("[",CELL("filename"))-1) -> 
B7: Model key
E9: Sample | G9: Calculated value | I9: Sample | K9: Information and interface
E10: Sample | G10: Import | I10: Sample | K10: Fixed input value
E11: Sample | G11: Export | I11: Sample | K11: Ofgem annual update input (outturn value)
E12: Sample | G12: Named range | I12: Sample | K12: Ofgem annual update input (forecasted value)
E13: Sample | G13: Formula change in cells to the right | I13: Sample | K13: Other annual update input (outturn value)
I14: Sample | K14: Other annual update input (forecasted value)
I15: Sample | K15: Input linked from annual update
I16: Sample | K16: Notes and instructions
B18: Contents
E20: INTERFACE > | I20: CALCULATION SHEETS >
E21: Cover | G21: Model key and content directory | I21: SystemOperator | K21: Inputs and revenue calculations for NGESO
E22: UserInterface | G22: Model operation | I22: SOIAR | K22: Derivation of allowed revenue
E24: OUTPUT > | I24: GENERAL INPUT SHEETS >
E25: LiveResults | G25: Results for selected company | I25: Annual Inflation | K25: Derivation of annual inflation rates and price indices
E26: SavedResults | G26: Saved results for NGESO | I26: Monthly Inflation | K26: Dataset and derivation of monthly inflation rates and price indices
B28: End of sheet

Sheet UserInterface
A1: User Interface
B3: Model operation
C5: PCFM year t
C6: Instruction: Use the following drop-down list to identify year t in the model. Year t is identified here by its end date.
E8: Year t selection:
E10: Year t selected: | G10: =INDEX(NumberofYear,m_PCFM_year_t) -> 2023-03-31
C12: Active company
C13: Instruction: Use the following drop-down list to select the active company in the model.
E15: Company selection:
E17: Selected company: | G17: =INDEX(E37:E37, E38) -> NGESO
C19: Run model for all licensees
C20: Instruction: Click on the below button to save results for the selected company only. Click the right button to save results for all.
C21: Note: Annual iterations must have been completed for all prior years before running the model
C22: The macros save results and values required for future years which cannot be recreated once inputs are revised.
C23: Running the macro saves the output from year t's iteration for use in future iterations.
C24: Results for the selected company can be found on the "LiveResults" sheet and also on the "SavedResults" sheet once saved by a macro.
B30: User selection lists
B31: Note: The lists below drive the drop-down lists above.
B32: Using the drop-down lists above returns an integer in the "cell link" positioned below their "source list."
B33: The number returned in the cell link corresponds to the position of the selected item in the source list.
B34: The company selection output is set as a "named range." This gives a stable anchor point for the "RunForAll" macro to change the company.
E36: ="Source for ''"&C12&"'' drop-down list" -> Source for ''Active company'' drop-down list | G36: ="Source for ''"&C5&"'' drop-down list" -> Source for ''PCFM year t'' drop-down list
E37: NGESO | G37: 2022-03-31
E38: 1 | G38: 2023-03-31
E39: Adjacent named range: m_identity | G39: 2024-03-31
G40: 2025-03-31
G41: 2026-03-31
G42: 2
G43: Adjacent named range: m_PCFM_year_t
B45: End of sheet

Sheet SystemOperator
A1: SystemOperator
B2: NGESO
E3: Parameter | F3: Licence condition | G3: Units | H3: Term | I3: Constant | AP3: Annual values
E4: PCFM year ending | I4: =UserInterface!$G$10 -> 2023-03-31 | K4: 1991-03-31 | L4: 1992-03-31 | M4: 1993-03-31 | N4: 1994-03-31 | O4: 1995-03-31 | P4: 1996-03-31 | Q4: 1997-03-31 | R4: 1998-03-31 | S4: 1999-03-31 | T4: 2000-03-31 | U4: 2001-03-31 | V4: 2002-03-31 | W4: 2003-03-31 | X4: 2004-03-31 | Y4: 2005-03-31 | Z4: 2006-03-31 | AA4: 2007-03-31 | AB4: 2008-03-31 | AC4: 2009-03-31 | AD4: 2010-03-31 | AE4: 2011-03-31 | AF4: 2012-03-31 | AG4: 2013-03-31 | AH4: 2014-03-31 | AI4: 2015-03-31 | AJ4: 2016-03-31 | AK4: 2017-03-31 | AL4: 2018-03-31 | AM4: 2019-03-31 | AN4: 2020-03-31 | AO4: 2021-03-31 | AP4: 2022-03-31 | AQ4: 2023-03-31 | AR4: 2024-03-31 | AS4: 2025-03-31 | AT4: 2026-03-31
B6: Totex allowance
E8: Allowed Capex | G8: £m 18/19 prices | AP8: 95.00479984 | AQ8: 85.53412 | AR8: 92.4449257 | AS8: 91.28893392 | AT8: 81.49383709
E9: Allowed Opex | G9: £m 18/19 prices | AP9: 160.8427836 | AQ9: 162.68659 | AR9: 167.7544706 | AS9: 174.590889 | AT9: 174.6548642
B11: Actual totex
E13: Actual Capex | G13: £m 18/19 prices | H13: SOANC | AG13: Legacy PCFM 2021 | AH13: 42.30937849 | AI13: 45.20039196 | AJ13: 43.91282372 | AK13: 59.16841158 | AL13: 63.99992789 | AM13: 77.83429707 | AN13: 85.35417981 | AO13: 85.16078767 | AP13: 118.4 | AQ13: 124 | AR13: 92.4449257 | AS13: 91.28893392 | AT13: 81.49383709
E14: Actual Opex | G14: £m 18/19 prices | H14: SOACO | AG14: Legacy PCFM 2021 | AH14: 107.6567061 | AI14: 104.1566748 | AJ14: 108.2527925 | AK14: 114.5543685 | AL14: 122.2893083 | AM14: 141.4183221 | AN14: 126.6991123 | AO14: 118.1915255 | AP14: 159.1 | AQ14: 167.5 | AR14: 168.2544706 | AS14: 175.090889 | AT14: 175.1548642
B16: Pass-through costs
E18: Business Rates Payments | F18: SpC 4.1 | G18: £m 18/19 prices | H18: RBt | AP18: 0.75 | AQ18: 0.75 | AR18: 0.75 | AS18: 0.75 | AT18: 0.75
E19: Additional Funding - WCF | F19: SpC 4.1 | G19: £m nominal | H19: WCFt | AP19: 0.8 | AQ19: 0.8 | AR19: 0.8 | AS19: 0.8 | AT19: 0.8
E20: Bad debt allowance | F20: SpC 4.1 | G20: £m 18/19 prices | H20: SOBDt | AP20: 6.28656715 | AQ20: 3.12813749 | AR20: 0 | AS20: 0 | AT20: 0
E21: Pension scheme established deficit | F21: SpC 4.1 | G21: £m 18/19 prices | H21: EDEt | AP21: 9.56768257 | AQ21: 9.443270761 | AR21: 3.783028675 | AS21: 0 | AT21: 0
B23: Other revenue allowances
E25: Network Innovation Allowance | F25: SpC 4.6 | G25: £m 18/19 prices | H25: NIAt | AP25: 4.20867497 | AQ25: 4.5 | AR25: 4.5 | AS25: 4.5 | AT25: 4.5
E26: Carry Over RIIO-1 Network Innovation Allowance | F26: SpC 4.7 | G26: £m 18/19 prices | H26: CNIAt | AP26: 0.5309841177
B28: Other funding
E30: Additional Funding - Other | G30: £m nominal | H30: ADFt | AP30: 4.8 | AQ30: 4.8 | AR30: 4.8 | AS30: 4.8 | AT30: 4.8
E31: Reporting & Incentive Arrangements | F31: SpC 4.3 | G31: £m 18/19 prices | H31: ESORIt | AP31: 4.750078802 | AQ31: 4.675373541 | AR31: 0 | AS31: 0 | AT31: 0
B33: Legacy adjustments
E35: LSOMODt | F35: SpC 4.8 | G35: £m nominal | H35: LSOMODt | AP35: 15.5861335 | AQ35: 15.64012338
E36: LSOTRUt | F36: SpC 4.8 | G36: £m nominal | H36: LSOTRUt | AP36: -2.745949824 | AQ36: -3.139664876
E37: LSOEMRINCt | F37: SpC 4.8 | G37: £m nominal | H37: LSOEMRINCt | AP37: 1.542554056 | AQ37: -0.879
E38: Legacy net RAV additions | F38: SpC 4.9 | G38: £m 18/19 prices | H38: LSORAVt | J38: > | AG38: Legacy PCFM 2021 | AH38: 47.73376035 | AI38: 41.80383286 | AJ38: 43.17500573 | AK38: 47.42636853 | AL38: 51.20275428 | AM38: 60.2889588 | AN38: 54.91837956 | AO38: 53.78996685
B40: Directly remunerated services
E42: Directly remunerated services revenue | G42: £m 18/19 prices | H42: DRSRt
E43: Less directly remunerated services cost | G43: £m 18/19 prices | H43: DRSCt
B45: Finance inputs | AZ45: -0.001333567235 | BA45: -0.0007951062112 | BB45: -0.0001520333345 | BC45: 0.0003672316816
E47: Allowed return on debt | G47: annual real % | H47: SOCDEt | AP47: -6.308429719e-05 | AQ47: 0.009291198812 | AR47: 0.01055173626 | AS47: 0.009182882749 | AT47: 0.00780365384
E48: Risk-free rate | G48: annual real % | H48: SORFRt | AP48: -0.0171 | AQ48: -0.0155 | AR48: -0.0162 | AS48: -0.0152 | AT48: -0.0144
E50: Adjusted net debt | G50: £m nominal | H50: ANDt
E51: Tax deductible net interest cost | G51: £m nominal | H51: TDNIt
E52: Tax liability - tax trigger events | G52: £m 18/19 prices | H52: TTEt | AP52: -1.724390478 | AQ52: -2.775203188
E53: Tax allowance adjustment | F53: SpC 4.1 | G53: £m nominal | H53: TAXAt
E55: Opening balance brought forward | G55: £m nominal | H55: SOOGPt | AP55: 23.655
E56: Special Rate capital allowance opening balance brought forward | G56: £m nominal | H56: SOOSRPt | AP56: 25.272
E57: Structures and buildings capital allowance opening balance brought forward | G57: £m nominal | H57: SOOSBPt | AP57: 0
E58: Deferred revenue expenditure opening balance brought forward | G58: £m nominal | H58: SOODRPt | AP58: 22.32
E59: Intangible assets capital allowance opening balance brought forward | G59: £m nominal | H59: SOOIAPt | AP59: 119.53682
E60: Tax loss brought forward | G60: £m nominal | H60: SOOTLt | AP60: 0
E62: Totex allocation to "General" tax pool | G62: % | H62: SOARGPt | AP62: 0.03993986307 | AQ62: 0.05524514401 | AR62: 0.03824017459 | AS62: 0.03899002873 | AT62: 0.03723132016
E63: Totex allocation to "Revenue" tax pool | G63: % | H63: SOARRt | AP63: 0.6286664171 | AQ63: 0.5746140652 | AR63: 0.6453964719 | AS63: 0.6572978655 | AT63: 0.6824693182
E64: Totex allocation to "Special rate" tax pool | G64: % | H64: SOARSRt | AP64: 0 | AQ64: 0 | AR64: 0 | AS64: 0 | AT64: 0
E65: Totex allocation to "Structures and Buildings" tax pool | G65: % | H65: SOARSBt | AP65: 0 | AQ65: 0 | AR65: 0 | AS65: 0 | AT65: 0
E66: Totex allocation to "Non Qualifying" tax pool | G66: % | H66: SOARNQt | AP66: 0 | AQ66: 0 | AR66: 0 | AS66: 0 | AT66: 0
E67: Totex allocation to "Deferred revenue" tax pool | G67: % | H67: SOARDRt | AP67: 0 | AQ67: 0 | AR67: 0 | AS67: 0 | AT67: 0
E68: Totex allocation to "Intangible assets" tax pool | H68: SOARIAt | AP68: 0.3313937198 | AQ68: 0.3701407908 | AR68: 0.3163633535 | AS68: 0.3037121058 | AT68: 0.2802993616
E69: Allocation check | G69: % | AP69: =SUM(AP62:AP68) -> 1 | AQ69: =SUM(AQ62:AQ68) -> 1 | AR69: 1 | AS69: 1 | AT69: 1
E71: Corporation tax rate | G71: % | H71: SOCTt | AP71: 0.19 | AQ71: 0.19 | AR71: 0.25 | AS71: 0.25 | AT71: 0.25
E72: Capital Allowance rate | G72: % | H72: SOGCAt | J72: > | AP72: 0.18 | AQ72: 0.18 | AR72: 0.18 | AS72: 0.18 | AT72: 0.18
E73: Special Rates pool capital allowance rate | G73: % | H73: SOSRCAt | J73: > | AP73: 0.06 | AQ73: 0.06 | AR73: 0.06 | AS73: 0.06 | AT73: 0.06
E74: Structures and buildings allowance rate | G74: % | H74: SOSBCAt | J74: > | AP74: 0.03 | AQ74: 0.03 | AR74: 0.03 | AS74: 0.03 | AT74: 0.03
E75: Deferred revenue expenditure allowance rate | G75: % | H75: SODRCAt | J75: > | AP75: 0.0222 | AQ75: 0.0222 | AR75: 0.0222 | AS75: 0.0222 | AT75: 0.0222
E76: Intangible assets allowance rate | G76: % | H76: SOIACAt | J76: > | AP76: 0.14 | AQ76: 0.14 | AR76: 0.14 | AS76: 0.14 | AT76: 0.14
B78: Finance Inputs
C80: Allowed return on equity
E82: Equity Beta | G82: scalar | AP82: 1.13056 | AQ82: 1.13056 | AR82: 1.13056 | AS82: 1.13056 | AT82: 1.13056
E83: Total Market Return | G83: % | AP83: 0.065 | AQ83: 0.065 | AR83: 0.065 | AS83: 0.065 | AT83: 0.065
E84: =E48 -> Risk-free rate | G84: annual real % | H84: =H48 -> SORFRt | AP84: =AP48 -> -0.0171 | AQ84: =AQ48 -> -0.0155 | AR84: =AR48 -> -0.0162 | AS84: =AS48 -> -0.0152 | AT84: =AT48 -> -0.0144
E86: Allowed return on equity | G86: annual real % | AP86: =AP84 + AP82 * (AP83 - AP84) -> 0.075718976 | AQ86: =AQ84 + AQ82 * (AQ83 - AQ84) -> 0.07551008 | AR86: 0.075601472 | AS86: 0.075470912 | AT86: 0.075366464
C88: Vanilla allowed return on capital
E90: =E47 -> Allowed return on debt | G90: annual real % | H90: =H47 -> SOCDEt | J90: > | AP90: =AP47 -> -6.308429719e-05 | AQ90: =AQ47 -> 0.009291198812 | AR90: =AR47 -> 0.01055173626 | AS90: =AS47 -> 0.009182882749 | AT90: =AT47 -> 0.00780365384
E91: Allowed return on equity | G91: annual real % | J91: > | AP91: =AP86 -> 0.075718976 | AQ91: =AQ86 -> 0.07551008 | AR91: =AR86 -> 0.075601472 | AS91: =AS86 -> 0.075470912 | AT91: =AT86 -> 0.075366464
E92: Notional gearing | G92: % | J92: > | AO92: 0.6 | AP92: 0.55 | AQ92: 0.55 | AR92: 0.55 | AS92: 0.55 | AT92: 0.55
E94: Vanilla allowed return on capital | G94: annual real % | J94: > | AH94: 0.04552 | AI94: 0.04432 | AJ94: 0.0433 | AK94: 0.04228 | AL94: 0.04132 | AM94: 0.03946 | AN94: 0.03748 | AO94: 0.03454 | AP94: =(AP90 * AP92) + (AP91 * (1 - AP92)) -> 0.03403884284 | AQ94: =(AQ90 * AQ92) + (AQ91 * (1 - AQ92)) -> 0.03908969535 | AR94: =(AR90 * AR92) + (AR91 * (1 - AR92)) -> 0.03982411734 | AS94: =(AS90 * AS92) + (AS91 * (1 - AS92)) -> 0.03901249591 | AT94: =(AT90 * AT92) + (AT91 * (1 - AT92)) -> 0.03820691841
C96: Inflation and price conversion
E98: Start of RIIO-2 | G98: year ending | I98: 2022-03-31
D100: Price indices and Inflation rates
E102: Retail Prices Index (financial year average) | G102: index value | H102: RPIt | J102: > | V102: ='Annual Inflation'!V23 -> 173.875 | W102: ='Annual Inflation'!W23 -> 177.5166667 | X102: ='Annual Inflation'!X23 -> 182.475 | Y102: ='Annual Inflation'!Y23 -> 188.15 | Z102: ='Annual Inflation'!Z23 -> 193.1083333 | AA102: ='Annual Inflation'!AA23 -> 200.3166667 | AB102: ='Annual Inflation'!AB23 -> 208.5916667 | AC102: ='Annual Inflation'!AC23 -> 214.7833333 | AD102: ='Annual Inflation'!AD23 -> 215.7666667 | AE102: ='Annual Inflation'!AE23 -> 226.475 | AF102: ='Annual Inflation'!AF23 -> 237.3416667 | AG102: ='Annual Inflation'!AG23 -> 244.675 | AH102: ='Annual Inflation'!AH23 -> 251.7333333 | AI102: ='Annual Inflation'!AI23 -> 256.6666667 | AJ102: ='Annual Inflation'!AJ23 -> 259.4333333 | AK102: ='Annual Inflation'!AK23 -> 264.9916667 | AL102: ='Annual Inflation'!AL23 -> 274.9083333 | AM102: ='Annual Inflation'!AM23 -> 283.3083333 | AN102: ='Annual Inflation'!AN23 -> 290.6416667 | AO102: ='Annual Inflation'!AO23 -> 294.1666667 | AP102: ='Annual Inflation'!AP23 -> 308.2475298 | AQ102: ='Annual Inflation'!AQ23 -> 322.1742484 | AR102: ='Annual Inflation'!AR23 -> 332.7117672 | AS102: ='Annual Inflation'!AS23 -> 342.0979774 | AT102: ='Annual Inflation'!AT23 -> 351.8693076
E103: RPI inflation (financial year average) | G103: annual % | J103: > | W103: ='Annual Inflation'!W24 -> 0.02094416487 | X103: ='Annual Inflation'!X24 -> 0.02793164961 | Y103: ='Annual Inflation'!Y24 -> 0.03110015071 | Z103: ='Annual Inflation'!Z24 -> 0.02635308708 | AA103: ='Annual Inflation'!AA24 -> 0.03732792474 | AB103: ='Annual Inflation'!AB24 -> 0.04130959314 | AC103: ='Annual Inflation'!AC24 -> 0.02968319284 | AD103: ='Annual Inflation'!AD24 -> 0.004578257158 | AE103: ='Annual Inflation'!AE24 -> 0.04962922911 | AF103: ='Annual Inflation'!AF24 -> 0.04798174927 | AG103: ='Annual Inflation'!AG24 -> 0.03089779151 | AH103: ='Annual Inflation'!AH24 -> 0.02884779129 | AI103: ='Annual Inflation'!AI24 -> 0.01959745763 | AJ103: ='Annual Inflation'!AJ24 -> 0.01077922078 | AK103: ='Annual Inflation'!AK24 -> 0.02142490042 | AL103: ='Annual Inflation'!AL24 -> 0.03742256046 | AM103: ='Annual Inflation'!AM24 -> 0.03055563976 | AN103: ='Annual Inflation'!AN24 -> 0.02588463688 | AO103: ='Annual Inflation'!AO24 -> 0.01212833673 | AP103: ='Annual Inflation'!AP24 -> 0.04786695668 | AQ103: ='Annual Inflation'!AQ24 -> 0.045180309 | AR103: ='Annual Inflation'!AR24 -> 0.03270751427 | AS103: ='Annual Inflation'!AS24 -> 0.02821123608 | AT103: ='Annual Inflation'!AT24 -> 0.02856295792
E105: Consumer Prices Index incl. housing costs (financial year average) | G105: index value | H105: CPIHt | J105: > | V105: ='Annual Inflation'!V26 -> 74.86666667 | W105: ='Annual Inflation'!W26 -> 75.95833333 | X105: ='Annual Inflation'!X26 -> 76.975 | Y105: ='Annual Inflation'!Y26 -> 78.125 | Z105: ='Annual Inflation'!Z26 -> 79.825 | AA105: ='Annual Inflation'!AA26 -> 81.91666667 | AB105: ='Annual Inflation'!AB26 -> 83.825 | AC105: ='Annual Inflation'!AC26 -> 86.85833333 | AD105: ='Annual Inflation'!AD26 -> 88.43333333 | AE105: ='Annual Inflation'!AE26 -> 90.90833333 | AF105: ='Annual Inflation'!AF26 -> 94.30833333 | AG105: ='Annual Inflation'!AG26 -> 96.58333333 | AH105: ='Annual Inflation'!AH26 -> 98.6 | AI105: ='Annual Inflation'!AI26 -> 99.725 | AJ105: ='Annual Inflation'!AJ26 -> 100.1666667 | AK105: ='Annual Inflation'!AK26 -> 101.5416667 | AL105: ='Annual Inflation'!AL26 -> 104.2166667 | AM105: ='Annual Inflation'!AM26 -> 106.4333333 | AN105: ='Annual Inflation'!AN26 -> 108.2416667 | AO105: ='Annual Inflation'!AO26 -> 109.1083333 | AP105: ='Annual Inflation'!AP26 -> 112.6578762 | AQ105: ='Annual Inflation'!AQ26 -> 116.671754 | AR105: ='Annual Inflation'!AR26 -> 119.5204952 | AS105: ='Annual Inflation'!AS26 -> 121.9737183 | AT105: ='Annual Inflation'!AT26 -> 124.4147344
E106: CPIH inflation (financial year average) | G106: annual % | J106: > | W106: ='Annual Inflation'!W27 -> 0.01458147818 | X106: ='Annual Inflation'!X27 -> 0.01338453099 | Y106: ='Annual Inflation'!Y27 -> 0.01493991556 | Z106: ='Annual Inflation'!Z27 -> 0.02176 | AA106: ='Annual Inflation'!AA27 -> 0.02620315273 | AB106: ='Annual Inflation'!AB27 -> 0.02329603255 | AC106: ='Annual Inflation'!AC27 -> 0.03618649965 | AD106: ='Annual Inflation'!AD27 -> 0.01813297515 | AE106: ='Annual Inflation'!AE27 -> 0.02798718432 | AF106: ='Annual Inflation'!AF27 -> 0.03740031167 | AG106: ='Annual Inflation'!AG27 -> 0.0241230008 | AH106: ='Annual Inflation'!AH27 -> 0.02088006903 | AI106: ='Annual Inflation'!AI27 -> 0.01140973631 | AJ106: ='Annual Inflation'!AJ27 -> 0.004428845993 | AK106: ='Annual Inflation'!AK27 -> 0.01372712146 | AL106: ='Annual Inflation'!AL27 -> 0.02634386541 | AM106: ='Annual Inflation'!AM27 -> 0.0212697905 | AN106: ='Annual Inflation'!AN27 -> 0.01699029126 | AO106: ='Annual Inflation'!AO27 -> 0.008006774963 | AP106: ='Annual Inflation'!AP27 -> 0.03253228038 | AQ106: ='Annual Inflation'!AQ27 -> 0.03562891362 | AR106: ='Annual Inflation'!AR27 -> 0.02441671753 | AS106: ='Annual Inflation'!AS27 -> 0.02052554347 | AT106: ='Annual Inflation'!AT27 -> 0.02001263978
E108: Combined RPI-CPIH price index (financial year average) | G108: index value | H108: PIt | J108: > | V108: ='Annual Inflation'!V29 -> 173.875 | W108: ='Annual Inflation'!W29 -> 177.5166667 | X108: ='Annual Inflation'!X29 -> 182.475 | Y108: ='Annual Inflation'!Y29 -> 188.15 | Z108: ='Annual Inflation'!Z29 -> 193.1083333 | AA108: ='Annual Inflation'!AA29 -> 200.3166667 | AB108: ='Annual Inflation'!AB29 -> 208.5916667 | AC108: ='Annual Inflation'!AC29 -> 214.7833333 | AD108: ='Annual Inflation'!AD29 -> 215.7666667 | AE108: ='Annual Inflation'!AE29 -> 226.475 | AF108: ='Annual Inflation'!AF29 -> 237.3416667 | AG108: ='Annual Inflation'!AG29 -> 244.675 | AH108: ='Annual Inflation'!AH29 -> 251.7333333 | AI108: ='Annual Inflation'!AI29 -> 256.6666667 | AJ108: ='Annual Inflation'!AJ29 -> 259.4333333 | AK108: ='Annual Inflation'!AK29 -> 264.9916667 | AL108: ='Annual Inflation'!AL29 -> 274.9083333 | AM108: ='Annual Inflation'!AM29 -> 283.3083333 | AN108: ='Annual Inflation'!AN29 -> 290.6416667 | AO108: ='Annual Inflation'!AO29 -> 294.1666667 | AP108: ='Annual Inflation'!AP29 -> 306.08172 | AQ108: ='Annual Inflation'!AQ29 -> 316.9870791 | AR108: ='Annual Inflation'!AR29 -> 324.7268631 | AS108: ='Annual Inflation'!AS29 -> 331.3920584 | AT108: ='Annual Inflation'!AT29 -> 338.0240883
E109: Combined RPI-CPIH inflation (financial year average) | G109: annual % | J109: > | W109: ='Annual Inflation'!W30 -> 0.02094416487 | X109: ='Annual Inflation'!X30 -> 0.02793164961 | Y109: ='Annual Inflation'!Y30 -> 0.03110015071 | Z109: ='Annual Inflation'!Z30 -> 0.02635308708 | AA109: ='Annual Inflation'!AA30 -> 0.03732792474 | AB109: ='Annual Inflation'!AB30 -> 0.04130959314 | AC109: ='Annual Inflation'!AC30 -> 0.02968319284 | AD109: ='Annual Inflation'!AD30 -> 0.004578257158 | AE109: ='Annual Inflation'!AE30 -> 0.04962922911 | AF109: ='Annual Inflation'!AF30 -> 0.04798174927 | AG109: ='Annual Inflation'!AG30 -> 0.03089779151 | AH109: ='Annual Inflation'!AH30 -> 0.02884779129 | AI109: ='Annual Inflation'!AI30 -> 0.01959745763 | AJ109: ='Annual Inflation'!AJ30 -> 0.01077922078 | AK109: ='Annual Inflation'!AK30 -> 0.02142490042 | AL109: ='Annual Inflation'!AL30 -> 0.03742256046 | AM109: ='Annual Inflation'!AM30 -> 0.03055563976 | AN109: ='Annual Inflation'!AN30 -> 0.02588463688 | AO109: ='Annual Inflation'!AO30 -> 0.01212833673 | AP109: ='Annual Inflation'!AP30 -> 0.0405044305 | AQ109: ='Annual Inflation'!AQ30 -> 0.03562891362 | AR109: ='Annual Inflation'!AR30 -> 0.02441671753 | AS109: ='Annual Inflation'!AS30 -> 0.02052554347 | AT109: ='Annual Inflation'!AT30 -> 0.02001263978
E111: Long term CPIH inflation forecast | G111: annual % | H111: LTCPIHt | AP111: ='Annual Inflation'!AP34 -> 0.02 | AQ111: ='Annual Inflation'!AQ34 -> 0.02 | AR111: ='Annual Inflation'!AR34 -> 0.02 | AS111: ='Annual Inflation'!AS34 -> 0.02 | AT111: ='Annual Inflation'!AT34 -> 0.02
D113: Price conversion factors
E115: RIIO-1 to RIIO-2 real price scaling factor | G115: scalar | I115: ='Annual Inflation'!AM32 / 'Annual Inflation'!AD32 -> 1.313031052
E117: Real to nominal prices conversion factor (financial year average) | G117: scalar | J117: > | V117: ='Annual Inflation'!V32 -> 0.6137306233 | W117: ='Annual Inflation'!W32 -> 0.6265846986 | X117: ='Annual Inflation'!X32 -> 0.6440862429 | Y117: ='Annual Inflation'!Y32 -> 0.6641174221 | Z117: ='Annual Inflation'!Z32 -> 0.6816189664 | AA117: ='Annual Inflation'!AA32 -> 0.7070623879 | AB117: ='Annual Inflation'!AB32 -> 0.7362708474 | AC117: ='Annual Inflation'!AC32 -> 0.758125717 | AD117: ='Annual Inflation'!AD32 -> 0.7615966115 | AE117: ='Annual Inflation'!AE32 -> 0.7993940642 | AF117: ='Annual Inflation'!AF32 -> 0.8377503897 | AG117: ='Annual Inflation'!AG32 -> 0.8636350266 | AH117: ='Annual Inflation'!AH32 -> 0.8885489896 | AI117: ='Annual Inflation'!AI32 -> 0.9059622908 | AJ117: ='Annual Inflation'!AJ32 -> 0.9157278583 | AK117: ='Annual Inflation'!AK32 -> 0.9353472365 | AL117: ='Annual Inflation'!AL32 -> 0.970350325 | AM117: ='Annual Inflation'!AM32 -> 1 | AN117: ='Annual Inflation'!AN32 -> 1.025884637 | AO117: ='Annual Inflation'!AO32 -> 1.038326911 | AP117: ='Annual Inflation'!AP32 -> 1.080383751 | AQ117: ='Annual Inflation'!AQ32 -> 1.118876651 | AR117: ='Annual Inflation'!AR32 -> 1.146195946 | AS117: ='Annual Inflation'!AS32 -> 1.169722241 | AT117: ='Annual Inflation'!AT32 -> 1.19313147
AP118: Adjacent named range: ESOpf
E119: Real to nominal prices conversion factor (financial year end) | G119: scalar | J119: > | V119: ='Annual Inflation'!V45 -> 0.6180545342 | W119: ='Annual Inflation'!W45 -> 0.6372915257 | X119: ='Annual Inflation'!X45 -> 0.6535282525 | Y119: ='Annual Inflation'!Y45 -> 0.6743536194 | Z119: ='Annual Inflation'!Z45 -> 0.6909433185 | AA119: ='Annual Inflation'!AA45 -> 0.7232402859 | AB119: ='Annual Inflation'!AB45 -> 0.7520075301 | AC119: ='Annual Inflation'!AC45 -> 0.7461834868 | AD119: ='Annual Inflation'!AD45 -> 0.782716122 | AE119: ='Annual Inflation'!AE45 -> 0.8240138836 | AF119: ='Annual Inflation'!AF45 -> 0.8529576139 | AG119: ='Annual Inflation'!AG45 -> 0.8792540518 | AH119: ='Annual Inflation'!AH45 -> 0.9009618496 | AI119: ='Annual Inflation'!AI45 -> 0.909080213 | AJ119: ='Annual Inflation'!AJ45 -> 0.9221401888 | AK119: ='Annual Inflation'!AK45 -> 0.9528487808 | AL119: ='Annual Inflation'!AL45 -> 0.9847927758 | AM119: ='Annual Inflation'!AM45 -> 1.011795158 | AN119: ='Annual Inflation'!AN45 -> 1.032797012 | AO119: ='Annual Inflation'!AO45 -> 1.053352823 | AP119: ='Annual Inflation'!AP45 -> 1.101889217 | AQ119: ='Annual Inflation'!AQ45 -> 1.133476313 | AR119: ='Annual Inflation'!AR45 -> 1.158048831 | AS119: ='Annual Inflation'!AS45 -> 1.181357427 | AT119: ='Annual Inflation'!AT45 -> 1.203990332
C121: Tax allowance
E123: =E50 -> Adjusted net debt | G123: £m nominal | H123: =H50 -> ANDt | AP123: =AP50 -> 0 | AQ123: 0 | AR123: 0 | AS123: 0 | AT123: 0
E124: =E51 -> Tax deductible net interest cost | G124: £m nominal | H124: =H51 -> TDNIt | AP124: 0 | AQ124: 0 | AR124: 0 | AS124: 0 | AT124: 0
E125: =E52 -> Tax liability - tax trigger events | G125: £m 18/19 prices | H125: =H52 -> TTEt | AP125: -1.724390478 | AQ125: -2.775203188 | AR125: 0 | AS125: 0 | AT125: 0
E126: =E53 -> Tax allowance adjustment | G126: £m nominal | H126: =H53 -> TAXAt | AP126: 0 | AQ126: 0 | AR126: 0 | AS126: 0 | AT126: 0
E128: Tax Trigger Deadband | G128: £m 18/19 prices | AP128: 0.7956593604 | AQ128: 0.8137932975 | AR128: 0.8352703182 | AS128: 0.8691404943 | AT128: 0.8893387502
E130: =E55 -> Opening balance brought forward | G130: £m nominal | H130: =H55 -> SOOGPt | AP130: =AP55 -> 23.655
E131: Special Rate capital allowance opening balance brought forward | G131: £m nominal | H131: SOOSRPt | AP131: 25.272
E132: Structures and buildings capital allowance opening balance brought forward | G132: £m nominal | H132: SOOSBPt | AP132: 0
E133: Deferred revenue expenditure opening balance brought forward | G133: £m nominal | H133: SOODRPt | AP133: 22.32
E134: Intangible assets capital allowance opening balance brought forward | G134: £m nominal | H134: SOOIAPt | AP134: 119.53682
E135: Tax loss brought forward | G135: £m nominal | H135: SOOTLt | AP135: 0
E137: =E62 -> Totex allocation to "General" tax pool | G137: % | H137: =H62 -> SOARGPt | AP137: =AP62 -> 0.03993986307 | AQ137: 0.05524514401 | AR137: 0.03824017459 | AS137: 0.03899002873 | AT137: 0.03723132016
E138: Totex allocation to "Revenue" tax pool | G138: % | H138: SOARRt | AP138: 0.6286664171 | AQ138: 0.5746140652 | AR138: 0.6453964719 | AS138: 0.6572978655 | AT138: 0.6824693182
E139: Totex allocation to "Special rate" tax pool | G139: % | H139: SOARSRt | AP139: 0 | AQ139: 0 | AR139: 0 | AS139: 0 | AT139: 0
E140: Totex allocation to "Structures and Buildings" tax pool | G140: % | H140: SOARSBt | AP140: 0 | AQ140: 0 | AR140: 0 | AS140: 0 | AT140: 0
E141: Totex allocation to "Non Qualifying" tax pool | G141: % | H141: SOARNQt | AP141: 0 | AQ141: 0 | AR141: 0 | AS141: 0 | AT141: 0
E142: Totex allocation to "Deferred revenue" tax pool | G142: % | H142: SOARDRt | AP142: 0 | AQ142: 0 | AR142: 0 | AS142: 0 | AT142: 0
E143: Totex allocation to "Intangible assets" tax pool | G143: % | H143: SOARIAt | AP143: 0.3313937198 | AQ143: 0.3701407908 | AR143: 0.3163633535 | AS143: 0.3037121058 | AT143: 0.2802993616
E144: Allocation check | G144: % | AP144: =SUM(AP137:AP143) -> 1 | AQ144: =SUM(AQ137:AQ143) -> 1 | AR144: 1 | AS144: 1 | AT144: 1
E146: =E71 -> Corporation tax rate | G146: % | H146: =H71 -> SOCTt | AP146: =AP71 -> 0.19 | AQ146: 0.19 | AR146: 0.25 | AS146: 0.25 | AT146: 0.25
E147: Capital Allowance rate | G147: % | H147: SOGCAt | AP147: 0.18 | AQ147: 0.18 | AR147: 0.18 | AS147: 0.18 | AT147: 0.18
E148: Special Rates pool capital allowance rate | G148: % | H148: SOSRCAt | AP148: 0.06 | AQ148: 0.06 | AR148: 0.06 | AS148: 0.06 | AT148: 0.06
E149: Structures and buildings allowance rate | G149: % | H149: SOSBCAt | AP149: 0.03 | AQ149: 0.03 | AR149: 0.03 | AS149: 0.03 | AT149: 0.03
E150: Deferred revenue expenditure allowance rate | G150: % | H150: SODRCAt | AP150: 0.0222 | AQ150: 0.0222 | AR150: 0.0222 | AS150: 0.0222 | AT150: 0.0222
E151: Intangible assets allowance rate | G151: % | H151: SOIACAt | AP151: 0.14 | AQ151: 0.14 | AR151: 0.14 | AS151: 0.14 | AT151: 0.14
C153: Other finance inputs
E155: Minimum equity issuance threshold | G155: % | AP155: 0.05 | AQ155: 0.05 | AR155: 0.05 | AS155: 0.05 | AT155: 0.05
E156: Equity issuance costs | G156: % | AP156: 0.05 | AQ156: 0.05 | AR156: 0.05 | AS156: 0.05 | AT156: 0.05
E157: Assumed dividends as % of notional equity portion of RAV | G157: % | AP157: 0.03 | AQ157: 0.03 | AR157: 0.03 | AS157: 0.03 | AT157: 0.03
E158: Equity issuance gearing target | G158: % | AP158: 0.55 | AQ158: 0.55 | AR158: 0.55 | AS158: 0.55 | AT158: 0.55
C160: TIM and capitalisation
E162: Years from t until normal reporting of actual costs | G162: years | I162: 2
E164: Capitalised share of totex | G164: % | AP164: 0.371 | AQ164: 0.345 | AR164: 0.355 | AS164: 0.343 | AT164: 0.318
E166: RIIO-2 Funding Adjustment Rate ('sharing factor') | G166: % | I166: 1
B168: Totex allowance
E170: Allowed capex | G170: £m 18/19 prices | H170: =H8 -> 0 | AP170: =AP8 -> 95.00479984 | AQ170: 85.53412 | AR170: 92.4449257 | AS170: 91.28893392 | AT170: 81.49383709
E171: Allowed opex | G171: £m 18/19 prices | H171: =H9 -> 0 | AP171: 160.8427836 | AQ171: 162.68659 | AR171: 167.7544706 | AS171: 174.590889 | AT171: 174.6548642
E172: Total | G172: £m 18/19 prices | AP172: =SUM(AP170:AP171) -> 255.8475835 | AQ172: =SUM(AQ170:AQ171) -> 248.22071 | AR172: 260.1993963 | AS172: 265.879823 | AT172: 256.1487013
B174: Actual totex
E176: Actual capex | G176: £m 18/19 prices | H176: =H13 -> SOANC | AH176: =AH13 -> 42.30937849 | AI176: 45.20039196 | AJ176: 43.91282372 | AK176: 59.16841158 | AL176: 63.99992789 | AM176: 77.83429707 | AN176: 85.35417981 | AO176: 85.16078767 | AP176: 118.4 | AQ176: 124 | AR176: 92.4449257 | AS176: 91.28893392 | AT176: 81.49383709
E177: Actual opex | G177: £m 18/19 prices | H177: =H14 -> SOACO | AH177: =AH14 -> 107.6567061 | AI177: 104.1566748 | AJ177: 108.2527925 | AK177: 114.5543685 | AL177: 122.2893083 | AM177: 141.4183221 | AN177: 126.6991123 | AO177: 118.1915255 | AP177: 159.1 | AQ177: 167.5 | AR177: 168.2544706 | AS177: 175.090889 | AT177: 175.1548642
E178: Total | G178: £m 18/19 prices | AH178: =SUM(AH176:AH177) -> 149.9660846 | AI178: =SUM(AI176:AI177) -> 149.3570667 | AJ178: 152.1656162 | AK178: 173.7227801 | AL178: 186.2892362 | AM178: 219.2526192 | AN178: 212.0532921 | AO178: 203.3523132 | AP178: 277.5 | AQ178: 291.5 | AR178: 260.6993963 | AS178: 266.379823 | AT178: 256.6487013
B180: Pass-through expenditure
E182: =E18 -> Business Rates Payments | G182: £m 18/19 prices | H182: =H18 -> RBt | AP182: =AP18 -> 0.75 | AQ182: =AQ18 -> 0.75 | AR182: =AR18 -> 0.75 | AS182: =AS18 -> 0.75 | AT182: =AT18 -> 0.75
E183: =E19 -> Additional Funding - WCF | G183: £m 18/19 prices | H183: =H19 -> WCFt | AP183: =AP19/ESOpf -> 0.7404776302 | AQ183: =AQ19/ESOpf -> 0.7150028553 | AR183: =AR19/ESOpf -> 0.6979609402 | AS183: =AS19/ESOpf -> 0.6839230479 | AT183: =AT19/ESOpf -> 0.6705044832
E184: =E20 -> Bad debt allowance | G184: £m 18/19 prices | H184: =H20 -> SOBDt | AP184: =AP20 -> 6.28656715 | AQ184: 3.12813749 | AR184: 0 | AS184: 0 | AT184: 0
E185: =E21 -> Pension scheme established deficit | G185: £m 18/19 prices | H185: =H21 -> EDEt | AP185: 9.56768257 | AQ185: 9.443270761 | AR185: 3.783028675 | AS185: 0 | AT185: 0
E186: Pass-through expenditure | G186: £m 18/19 prices | H186: SOPTt | AP186: =SUM(AP182:AP185) -> 17.34472735 | AQ186: =SUM(AQ182:AQ185) -> 14.03641111 | AR186: =SUM(AR182:AR185) -> 5.230989615 | AS186: =SUM(AS182:AS185) -> 1.433923048 | AT186: =SUM(AT182:AT185) -> 1.420504483
B188: Other revenue allowances
E190: Pre-RIIO-1 pension true-up | G190: £m 18/19 prices | H190: PRPNt | I190: 11.02402045 | AP190: =($I$190 / 9) * (1+$AH$94)*(1+$AI$94)*(1+$AJ$94)*(1+$AK$94)*(1+$AL$94)*(1+$AM$94)*(1+$AN$94)*(1+$AO$94)*(1+$AP$94) * (AP$4 = $I$98) -> 1.747080505
I191: Assumed cost multipliers:
E192: =E25 -> Network Innovation Allowance | G192: £m 18/19 prices | H192: =H25 -> NIAt | I192: 1 | AP192: =AP25 -> 4.20867497 | AQ192: 4.5 | AR192: 4.5 | AS192: 4.5 | AT192: 4.5
E193: =E26 -> Carry Over RIIO-1 Network Innovation Allowance | G193: £m 18/19 prices | H193: =H26 -> CNIAt | I193: 1 | AP193: 0.5309841177 | AQ193: 0 | AR193: 0 | AS193: 0 | AT193: 0
E194: =E190 -> Pre-RIIO-1 pension true-up | G194: £m 18/19 prices | H194: =H190 -> PRPNt | I194: 0 | AP194: =AP190 -> 1.747080505 | AQ194: =AQ190 -> 0 | AR194: =AR190 -> 0 | AS194: =AS190 -> 0 | AT194: =AT190 -> 0
E195: Other Revenue Allowances | G195: £m 18/19 prices | H195: ORAt | AP195: =SUM(AP192:AP194) -> 6.486739593 | AQ195: =SUM(AQ192:AQ194) -> 4.5 | AR195: =SUM(AR192:AR194) -> 4.5 | AS195: =SUM(AS192:AS194) -> 4.5 | AT195: =SUM(AT192:AT194) -> 4.5
E197: Costs associated with "Other revenue" | G197: £m 18/19 prices | AP197: =SUMPRODUCT($I192:$I194, AP192:AP194) -> 4.739659088 | AQ197: =SUMPRODUCT($I192:$I194, AQ192:AQ194) -> 4.5 | AR197: =SUMPRODUCT($I192:$I194, AR192:AR194) -> 4.5 | AS197: =SUMPRODUCT($I192:$I194, AS192:AS194) -> 4.5 | AT197: =SUMPRODUCT($I192:$I194, AT192:AT194) -> 4.5
B199: Other funding
E201: =E30 -> Additional Funding - Other | G201: £m 18/19 prices | H201: =H30 -> ADFt | AP201: =AP30/ESOpf -> 4.442865781 | AQ201: =AQ30/ESOpf -> 4.290017132 | AR201: =AR30/ESOpf -> 4.187765641 | AS201: =AS30/ESOpf -> 4.103538287 | AT201: =AT30/ESOpf -> 4.023026899
E202: =E31 -> Reporting & Incentive Arrangements | G202: £m 18/19 prices | H202: =H31 -> ESORIt | AP202: =AP31 -> 4.750078802 | AQ202: =AQ31 -> 4.675373541 | AR202: =AR31 -> 0 | AS202: =AS31 -> 0 | AT202: =AT31 -> 0
E203: Other funding | G203: £m 18/19 prices | AP203: =SUM(AP201:AP202) -> 9.192944584 | AQ203: =SUM(AQ201:AQ202) -> 8.965390672 | AR203: =SUM(AR201:AR202) -> 4.187765641 | AS203: =SUM(AS201:AS202) -> 4.103538287 | AT203: =SUM(AT201:AT202) -> 4.023026899
B205: Legacy adjustments
E207: =E35 -> LSOMODt | G207: £m nominal | H207: =H35 -> LSOMODt | AP207: =AP35 -> 15.5861335 | AQ207: 15.64012338 | AR207: 0 | AS207: 0 | AT207: 0
E208: =E36 -> LSOTRUt | G208: £m nominal | H208: =H36 -> LSOTRUt | AP208: -2.745949824 | AQ208: -3.139664876 | AR208: 0 | AS208: 0 | AT208: 0
E209: =E37 -> LSOEMRINCt | G209: £m nominal | H209: =H37 -> LSOEMRINCt | AP209: 1.542554056 | AQ209: -0.879 | AR209: 0 | AS209: 0 | AT209: 0
E210: Legacy adjustments | G210: £m nominal | H210: SOLARt | AP210: =SUM(AP207:AP209) -> 14.38273773 | AQ210: =SUM(AQ207:AQ209) -> 11.6214585 | AR210: 0 | AS210: 0 | AT210: 0
B212: Directly remunerated services
E214: Directly remunerated services revenue | G214: £m 18/19 prices | H214: =H42 -> DRSRt | AP214: =AP42 -> 0 | AQ214: 0 | AR214: 0 | AS214: 0 | AT214: 0
E215: Directly remunerated services cost | G215: £m 18/19 prices | H215: =H43 -> DRSCt | AP215: 0 | AQ215: 0 | AR215: 0 | AS215: 0 | AT215: 0
E216: Directly remunerated services net position | G216: £m 18/19 prices | AP216: =SUM(AP214:AP215) -> 0 | AQ216: =SUM(AQ214:AQ215) -> 0 | AR216: 0 | AS216: 0 | AT216: 0
E218: Directly remunerated services adjustment | G218: £m 18/19 prices | H218: DRSt | AP218: =- AP216 -> 0 | AQ218: =- AQ216 -> 0 | AR218: 0 | AS218: 0 | AT218: 0
B220: RAV and assets
C222: Post-vesting assets
E224: Post-vesting asset life | G224: years | I224: 7
E225: Wokingham asset life | G225: years | I225: 20
E226: Pre-RIIO net additions to RAV | G226: £m 18/19 prices | J226: > | W226: 0 | X226: 0 | Y226: 0 | Z226: 0 | AA226: 13.41039708 | AB226: 12.91249596 | AC226: 16.81244584 | AD226: 13.47193166 | AE226: 23.05049816 | AF226: 26.17742526 | AG226: 37.96416393
E227: =E38 -> Legacy net RAV additions | G227: £m 18/19 prices | H227: =H38 -> LSORAVt | AH227: =AH38 -> 47.73376035 | AI227: 41.80383286 | AJ227: 43.17500573 | AK227: 47.42636853 | AL227: 51.20275428 | AM227: 60.2889588 | AN227: 54.91837956 | AO227: 53.78996685
E228: RIIO-2 Wokingham adjustment to RAV | G228: £m 18/19 prices | AH228: 0 | AI228: 0 | AJ228: 0 | AK228: 0 | AL228: 0 | AM228: 0 | AN228: 0 | AO228: 0 | AP228: =ROUND(14.4495 * I115, 3) -> 18.973 | AQ228: 0 | AR228: 0 | AS228: 0 | AT228: 0
B230: Totex
C232: Actual totex
D234: Source of actuals
D235: Note: The model assumes that there is a time lag from year t until actual expenditure data becomes available for the model. After the lag, actual expenditure inputs are used. Up to that point the model generates a forecast actual expenditure.
D236: When required in the model, forecasts assume that actuals are equal to their corresponding allowance.
D237: In a year where actual totex is assumed to be available, values must be inputted to the model as it will not generate a forecast and the empty input cell will be read as an actual spend of zero.
E239: Years from t until normal reporting of actual costs | G239: years | I239: =I162 -> 2
E240: Historic totex (FYI only) | G240: text | AP240: =YEAR($I$4) >= YEAR(AP$4) + $I239 -> FALSE | AQ240: =YEAR($I$4) >= YEAR(AQ$4) + $I239 -> FALSE | AR240: FALSE | AS240: FALSE | AT240: FALSE
E241: Forecasted totex (FYI only) | G241: text | AP241: =IF(AP240, FALSE, TRUE) -> TRUE | AQ241: TRUE | AR241: TRUE | AS241: TRUE | AT241: TRUE
D243: Totex applied
D244: Note: Actuals are exported both to identify performance against the allowance and to generate writing down allowances used in the tax calculation.
E246: Actual capex | G246: £m 18/19 prices | AH246: =AH13 -> 42.30937849 | AI246: 45.20039196 | AJ246: 43.91282372 | AK246: 59.16841158 | AL246: 63.99992789 | AM246: 77.83429707 | AN246: 85.35417981 | AO246: 85.16078767 | AP246: 118.4 | AQ246: 124 | AR246: 92.4449257 | AS246: 91.28893392 | AT246: 81.49383709
E247: Actual opex | G247: £m 18/19 prices | AH247: =AH14 -> 107.6567061 | AI247: 104.1566748 | AJ247: 108.2527925 | AK247: 114.5543685 | AL247: 122.2893083 | AM247: 141.4183221 | AN247: 126.6991123 | AO247: 118.1915255 | AP247: 159.1 | AQ247: 167.5 | AR247: 168.2544706 | AS247: 175.090889 | AT247: 175.1548642
E248: Actual totex | G248: £m 18/19 prices | AH248: =SUM(AH246:AH247) -> 149.9660846 | AI248: 149.3570667 | AJ248: 152.1656162 | AK248: 173.7227801 | AL248: 186.2892362 | AM248: 219.2526192 | AN248: 212.0532921 | AO248: 203.3523132 | AP248: 277.5 | AQ248: =SUM(AQ246:AQ247) -> 291.5 | AR248: 260.6993963 | AS248: 266.379823 | AT248: 256.6487013
B250: TIM
C252: Post-TIM overspend (underspend)
C253: Note: Totex overspend (underspend) is identified and subject to the "efficiency incentive rate."
E255: Actual totex | G255: £m 18/19 prices | AP255: =AP248 -> 277.5 | AQ255: =AQ248 -> 291.5 | AR255: =AR248 -> 260.6993963 | AS255: =AS248 -> 266.379823 | AT255: =AT248 -> 256.6487013
E256: Less allowed totex | G256: £m 18/19 prices | AP256: =- SUM(AP170:AP171) -> -255.8475835 | AQ256: =- SUM(AQ170:AQ171) -> -248.22071 | AR256: =- SUM(AR170:AR171) -> -260.1993963 | AS256: =- SUM(AS170:AS171) -> -265.879823 | AT256: =- SUM(AT170:AT171) -> -256.1487013
E257: Pre-TIM overspend (underspend) | G257: £m 18/19 prices | AP257: =SUM(AP255:AP256) -> 21.65241654 | AQ257: 43.27929004 | AR257: 0.5 | AS257: 0.5 | AT257: 0.5
E259: Funding Adjustment Rate (often refered to as 'sharing factor') | G259: % | AP259: =I166 -> 1 | AQ259: =AP259 -> 1 | AR259: =AQ259 -> 1 | AS259: 1 | AT259: 1
E261: Post-TIM overspend (underspend) | G261: £m 18/19 prices | AP261: =AP$259 * AP257 -> 21.65241654 | AQ261: 43.27929004 | AR261: 0.5 | AS261: 0.5 | AT261: 0.5
C263: Post-TIM totex
C264: Note: "Post-TIM overspend (underspend)" is added to the allowed totex value to give the Post-TIM totex allowance to be split into fast and slow money.
E266: Allowed totex | G266: £m 18/19 prices | AP266: =-AP256 -> 255.8475835 | AQ266: 248.22071 | AR266: 260.1993963 | AS266: 265.879823 | AT266: 256.1487013
E267: Post-TIM overspend (underspend) | G267: £m 18/19 prices | AP267: =AP261 -> 21.65241654 | AQ267: 43.27929004 | AR267: 0.5 | AS267: 0.5 | AT267: 0.5
E268: Post-TIM totex | G268: £m 18/19 prices | AP268: =SUM(AP266:AP267) -> 277.5 | AQ268: 291.5 | AR268: 260.6993963 | AS268: 266.379823 | AT268: 256.6487013
B270: Capitalisation
B271: Note: The weighted capitalised share of totex the Transmission operators is weighted based on the relative share of allowance to totex, wider works and enter & exit.
B272: Post-TIM totex is allocated into "fast" and "slow" elements based on a pre-set percentage split:
B273: - "fast money " is exported to the "Revenue" sheet where it is included as an element of "recalculated base revenue;" and
B274: - "slow money " is exported to the "Depn" sheet where it is added to RAV. Slow money is recovered over the life of the RAV through regulatory depreciation and return allowances.
E276: Post-TIM totex | G276: £m 18/19 prices | AP276: =AP268 -> 277.5 | AQ276: 291.5 | AR276: 260.6993963 | AS276: 266.379823 | AT276: 256.6487013
E277: Capitalised share of totex | G277: % | AP277: =AP164 -> 0.371 | AQ277: =AQ164 -> 0.345 | AR277: =AR164 -> 0.355 | AS277: =AS164 -> 0.343 | AT277: =AT164 -> 0.318
E279: Fast pot expenditure | G279: £m 18/19 prices | H279: FMt | AP279: =AP$276 * (1 - AP277) -> 174.5475 | AQ279: 190.9325 | AR279: 168.1511106 | AS279: 175.0115437 | AT279: 175.0344143
E281: Slow pot expenditure | G281: £m 18/19 prices | AP281: =AP$276 * AP277 -> 102.9525 | AQ281: 100.5675 | AR281: 92.54828568 | AS281: 91.36827928 | AT281: 81.614287
B283: Tax pool additions
B284: Note: Actual totex is combined with other expenditure and allocated to tax pools. Each cost sub-category can have its own percentage split between each pool.
C286: Tax pool allocation
E288: Allocation to "General" tax pool | G288: % | AP288: =AP62 -> 0.03993986307 | AQ288: 0.05524514401 | AR288: 0.03824017459 | AS288: 0.03899002873 | AT288: 0.03723132016
... 316 more rows

Sheet SOIAR
A1: Allowed revenue
B2: =UserInterface!G17 -> NGESO
E3: Parameter | F3: Licence condition | G3: Units | H3: Term | I3: Constant | AP3: Annual values
E4: PCFM year ending | I4: =UserInterface!G10 -> 2023-03-31 | K4: 1991-03-31 | L4: 1992-03-31 | M4: 1993-03-31 | N4: 1994-03-31 | O4: 1995-03-31 | P4: 1996-03-31 | Q4: 1997-03-31 | R4: 1998-03-31 | S4: 1999-03-31 | T4: 2000-03-31 | U4: 2001-03-31 | V4: 2002-03-31 | W4: 2003-03-31 | X4: 2004-03-31 | Y4: 2005-03-31 | Z4: 2006-03-31 | AA4: 2007-03-31 | AB4: 2008-03-31 | AC4: 2009-03-31 | AD4: 2010-03-31 | AE4: 2011-03-31 | AF4: 2012-03-31 | AG4: 2013-03-31 | AH4: 2014-03-31 | AI4: 2015-03-31 | AJ4: 2016-03-31 | AK4: 2017-03-31 | AL4: 2018-03-31 | AM4: 2019-03-31 | AN4: 2020-03-31 | AO4: 2021-03-31 | AP4: 2022-03-31 | AQ4: 2023-03-31 | AR4: 2024-03-31 | AS4: 2025-03-31 | AT4: 2026-03-31
B6: Allowed revenue determination
C8: Allowed revenue | AQ8: =IF(AND(INDEX(SavedResults!M$16:M$91,MATCH("ESO_Rnominal_"& YEAR(AQ$4),SavedResults!$G$16:$G$91,0))="",$I$4>=AQ$4),AQ26,INDEX(SavedResults!M$16:M$91,MATCH("ESO_Rnominal_"& YEAR(AQ$4),SavedResults!$G$16:$G$91,0))) -> 338.7489647 | AR8: =IF(AND(INDEX(SavedResults!N$16:N$91,MATCH("ESO_Rnominal_"& YEAR(AR$4),SavedResults!$G$16:$G$91,0))="",$I$4>=AR$4),AR26,INDEX(SavedResults!N$16:N$91,MATCH("ESO_Rnominal_"& YEAR(AR$4),SavedResults!$G$16:$G$91,0))) ->  | AS8: =IF(AND(INDEX(SavedResults!O$16:O$91,MATCH("ESO_Rnominal_"& YEAR(AS$4),SavedResults!$G$16:$G$91,0))="",$I$4>=AS$4),AS26,INDEX(SavedResults!O$16:O$91,MATCH("ESO_Rnominal_"& YEAR(AS$4),SavedResults!$G$16:$G$91,0))) ->  | AT8: =IF(AND(INDEX(SavedResults!P$16:P$91,MATCH("ESO_Rnominal_"& YEAR(AT$4),SavedResults!$G$16:$G$91,0))="",$I$4>=AT$4),AT26,INDEX(SavedResults!P$16:P$91,MATCH("ESO_Rnominal_"& YEAR(AT$4),SavedResults!$G$16:$G$91,0))) -> 
E10: Calculated revenue (as published) | G10: £m nominal | H10: Rt* x PIt* / PI2018/19 | AP10: =IF(AND(INDEX(SavedResults!L$16:L$91,MATCH("ESO_Rnominal_"& YEAR(AP$4),SavedResults!$G$16:$G$91,0))="",$I$4>=AP$4),AP26,INDEX(SavedResults!L$16:L$91,MATCH("ESO_Rnominal_"& YEAR(AP$4),SavedResults!$G$16:$G$91,0))) -> 268.5723689 | AQ10: =IF(AND(INDEX(SavedResults!M$16:M$91,MATCH("ESO_Rnominal_"& YEAR(AQ$4),SavedResults!$G$16:$G$91,0))="",$I$4>=AQ$4),AQ26,INDEX(SavedResults!M$16:M$91,MATCH("ESO_Rnominal_"& YEAR(AQ$4),SavedResults!$G$16:$G$91,0))) -> 338.7489647 | AR10: =IF(AND(INDEX(SavedResults!N$16:N$91,MATCH("ESO_Rnominal_"& YEAR(AR$4),SavedResults!$G$16:$G$91,0))="",$I$4>=AR$4),AR26,INDEX(SavedResults!N$16:N$91,MATCH("ESO_Rnominal_"& YEAR(AR$4),SavedResults!$G$16:$G$91,0))) ->  | AS10: =IF(AND(INDEX(SavedResults!O$16:O$91,MATCH("ESO_Rnominal_"& YEAR(AS$4),SavedResults!$G$16:$G$91,0))="",$I$4>=AS$4),AS26,INDEX(SavedResults!O$16:O$91,MATCH("ESO_Rnominal_"& YEAR(AS$4),SavedResults!$G$16:$G$91,0))) ->  | AT10: =IF(AND(INDEX(SavedResults!P$16:P$91,MATCH("ESO_Rnominal_"& YEAR(AT$4),SavedResults!$G$16:$G$91,0))="",$I$4>=AT$4),AT26,INDEX(SavedResults!P$16:P$91,MATCH("ESO_Rnominal_"& YEAR(AT$4),SavedResults!$G$16:$G$91,0))) -> 
E11: AIP adjustment term | G11: £m nominal | H11: ADJt* | AP11: =IF(AND(INDEX(SavedResults!L$16:L$91,MATCH("ESO_ADJ_"& YEAR(AP$4),SavedResults!$G$16:$G$91,0))="",$I$4>=AP$4),AP27,INDEX(SavedResults!L$16:L$91,MATCH("ESO_ADJ_"& YEAR(AP$4),SavedResults!$G$16:$G$91,0))) -> 0 | AQ11: =IF(AND(INDEX(SavedResults!M$16:M$91,MATCH("ESO_ADJ_"& YEAR(AQ$4),SavedResults!$G$16:$G$91,0))="",$I$4>=AQ$4),AQ27,INDEX(SavedResults!M$16:M$91,MATCH("ESO_ADJ_"& YEAR(AQ$4),SavedResults!$G$16:$G$91,0))) -> 33.25813244 | AR11: =IF(AND(INDEX(SavedResults!N$16:N$91,MATCH("ESO_ADJ_"& YEAR(AR$4),SavedResults!$G$16:$G$91,0))="",$I$4>=AR$4),AR27,INDEX(SavedResults!N$16:N$91,MATCH("ESO_ADJ_"& YEAR(AR$4),SavedResults!$G$16:$G$91,0))) ->  | AS11: =IF(AND(INDEX(SavedResults!O$16:O$91,MATCH("ESO_ADJ_"& YEAR(AS$4),SavedResults!$G$16:$G$91,0))="",$I$4>=AS$4),AS27,INDEX(SavedResults!O$16:O$91,MATCH("ESO_ADJ_"& YEAR(AS$4),SavedResults!$G$16:$G$91,0))) ->  | AT11: =IF(AND(INDEX(SavedResults!P$16:P$91,MATCH("ESO_ADJ_"& YEAR(AT$4),SavedResults!$G$16:$G$91,0))="",$I$4>=AT$4),AT27,INDEX(SavedResults!P$16:P$91,MATCH("ESO_ADJ_"& YEAR(AT$4),SavedResults!$G$16:$G$91,0))) -> 
E12: Adjusted revenue (as published) | H12: ADJRt* | AP12: =IF(AND(AP10 = "", AP11 = ""), AP28, SUM(AP10:AP11)) -> 268.5723689 | AQ12: =IF(AND(AQ10 = "", AQ11 = ""), AQ28, SUM(AQ10:AQ11)) -> 372.0070971 | AR12: =IF(AND(AR10 = "", AR11 = ""), AR28, SUM(AR10:AR11)) -> 312.8675058 | AS12: 329.4437909 | AT12: 341.249338
E14: Legacy Allowed Revenue | G14: £m nominal | H14: SOLARt | AP14: =SystemOperator!AP210 -> 14.38273773 | AQ14: =SystemOperator!AQ210 -> 11.6214585 | AR14: =SystemOperator!AR210 -> 0 | AS14: =SystemOperator!AS210 -> 0 | AT14: =SystemOperator!AT210 -> 0
E15: Allowed Revenue | G15: £m nominal | H15: SOIARt | AP15: =SUM(AP12, AP14) -> 282.9551066 | AQ15: =SUM(AQ12, AQ14) -> 383.6285556 | AR15: =SUM(AR12, AR14) -> 312.8675058 | AS15: =SUM(AS12, AS14) -> 329.4437909 | AT15: =SUM(AT12, AT14) -> 341.249338
C17: Adjusted revenue
E19: Vanilla allowed return on capital | G19: annual real % | H19: WACCt | AP19: =SystemOperator!AP94 -> 0.03403884284 | AQ19: =SystemOperator!AQ94 -> 0.03908969535 | AR19: =SystemOperator!AR94 -> 0.03982411734 | AS19: =SystemOperator!AS94 -> 0.03901249591
E20: 1 + inflation (from year t to t+1) | G20: annual % | H20: PIt+1/PIt | AP20: =AQ24/AP24 -> 1.035628914 | AQ20: =AR24/AQ24 -> 1.024416718 | AR20: 1.020525543 | AS20: 1.02001264
E21: Nominal time value of money | G21: annual nominal % | H21: TVMt | AP21: =(1 + AP19) * (AP20) - 1 -> 0.07088052345 | AQ21: =(1 + AQ19) * (AQ20) - 1 -> 0.06446085493 | AR21: 0.06116707247 | AS21: 0.05980587872
E23: Calculated revenue | G23: £m 18/19 prices | H23: Rt | AP23: =SystemOperator!AP731 -> 277.33588 | AQ23: =SystemOperator!AQ731 -> 302.7580962 | AR23: =SystemOperator!AR731 -> 272.9616231 | AS23: =SystemOperator!AS731 -> 281.642752 | AT23: =SystemOperator!AT731 -> 286.0115138
E24: Real to nominal prices conversion factor | G24: scalar | H24: PIt / PI2018/19 | AP24: =ESOpf -> 1.080383751 | AQ24: =ESOpf -> 1.118876651 | AR24: =ESOpf -> 1.146195946 | AS24: =ESOpf -> 1.169722241 | AT24: =ESOpf -> 1.19313147
E26: Calculated revenue | G26: £m nominal | H26: Rt x PIt / PI2018/19 | AP26: =AP23*AP24 -> 299.6291784 | AQ26: =AQ23*AQ24 -> 338.7489647 | AR26: =AR23*AR24 -> 312.8675058 | AS26: =AS23*AS24 -> 329.4437909 | AT26: =AT23*AT24 -> 341.249338
E27: AIP adjustment term | G27: £m nominal | H27: ADJt | AP27: 0 | AQ27: =(AP28-AP12)*(1+AP21) -> 33.25813244 | AR27: =(AQ28-AQ12)*(1+AQ21) -> 0 | AS27: 0 | AT27: 0
E28: Adjusted revenue (live) | G28: £m nominal | H28: ADJRt | AP28: =SUM(AP26:AP27) -> 299.6291784 | AQ28: =SUM(AQ26:AQ27) -> 372.0070971 | AR28: =SUM(AR26:AR27) -> 312.8675058 | AS28: =SUM(AS26:AS27) -> 329.4437909 | AT28: =SUM(AT26:AT27) -> 341.249338
B30: End of sheet

Sheet LiveResults
A1: Live Results
B3: Live results
B4: Note: This sheet displays the output of the PCFM for the live company in the selected year.
B5: As well as displaying output it performs the role of recalling results generated with data at earlier stages from the "SavedResults" sheet required for the MOD calculation.
C8: Values for NGESO
I11: Company | J11: Calculated for MOD year ending | L11: File
I12: =UserInterface!G17 -> NGESO | J12: =UserInterface!G10 -> 2023-03-31 | L12: =MID(CELL("filename"),SEARCH("[",CELL("filename"))+1,SEARCH("]",CELL("filename"))-SEARCH("[",CELL("filename"))-1) -> 
I14: PCFM year ending | J14: Unit | K14: Licence term (if applicable) | L14: 2022-03-31 | M14: 2023-03-31 | N14: 2024-03-31 | O14: 2025-03-31 | P14: 2026-03-31 | Q14: RIIO-2 Total | R14: RIIO-2 average
I15: Totex
D16: ESO | E16: Totex | F16: SlowMoney | G16: =D16&"_"&E16&"_"&F16 -> ESO_Totex_SlowMoney | H16: 1 | I16: Slow pot | J16: £m 18/19 prices | L16: =SystemOperator!AP281 -> 102.9525 | M16: =SystemOperator!AQ281 -> 100.5675 | N16: =SystemOperator!AR281 -> 92.54828568 | O16: =SystemOperator!AS281 -> 91.36827928 | P16: =SystemOperator!AT281 -> 81.614287 | Q16: =SUM($L16:$P16) -> 469.050852 | R16: =IFERROR( AVERAGE($L16:$P16), 0) -> 93.81017039
D17: ESO | E17: Totex | F17: FastMoney | G17: =D17&"_"&E17&"_"&F17 -> ESO_Totex_FastMoney | H17: =+H16+1 -> 2 | I17: Fast pot | J17: £m 18/19 prices | L17: =SystemOperator!AP279 -> 174.5475 | M17: =SystemOperator!AQ279 -> 190.9325 | N17: =SystemOperator!AR279 -> 168.1511106 | O17: =SystemOperator!AS279 -> 175.0115437 | P17: =SystemOperator!AT279 -> 175.0344143 | Q17: =SUM($L17:$P17) -> 883.6770686 | R17: =IFERROR( AVERAGE($L17:$P17), 0) -> 176.7354137
D18: ESO | E18: Totex | F18: PostTIMTotex | G18: ESO_Totex_PostTIMTotex | H18: =+H17+1 -> 3 | I18: Post-TIM totex allowance | J18: £m 18/19 prices | L18: =SystemOperator!AP268 -> 277.5 | M18: =SystemOperator!AQ268 -> 291.5 | N18: =SystemOperator!AR268 -> 260.6993963 | O18: =SystemOperator!AS268 -> 266.379823 | P18: =SystemOperator!AT268 -> 256.6487013 | Q18: 1352.727921 | R18: 270.5455841
I19: Regulatory Asset Value (RAV)
D20: ESO | E20: RAV | F20: OpeningBeforeTransfers | G20: ESO_RAV_OpeningBeforeTransfers | H20: =MAX(H$12:H19) + 1 -> 4 | I20: Opening asset value (before transfers) | J20: £m 18/19 prices | L20: =SystemOperator!AP440 -> 211.8184009 | M20: =SystemOperator!AQ440 -> 282.42307 | N20: =SystemOperator!AR440 -> 322.9342151 | O20: =SystemOperator!AS440 -> 347.2272183 | P20: =SystemOperator!AT440 -> 363.8942268 | Q20: 1528.297131 | R20: 305.6594262
D21: ESO | E21: RAV | F21: Transfers | G21: ESO_RAV_Transfers | H21: =MAX(H$12:H20) + 1 -> 5 | I21: Transfers | J21: £m 18/19 prices | L21: =SystemOperator!AP441 -> 18.973 | M21: =SystemOperator!AQ441 -> 0 | N21: =SystemOperator!AR441 -> 0 | O21: =SystemOperator!AS441 -> 0 | P21: =SystemOperator!AT441 -> 0 | Q21: 18.973 | R21: 3.7946
D22: ESO | E22: RAV | F22: OpeningAfterTransfers | G22: ESO_RAV_OpeningAfterTransfers | H22: =MAX(H$12:H21) + 1 -> 6 | I22: Opening asset value (after transfers) | J22: £m 18/19 prices | L22: =SystemOperator!AP442 -> 230.7914009 | M22: =SystemOperator!AQ442 -> 282.42307 | N22: =SystemOperator!AR442 -> 322.9342151 | O22: =SystemOperator!AS442 -> 347.2272183 | P22: =SystemOperator!AT442 -> 363.8942268 | Q22: 1547.270131 | R22: 309.4540262
D23: ESO | E23: RAV | F23: Additions | G23: ESO_RAV_Additions | H23: =MAX(H$12:H22) + 1 -> 7 | I23: RAV additions (after disposals) | J23: £m 18/19 prices | L23: =SystemOperator!AP443 -> 102.9525 | M23: =SystemOperator!AQ443 -> 100.5675 | N23: =SystemOperator!AR443 -> 92.54828568 | O23: =SystemOperator!AS443 -> 91.36827928 | P23: =SystemOperator!AT443 -> 81.614287 | Q23: 469.050852 | R23: 93.81017039
D24: ESO | E24: RAV | F24: Depreciation | G24: ESO_RAV_Depreciation | H24: =MAX(H$12:H23) + 1 -> 8 | I24: Depreciation | J24: £m 18/19 prices | L24: =SystemOperator!AP444 -> -51.32083094 | M24: =SystemOperator!AQ444 -> -60.05635482 | N24: =SystemOperator!AR444 -> -68.25528257 | O24: =SystemOperator!AS444 -> -74.70127074 | P24: =SystemOperator!AT444 -> -80.43920288 | Q24: -334.772942 | R24: -66.95458839
D25: ESO | E25: RAV | F25: Closing | G25: ESO_RAV_Closing | H25: =MAX(H$12:H24) + 1 -> 9 | I25: Closing asset value | J25: £m 18/19 prices | L25: =SystemOperator!AP445 -> 282.42307 | M25: =SystemOperator!AQ445 -> 322.9342151 | N25: =SystemOperator!AR445 -> 347.2272183 | O25: =SystemOperator!AS445 -> 363.8942268 | P25: =SystemOperator!AT445 -> 365.0693109 | Q25: 1681.548041 | R25: 336.3096082
I26: Final proposals allowances (RIIO-2)
D27: ESO | E27: FinalProposals | F27: FM | G27: ESO_FinalProposals_FM | H27: =MAX(H$12:H26) + 1 -> 10 | I27: Fast money | J27: £m 18/19 prices | K27: FMt | L27: =IF($J$12 = $L$14, L40, INDEX(SavedResults!L$16:L$91, MATCH($G27, SavedResults!$G$16:$G$91, 0))) -> 160.92813 | M27: =IF($J$12 = $L$14, M40, INDEX(SavedResults!M$16:M$91, MATCH($G27, SavedResults!$G$16:$G$91, 0))) -> 162.584565 | N27: =IF($J$12 = $L$14, N40, INDEX(SavedResults!N$16:N$91, MATCH($G27, SavedResults!$G$16:$G$91, 0))) -> 167.8286106 | O27: =IF($J$12 = $L$14, O40, INDEX(SavedResults!O$16:O$91, MATCH($G27, SavedResults!$G$16:$G$91, 0))) -> 174.6830437 | P27: =IF($J$12 = $L$14, P40, INDEX(SavedResults!P$16:P$91, MATCH($G27, SavedResults!$G$16:$G$91, 0))) -> 174.6934143 | Q27: =SUM($L27:$P27) -> 840.7177636 | R27: =IFERROR( AVERAGE($L27:$P27), 0) -> 168.1435527
D28: ESO | E28: FinalProposals | F28: PT | G28: ESO_FinalProposals_PT | H28: =MAX(H$12:H27) + 1 -> 11 | I28: Pass-through expenditure | J28: £m 18/19 prices | K28: PTt | L28: =IF($J$12 = $L$14, L41, INDEX(SavedResults!L$16:L$91, MATCH($G28, SavedResults!$G$16:$G$91, 0))) -> 15.24375871 | M28: =IF($J$12 = $L$14, M41, INDEX(SavedResults!M$16:M$91, MATCH($G28, SavedResults!$G$16:$G$91, 0))) -> 10.94139353 | N28: =IF($J$12 = $L$14, N41, INDEX(SavedResults!N$16:N$91, MATCH($G28, SavedResults!$G$16:$G$91, 0))) -> 5.268061383 | O28: =IF($J$12 = $L$14, O41, INDEX(SavedResults!O$16:O$91, MATCH($G28, SavedResults!$G$16:$G$91, 0))) -> 1.471093126 | P28: =IF($J$12 = $L$14, P41, INDEX(SavedResults!P$16:P$91, MATCH($G28, SavedResults!$G$16:$G$91, 0))) -> 1.45697799 | Q28: 34.38128474 | R28: 6.876256948
D29: ESO | E29: FinalProposals | F29: DPN | G29: ESO_FinalProposals_DPN | H29: =MAX(H$12:H28) + 1 -> 12 | I29: RAV depreciation | J29: £m 18/19 prices | K29: DPNt | L29: =IF($J$12 = $L$14, L42, INDEX(SavedResults!L$16:L$91, MATCH($G29, SavedResults!$G$16:$G$91, 0))) -> 51.53456044 | M29: =IF($J$12 = $L$14, M42, INDEX(SavedResults!M$16:M$91, MATCH($G29, SavedResults!$G$16:$G$91, 0))) -> 59.12285959 | N29: =IF($J$12 = $L$14, N42, INDEX(SavedResults!N$16:N$91, MATCH($G29, SavedResults!$G$16:$G$91, 0))) -> 65.18908039 | O29: =IF($J$12 = $L$14, O42, INDEX(SavedResults!O$16:O$91, MATCH($G29, SavedResults!$G$16:$G$91, 0))) -> 71.61017257 | P29: =IF($J$12 = $L$14, P42, INDEX(SavedResults!P$16:P$91, MATCH($G29, SavedResults!$G$16:$G$91, 0))) -> 77.3241035 | Q29: 324.7807765 | R29: 64.9561553
D30: ESO | E30: FinalProposals | F30: RTN | G30: ESO_FinalProposals_RTN | H30: =MAX(H$12:H29) + 1 -> 13 | I30: Return | J30: £m 18/19 prices | K30: RTNt | L30: =IF($J$12 = $L$14, L43, INDEX(SavedResults!L$16:L$91, MATCH($G30, SavedResults!$G$16:$G$91, 0))) -> 8.269155092 | M30: =IF($J$12 = $L$14, M43, INDEX(SavedResults!M$16:M$91, MATCH($G30, SavedResults!$G$16:$G$91, 0))) -> 9.466474786 | N30: =IF($J$12 = $L$14, N43, INDEX(SavedResults!N$16:N$91, MATCH($G30, SavedResults!$G$16:$G$91, 0))) -> 10.41626902 | O30: =IF($J$12 = $L$14, O43, INDEX(SavedResults!O$16:O$91, MATCH($G30, SavedResults!$G$16:$G$91, 0))) -> 11.28503921 | P30: =IF($J$12 = $L$14, P43, INDEX(SavedResults!P$16:P$91, MATCH($G30, SavedResults!$G$16:$G$91, 0))) -> 11.78022728 | Q30: 51.21716539 | R30: 10.24343308
D31: ESO | E31: FinalProposals | F31: EIC | G31: ESO_FinalProposals_EIC | H31: =MAX(H$12:H30) + 1 -> 14 | I31: Equity issuance cost | J31: £m 18/19 prices | K31: EICt | L31: =IF($J$12 = $L$14, L44, INDEX(SavedResults!L$16:L$91, MATCH($G31, SavedResults!$G$16:$G$91, 0))) -> 0.5728360177 | M31: =IF($J$12 = $L$14, M44, INDEX(SavedResults!M$16:M$91, MATCH($G31, SavedResults!$G$16:$G$91, 0))) -> 0 | N31: =IF($J$12 = $L$14, N44, INDEX(SavedResults!N$16:N$91, MATCH($G31, SavedResults!$G$16:$G$91, 0))) -> 0 | O31: =IF($J$12 = $L$14, O44, INDEX(SavedResults!O$16:O$91, MATCH($G31, SavedResults!$G$16:$G$91, 0))) -> 0 | P31: =IF($J$12 = $L$14, P44, INDEX(SavedResults!P$16:P$91, MATCH($G31, SavedResults!$G$16:$G$91, 0))) -> 0 | Q31: 0.5728360177 | R31: 0.1145672035
D32: ESO | E32: FinalProposals | F32: ADF | G32: ESO_FinalProposals_ADF | H32: =MAX(H$12:H31) + 1 -> 15 | I32: Additional funding | J32: £m 18/19 prices | K32: ADFt | L32: =IF($J$12 = $L$14, L45, INDEX(SavedResults!L$16:L$91, MATCH($G32, SavedResults!$G$16:$G$91, 0))) -> 4.560456844 | M32: =IF($J$12 = $L$14, M45, INDEX(SavedResults!M$16:M$91, MATCH($G32, SavedResults!$G$16:$G$91, 0))) -> 4.488736624 | N32: =IF($J$12 = $L$14, N45, INDEX(SavedResults!N$16:N$91, MATCH($G32, SavedResults!$G$16:$G$91, 0))) -> 4.410196246 | O32: =IF($J$12 = $L$14, O45, INDEX(SavedResults!O$16:O$91, MATCH($G32, SavedResults!$G$16:$G$91, 0))) -> 4.326558756 | P32: =IF($J$12 = $L$14, P45, INDEX(SavedResults!P$16:P$91, MATCH($G32, SavedResults!$G$16:$G$91, 0))) -> 4.241867939 | Q32: 22.02781641 | R32: 4.405563282
D33: ESO | E33: FinalProposals | F33: DRS | G33: =D33&"_"&E33&"_"&F33 -> ESO_FinalProposals_DRS | H33: =MAX(H$12:H32) + 1 -> 16 | I33: Directly Remunerated Services adjustment | J33: £m 18/19 prices | K33: DRSt | L33: =IF($J$12 = $L$14, L46, INDEX(SavedResults!L$16:L$91, MATCH($G33, SavedResults!$G$16:$G$91, 0))) -> 0 | M33: =IF($J$12 = $L$14, M46, INDEX(SavedResults!M$16:M$91, MATCH($G33, SavedResults!$G$16:$G$91, 0))) -> 0 | N33: =IF($J$12 = $L$14, N46, INDEX(SavedResults!N$16:N$91, MATCH($G33, SavedResults!$G$16:$G$91, 0))) -> 0 | O33: =IF($J$12 = $L$14, O46, INDEX(SavedResults!O$16:O$91, MATCH($G33, SavedResults!$G$16:$G$91, 0))) -> 0 | P33: =IF($J$12 = $L$14, P46, INDEX(SavedResults!P$16:P$91, MATCH($G33, SavedResults!$G$16:$G$91, 0))) -> 0 | Q33: =SUM($L33:$P33) -> 0 | R33: =IFERROR( AVERAGE($L33:$P33), 0) -> 0
D34: ESO | E34: FinalProposals | F34: ORA | G34: ESO_FinalProposals_ORA | H34: =MAX(H$12:H33) + 1 -> 17 | I34: Other Revenue Allowances | J34: £m 18/19 prices | K34: ORAt | L34: =IF($J$12 = $L$14, L47, INDEX(SavedResults!L$16:L$91, MATCH($G34, SavedResults!$G$16:$G$91, 0))) -> 4.764559379 | M34: =IF($J$12 = $L$14, M47, INDEX(SavedResults!M$16:M$91, MATCH($G34, SavedResults!$G$16:$G$91, 0))) -> 4.5 | N34: =IF($J$12 = $L$14, N47, INDEX(SavedResults!N$16:N$91, MATCH($G34, SavedResults!$G$16:$G$91, 0))) -> 4.5 | O34: =IF($J$12 = $L$14, O47, INDEX(SavedResults!O$16:O$91, MATCH($G34, SavedResults!$G$16:$G$91, 0))) -> 4.5 | P34: =IF($J$12 = $L$14, P47, INDEX(SavedResults!P$16:P$91, MATCH($G34, SavedResults!$G$16:$G$91, 0))) -> 4.5 | Q34: 22.76455938 | R34: 4.552911876
D35: ESO | E35: FinalProposals | F35: ESORI | G35: ESO_FinalProposals_ESORI | H35: =MAX(H$12:H34) + 1 -> 18 | I35: Reporting & Incentive Arrangements | J35: £m 18/19 prices | K35: ESORIt | L35: =IF($J$12 = $L$14, L48, INDEX(SavedResults!L$16:L$91, MATCH($G35, SavedResults!$G$16:$G$91, 0))) -> 0 | M35: =IF($J$12 = $L$14, M48, INDEX(SavedResults!M$16:M$91, MATCH($G35, SavedResults!$G$16:$G$91, 0))) -> 0 | N35: =IF($J$12 = $L$14, N48, INDEX(SavedResults!N$16:N$91, MATCH($G35, SavedResults!$G$16:$G$91, 0))) -> 0 | O35: =IF($J$12 = $L$14, O48, INDEX(SavedResults!O$16:O$91, MATCH($G35, SavedResults!$G$16:$G$91, 0))) -> 0 | P35: =IF($J$12 = $L$14, P48, INDEX(SavedResults!P$16:P$91, MATCH($G35, SavedResults!$G$16:$G$91, 0))) -> 0 | Q35: 0 | R35: 0
D36: ESO | E36: FinalProposals | F36: TAX | G36: ESO_FinalProposals_TAX | H36: =MAX(H$12:H35) + 1 -> 19 | I36: Tax allowance | J36: £m 18/19 prices | K36: TAXt | L36: =IF($J$12 = $L$14, L49, INDEX(SavedResults!L$16:L$91, MATCH($G36, SavedResults!$G$16:$G$91, 0))) -> 9.295855617 | M36: =IF($J$12 = $L$14, M49, INDEX(SavedResults!M$16:M$91, MATCH($G36, SavedResults!$G$16:$G$91, 0))) -> 8.130947166 | N36: =IF($J$12 = $L$14, N49, INDEX(SavedResults!N$16:N$91, MATCH($G36, SavedResults!$G$16:$G$91, 0))) -> 7.267915781 | O36: =IF($J$12 = $L$14, O49, INDEX(SavedResults!O$16:O$91, MATCH($G36, SavedResults!$G$16:$G$91, 0))) -> 6.242403606 | P36: =IF($J$12 = $L$14, P49, INDEX(SavedResults!P$16:P$91, MATCH($G36, SavedResults!$G$16:$G$91, 0))) -> 5.194361501 | Q36: 36.13148367 | R36: 7.226296734
D37: ESO | E37: FinalProposals | F37: TAXA | G37: ESO_FinalProposals_TAXA | H37: =MAX(H$12:H36) + 1 -> 20 | I37: Tax allowance Adjustment | J37: £m 18/19 prices | K37: TAXAt | L37: =IF($J$12 = $L$14, L50, INDEX(SavedResults!L$16:L$91, MATCH($G37, SavedResults!$G$16:$G$91, 0))) -> 0 | M37: =IF($J$12 = $L$14, M50, INDEX(SavedResults!M$16:M$91, MATCH($G37, SavedResults!$G$16:$G$91, 0))) -> 0 | N37: =IF($J$12 = $L$14, N50, INDEX(SavedResults!N$16:N$91, MATCH($G37, SavedResults!$G$16:$G$91, 0))) -> 0 | O37: =IF($J$12 = $L$14, O50, INDEX(SavedResults!O$16:O$91, MATCH($G37, SavedResults!$G$16:$G$91, 0))) -> 0 | P37: =IF($J$12 = $L$14, P50, INDEX(SavedResults!P$16:P$91, MATCH($G37, SavedResults!$G$16:$G$91, 0))) -> 0 | Q37: 0 | R37: 0
D38: ESO | E38: FinalProposals | F38: R | G38: ESO_FinalProposals_R | H38: =MAX(H$12:H37) + 1 -> 21 | I38: Calculated Revenue | J38: £m 18/19 prices | K38: Rt | L38: =IF($J$12 = $L$14, L51, INDEX(SavedResults!L$16:L$91, MATCH($G38, SavedResults!$G$16:$G$91, 0))) -> 255.1693121 | M38: =IF($J$12 = $L$14, M51, INDEX(SavedResults!M$16:M$91, MATCH($G38, SavedResults!$G$16:$G$91, 0))) -> 259.2349767 | N38: =IF($J$12 = $L$14, N51, INDEX(SavedResults!N$16:N$91, MATCH($G38, SavedResults!$G$16:$G$91, 0))) -> 264.8801334 | O38: =IF($J$12 = $L$14, O51, INDEX(SavedResults!O$16:O$91, MATCH($G38, SavedResults!$G$16:$G$91, 0))) -> 274.118311 | P38: =IF($J$12 = $L$14, P51, INDEX(SavedResults!P$16:P$91, MATCH($G38, SavedResults!$G$16:$G$91, 0))) -> 279.1909525 | Q38: 1332.593686 | R38: 266.5187371
I39: Recalculated allowances
D40: ESO | E40: CalculatedRevenue | F40: FM | G40: ESO_CalculatedRevenue_FM | H40: =MAX(H$12:H39) + 1 -> 22 | I40: Fast money | J40: £m 18/19 prices | K40: FMt | L40: =SystemOperator!AP718 -> 174.5475 | M40: =SystemOperator!AQ718 -> 190.9325 | N40: =SystemOperator!AR718 -> 168.1511106 | O40: =SystemOperator!AS718 -> 175.0115437 | P40: =SystemOperator!AT718 -> 175.0344143 | Q40: 883.6770686 | R40: =IFERROR( AVERAGE($L40:$P40), 0) -> 176.7354137
D41: ESO | E41: CalculatedRevenue | F41: PT | G41: ESO_CalculatedRevenue_PT | H41: =MAX(H$12:H40) + 1 -> 23 | I41: Pass-through expenditure | J41: £m 18/19 prices | K41: PTt | L41: =SystemOperator!AP719 -> 17.34472735 | M41: =SystemOperator!AQ719 -> 14.03641111 | N41: =SystemOperator!AR719 -> 5.230989615 | O41: =SystemOperator!AS719 -> 1.433923048 | P41: =SystemOperator!AT719 -> 1.420504483 | Q41: 39.4665556 | R41: 7.893311121
D42: ESO | E42: CalculatedRevenue | F42: DPN | G42: ESO_CalculatedRevenue_DPN | H42: =MAX(H$12:H41) + 1 -> 24 | I42: RAV depreciation | J42: £m 18/19 prices | K42: DPNt | L42: =SystemOperator!AP720 -> 51.32083094 | M42: =SystemOperator!AQ720 -> 60.05635482 | N42: =SystemOperator!AR720 -> 68.25528257 | O42: =SystemOperator!AS720 -> 74.70127074 | P42: =SystemOperator!AT720 -> 80.43920288 | Q42: 334.772942 | R42: 66.95458839
D43: ESO | E43: CalculatedRevenue | F43: RTN | G43: ESO_CalculatedRevenue_RTN | H43: =MAX(H$12:H42) + 1 -> 25 | I43: Return | J43: £m 18/19 prices | K43: RTNt | L43: =SystemOperator!AP721 -> 8.576385519 | M43: =SystemOperator!AQ721 -> 11.59417499 | N43: =SystemOperator!AR721 -> 13.07949487 | O43: =SystemOperator!AS721 -> 13.60478997 | P43: =SystemOperator!AT721 -> 13.66907274 | Q43: 60.52391808 | R43: 12.10478362
D44: ESO | E44: CalculatedRevenue | F44: EIC | G44: ESO_CalculatedRevenue_EIC | H44: =MAX(H$12:H43) + 1 -> 26 | I44: Equity issuance cost | J44: £m 18/19 prices | K44: EICt | L44: =SystemOperator!AP722 -> 0.5545180639 | M44: =SystemOperator!AQ722 -> 0 | N44: =SystemOperator!AR722 -> 0 | O44: =SystemOperator!AS722 -> 0 | P44: =SystemOperator!AT722 -> 0 | Q44: 0.5545180639 | R44: 0.1109036128
D45: ESO | E45: CalculatedRevenue | F45: ADF | G45: ESO_CalculatedRevenue_ADF | H45: =MAX(H$12:H44) + 1 -> 27 | I45: Additional funding | J45: £m 18/19 prices | K45: ADFt | L45: =SystemOperator!AP723 -> 4.442865781 | M45: =SystemOperator!AQ723 -> 4.290017132 | N45: =SystemOperator!AR723 -> 4.187765641 | O45: =SystemOperator!AS723 -> 4.103538287 | P45: =SystemOperator!AT723 -> 4.023026899 | Q45: 21.04721374 | R45: 4.209442748
D46: ESO | E46: CalculatedRevenue | F46: DRS | G46: =D46&"_"&E46&"_"&F46 -> ESO_CalculatedRevenue_DRS | H46: =MAX(H$12:H45) + 1 -> 28 | I46: Directly Remunerated Services adjustment | J46: £m 18/19 prices | K46: DRSt | L46: =SystemOperator!AP725 -> 0 | M46: =SystemOperator!AQ725 -> 0 | N46: =SystemOperator!AR725 -> 0 | O46: =SystemOperator!AS725 -> 0 | P46: =SystemOperator!AT725 -> 0 | Q46: =SUM($L46:$P46) -> 0 | R46: =IFERROR( AVERAGE($L46:$P46), 0) -> 0
D47: ESO | E47: CalculatedRevenue | F47: ORA | G47: ESO_CalculatedRevenue_ORA | H47: =MAX(H$12:H46) + 1 -> 29 | I47: Other Revenue Allowances | J47: £m 18/19 prices | K47: ORAt | L47: =SystemOperator!AP726 -> 6.486739593 | M47: =SystemOperator!AQ726 -> 4.5 | N47: =SystemOperator!AR726 -> 4.5 | O47: =SystemOperator!AS726 -> 4.5 | P47: =SystemOperator!AT726 -> 4.5 | Q47: 24.48673959 | R47: 4.897347919
D48: ESO | E48: CalculatedRevenue | F48: ESORI | G48: ESO_CalculatedRevenue_ESORI | H48: =MAX(H$12:H47) + 1 -> 30 | I48: Reporting & Incentive Arrangements | J48: £m 18/19 prices | K48: ESORIt | L48: =SystemOperator!AP727 -> 4.750078802 | M48: =SystemOperator!AQ727 -> 4.675373541 | N48: =SystemOperator!AR727 -> 0 | O48: =SystemOperator!AS727 -> 0 | P48: =SystemOperator!AT727 -> 0 | Q48: 9.425452343 | R48: 1.885090469
D49: ESO | E49: CalculatedRevenue | F49: TAX | G49: ESO_CalculatedRevenue_TAX | H49: =MAX(H$12:H48) + 1 -> 31 | I49: Tax allowance | J49: £m 18/19 prices | K49: TAXt | L49: =SystemOperator!AP729 -> 9.312233952 | M49: =SystemOperator!AQ729 -> 12.67326462 | N49: =SystemOperator!AR729 -> 9.556979811 | O49: =SystemOperator!AS729 -> 8.287686271 | P49: =SystemOperator!AT729 -> 6.925292525 | Q49: 46.75545718 | R49: 9.351091436
D50: ESO | E50: CalculatedRevenue | F50: TAXA | G50: ESO_CalculatedRevenue_TAXA | H50: =MAX(H$12:H49) + 1 -> 32 | I50: Tax allowance Adjustment | J50: £m 18/19 prices | K50: TAXAt | L50: =SystemOperator!AP730 -> 0 | M50: =SystemOperator!AQ730 -> 0 | N50: =SystemOperator!AR730 -> 0 | O50: =SystemOperator!AS730 -> 0 | P50: =SystemOperator!AT730 -> 0 | Q50: 0 | R50: 0
D51: ESO | E51: CalculatedRevenue | F51: R | G51: ESO_CalculatedRevenue_R | H51: =MAX(H$12:H50) + 1 -> 33 | I51: Calculated Revenue | J51: £m 18/19 prices | K51: Rt | L51: =SUM(L40:L50) -> 277.33588 | M51: 302.7580962 | N51: 272.9616231 | O51: 281.642752 | P51: 286.0115138 | Q51: 1420.709865 | R51: 284.141973
I52: Price Control Revenue
D53: ESO | E53: TotalRevenue | F53: Rnominal | G53: ESO_TotalRevenue_Rnominal | H53: =MAX(H$12:H52) + 1 -> 34 | I53: Calculated Revenue | J53: £m nominal | K53: Rt ∙ (Pt / P2018/19) | L53: =SOIAR!AP10 -> 268.5723689 | M53: =SOIAR!AQ10 -> 338.7489647 | N53: =SOIAR!AR10 ->  | O53: =SOIAR!AS10 ->  | P53: =SOIAR!AT10 ->  | Q53: 607.3213336 | R53: =IFERROR( AVERAGE($L53:$P53), 0) -> 303.6606668
D54: ESO | E54: TotalRevenue | F54: ADJ | G54: ESO_TotalRevenue_ADJ | H54: =MAX(H$12:H53) + 1 -> 35 | I54: Adjustment term | J54: £m nominal | K54: ADJt | L54: =SOIAR!AP11 -> 0 | M54: =SOIAR!AQ11 -> 33.25813244 | N54: =SOIAR!AR11 ->  | O54: =SOIAR!AS11 ->  | P54: =SOIAR!AT11 ->  | Q54: 33.25813244 | R54: 16.62906622
D55: ESO | E55: TotalRevenue | F55: ADJR | G55: ESO_TotalRevenue_ADJR | H55: =MAX(H$12:H54) + 1 -> 36 | I55: Adjusted revenue | J55: £m nominal | K55: Rt ∙ (Pt / P2018/19) + ADJt | L55: =SOIAR!AP12 -> 268.5723689 | M55: =SOIAR!AQ12 -> 372.0070971 | N55: =SOIAR!AR12 -> 312.8675058 | O55: =SOIAR!AS12 -> 329.4437909 | P55: =SOIAR!AT12 -> 341.249338 | Q55: 1624.140101 | R55: 324.8280202
D56: ESO | E56: TotalRevenue | F56: LAR | G56: ESO_TotalRevenue_LAR | H56: =MAX(H$12:H55) + 1 -> 37 | I56: Legacy allowed revenue | J56: £m nominal | K56: SOLARt | L56: =SOIAR!AP14 -> 14.38273773 | M56: =SOIAR!AQ14 -> 11.6214585 | N56: =SOIAR!AR14 -> 0 | O56: =SOIAR!AS14 -> 0 | P56: =SOIAR!AT14 -> 0
D57: ESO | E57: TotalRevenue | F57: AR | G57: ESO_TotalRevenue_AR | H57: =MAX(H$12:H56) + 1 -> 38 | I57: Allowed revenue | J57: £m nominal | K57: ARt | L57: =SOIAR!AP15 -> 282.9551066 | M57: =SOIAR!AQ15 -> 383.6285556 | N57: =SOIAR!AR15 -> 312.8675058 | O57: =SOIAR!AS15 -> 329.4437909 | P57: =SOIAR!AT15 -> 341.249338 | Q57: 1650.144297 | R57: 330.0288594
I58: Inflation rate
D59: ESO | E59: Inflation | F59: 2022 | G59: ESO_Inflation_2022 | H59: =MAX(H$12:H58) + 1 -> 39 | I59: 2022-03-31 | J59: annual % | L59: =IF($I59 = $J$12, SystemOperator!AP$109, IF($I59 < $J$12, INDEX(SavedResults!L$16:L$369, MATCH($G59, SavedResults!$G$16:$G$369, 0)), "")) -> 0.01364606145 | M59: =IF($I59 = $J$12, SystemOperator!AQ$109, IF($I59 < $J$12, INDEX(SavedResults!M$16:M$369, MATCH($G59, SavedResults!$G$16:$G$369, 0)), "")) -> 0.01597781889 | N59: =IF($I59 = $J$12, SystemOperator!AR$109, IF($I59 < $J$12, INDEX(SavedResults!N$16:N$369, MATCH($G59, SavedResults!$G$16:$G$369, 0)), "")) -> 0.01780881685 | O59: =IF($I59 = $J$12, SystemOperator!AS$109, IF($I59 < $J$12, INDEX(SavedResults!O$16:O$369, MATCH($G59, SavedResults!$G$16:$G$369, 0)), "")) -> 0.0193311809 | P59: =IF($I59 = $J$12, SystemOperator!AT$109, IF($I59 < $J$12, INDEX(SavedResults!P$16:P$369, MATCH($G59, SavedResults!$G$16:$G$369, 0)), "")) -> 0.01996545358 | R59: =IFERROR( AVERAGE($L59:$P59), 0) -> 0.01734586633
D60: ESO | E60: Inflation | F60: 2023 | G60: ESO_Inflation_2023 | H60: =MAX(H$12:H59) + 1 -> 40 | I60: 2023-03-31 | J60: annual % | L60: =IF($I60 = $J$12, SystemOperator!AP$109, IF($I60 < $J$12, INDEX(SavedResults!L$16:L$369, MATCH($G60, SavedResults!$G$16:$G$369, 0)), "")) -> 0.0405044305 | M60: =IF($I60 = $J$12, SystemOperator!AQ$109, IF($I60 < $J$12, INDEX(SavedResults!M$16:M$369, MATCH($G60, SavedResults!$G$16:$G$369, 0)), "")) -> 0.03562891362 | N60: =IF($I60 = $J$12, SystemOperator!AR$109, IF($I60 < $J$12, INDEX(SavedResults!N$16:N$369, MATCH($G60, SavedResults!$G$16:$G$369, 0)), "")) -> 0.02441671753 | O60: =IF($I60 = $J$12, SystemOperator!AS$109, IF($I60 < $J$12, INDEX(SavedResults!O$16:O$369, MATCH($G60, SavedResults!$G$16:$G$369, 0)), "")) -> 0.02052554347 | P60: =IF($I60 = $J$12, SystemOperator!AT$109, IF($I60 < $J$12, INDEX(SavedResults!P$16:P$369, MATCH($G60, SavedResults!$G$16:$G$369, 0)), "")) -> 0.02001263978 | R60: 0.02821764898
D61: ESO | E61: Inflation | F61: 2024 | G61: ESO_Inflation_2024 | H61: =MAX(H$12:H60) + 1 -> 41 | I61: 2024-03-31 | J61: annual % | L61: =IF($I61 = $J$12, SystemOperator!AP$109, IF($I61 < $J$12, INDEX(SavedResults!L$16:L$369, MATCH($G61, SavedResults!$G$16:$G$369, 0)), "")) ->  | M61: =IF($I61 = $J$12, SystemOperator!AQ$109, IF($I61 < $J$12, INDEX(SavedResults!M$16:M$369, MATCH($G61, SavedResults!$G$16:$G$369, 0)), "")) ->  | N61: =IF($I61 = $J$12, SystemOperator!AR$109, IF($I61 < $J$12, INDEX(SavedResults!N$16:N$369, MATCH($G61, SavedResults!$G$16:$G$369, 0)), "")) ->  | O61: =IF($I61 = $J$12, SystemOperator!AS$109, IF($I61 < $J$12, INDEX(SavedResults!O$16:O$369, MATCH($G61, SavedResults!$G$16:$G$369, 0)), "")) ->  | P61: =IF($I61 = $J$12, SystemOperator!AT$109, IF($I61 < $J$12, INDEX(SavedResults!P$16:P$369, MATCH($G61, SavedResults!$G$16:$G$369, 0)), "")) ->  | R61: 0
D62: ESO | E62: Inflation | F62: 2025 | G62: ESO_Inflation_2025 | H62: =MAX(H$12:H61) + 1 -> 42 | I62: 2025-03-31 | J62: annual % | L62: =IF($I62 = $J$12, SystemOperator!AP$109, IF($I62 < $J$12, INDEX(SavedResults!L$16:L$369, MATCH($G62, SavedResults!$G$16:$G$369, 0)), "")) ->  | M62: =IF($I62 = $J$12, SystemOperator!AQ$109, IF($I62 < $J$12, INDEX(SavedResults!M$16:M$369, MATCH($G62, SavedResults!$G$16:$G$369, 0)), "")) ->  | N62: =IF($I62 = $J$12, SystemOperator!AR$109, IF($I62 < $J$12, INDEX(SavedResults!N$16:N$369, MATCH($G62, SavedResults!$G$16:$G$369, 0)), "")) ->  | O62: =IF($I62 = $J$12, SystemOperator!AS$109, IF($I62 < $J$12, INDEX(SavedResults!O$16:O$369, MATCH($G62, SavedResults!$G$16:$G$369, 0)), "")) ->  | P62: =IF($I62 = $J$12, SystemOperator!AT$109, IF($I62 < $J$12, INDEX(SavedResults!P$16:P$369, MATCH($G62, SavedResults!$G$16:$G$369, 0)), "")) ->  | R62: 0
D63: ESO | E63: Inflation | F63: 2026 | G63: ESO_Inflation_2026 | H63: =MAX(H$12:H62) + 1 -> 43 | I63: 2026-03-31 | J63: annual % | L63: =IF($I63 = $J$12, SystemOperator!AP$109, IF($I63 < $J$12, INDEX(SavedResults!L$16:L$369, MATCH($G63, SavedResults!$G$16:$G$369, 0)), "")) ->  | M63: =IF($I63 = $J$12, SystemOperator!AQ$109, IF($I63 < $J$12, INDEX(SavedResults!M$16:M$369, MATCH($G63, SavedResults!$G$16:$G$369, 0)), "")) ->  | N63: =IF($I63 = $J$12, SystemOperator!AR$109, IF($I63 < $J$12, INDEX(SavedResults!N$16:N$369, MATCH($G63, SavedResults!$G$16:$G$369, 0)), "")) ->  | O63: =IF($I63 = $J$12, SystemOperator!AS$109, IF($I63 < $J$12, INDEX(SavedResults!O$16:O$369, MATCH($G63, SavedResults!$G$16:$G$369, 0)), "")) ->  | P63: =IF($I63 = $J$12, SystemOperator!AT$109, IF($I63 < $J$12, INDEX(SavedResults!P$16:P$369, MATCH($G63, SavedResults!$G$16:$G$369, 0)), "")) ->  | R63: 0
I64: Calculated revenue | K64: Rt
D65: ESO | E65: R | F65: 2022 | G65: =D65&"_"&E65&"_"&F65 -> ESO_R_2022 | H65: =MAX(H$12:H64) + 1 -> 44 | I65: 2022-03-31 | J65: £m 18/19 prices | L65: =IF($I65 = $J$12, L$51, IF($I65 < $J$12, INDEX(SavedResults!L$16:L$369, MATCH($G65, SavedResults!$G$16:$G$369, 0)), "")) -> 255.1693121 | M65: =IF($I65 = $J$12, M$51, IF($I65 < $J$12, INDEX(SavedResults!M$16:M$369, MATCH($G65, SavedResults!$G$16:$G$369, 0)), "")) -> 259.2349767 | N65: =IF($I65 = $J$12, N$51, IF($I65 < $J$12, INDEX(SavedResults!N$16:N$369, MATCH($G65, SavedResults!$G$16:$G$369, 0)), "")) -> 264.8801334 | O65: =IF($I65 = $J$12, O$51, IF($I65 < $J$12, INDEX(SavedResults!O$16:O$369, MATCH($G65, SavedResults!$G$16:$G$369, 0)), "")) -> 274.118311 | P65: =IF($I65 = $J$12, P$51, IF($I65 < $J$12, INDEX(SavedResults!P$16:P$369, MATCH($G65, SavedResults!$G$16:$G$369, 0)), "")) -> 279.1909525 | Q65: =SUM($L65:$P65) -> 1332.593686 | R65: =IFERROR( AVERAGE($L65:$P65), 0) -> 266.5187371
D66: ESO | E66: R | F66: 2023 | G66: ESO_R_2023 | H66: =MAX(H$12:H65) + 1 -> 45 | I66: 2023-03-31 | J66: £m 18/19 prices | L66: =IF($I66 = $J$12, L$51, IF($I66 < $J$12, INDEX(SavedResults!L$16:L$369, MATCH($G66, SavedResults!$G$16:$G$369, 0)), "")) -> 277.33588 | M66: =IF($I66 = $J$12, M$51, IF($I66 < $J$12, INDEX(SavedResults!M$16:M$369, MATCH($G66, SavedResults!$G$16:$G$369, 0)), "")) -> 302.7580962 | N66: =IF($I66 = $J$12, N$51, IF($I66 < $J$12, INDEX(SavedResults!N$16:N$369, MATCH($G66, SavedResults!$G$16:$G$369, 0)), "")) -> 272.9616231 | O66: =IF($I66 = $J$12, O$51, IF($I66 < $J$12, INDEX(SavedResults!O$16:O$369, MATCH($G66, SavedResults!$G$16:$G$369, 0)), "")) -> 281.642752 | P66: =IF($I66 = $J$12, P$51, IF($I66 < $J$12, INDEX(SavedResults!P$16:P$369, MATCH($G66, SavedResults!$G$16:$G$369, 0)), "")) -> 286.0115138 | Q66: 1420.709865 | R66: 284.141973
D67: ESO | E67: R | F67: 2024 | G67: ESO_R_2024 | H67: =MAX(H$12:H66) + 1 -> 46 | I67: 2024-03-31 | J67: £m 18/19 prices | L67: =IF($I67 = $J$12, L$51, IF($I67 < $J$12, INDEX(SavedResults!L$16:L$369, MATCH($G67, SavedResults!$G$16:$G$369, 0)), "")) ->  | M67: =IF($I67 = $J$12, M$51, IF($I67 < $J$12, INDEX(SavedResults!M$16:M$369, MATCH($G67, SavedResults!$G$16:$G$369, 0)), "")) ->  | N67: =IF($I67 = $J$12, N$51, IF($I67 < $J$12, INDEX(SavedResults!N$16:N$369, MATCH($G67, SavedResults!$G$16:$G$369, 0)), "")) ->  | O67: =IF($I67 = $J$12, O$51, IF($I67 < $J$12, INDEX(SavedResults!O$16:O$369, MATCH($G67, SavedResults!$G$16:$G$369, 0)), "")) ->  | P67: =IF($I67 = $J$12, P$51, IF($I67 < $J$12, INDEX(SavedResults!P$16:P$369, MATCH($G67, SavedResults!$G$16:$G$369, 0)), "")) ->  | Q67: 0 | R67: 0
D68: ESO | E68: R | F68: 2025 | G68: ESO_R_2025 | H68: =MAX(H$12:H67) + 1 -> 47 | I68: 2025-03-31 | J68: £m 18/19 prices | L68: =IF($I68 = $J$12, L$51, IF($I68 < $J$12, INDEX(SavedResults!L$16:L$369, MATCH($G68, SavedResults!$G$16:$G$369, 0)), "")) ->  | M68: =IF($I68 = $J$12, M$51, IF($I68 < $J$12, INDEX(SavedResults!M$16:M$369, MATCH($G68, SavedResults!$G$16:$G$369, 0)), "")) ->  | N68: =IF($I68 = $J$12, N$51, IF($I68 < $J$12, INDEX(SavedResults!N$16:N$369, MATCH($G68, SavedResults!$G$16:$G$369, 0)), "")) ->  | O68: =IF($I68 = $J$12, O$51, IF($I68 < $J$12, INDEX(SavedResults!O$16:O$369, MATCH($G68, SavedResults!$G$16:$G$369, 0)), "")) ->  | P68: =IF($I68 = $J$12, P$51, IF($I68 < $J$12, INDEX(SavedResults!P$16:P$369, MATCH($G68, SavedResults!$G$16:$G$369, 0)), "")) ->  | Q68: 0 | R68: 0
D69: ESO | E69: R | F69: 2026 | G69: ESO_R_2026 | H69: =MAX(H$12:H68) + 1 -> 48 | I69: 2026-03-31 | J69: £m 18/19 prices | L69: =IF($I69 = $J$12, L$51, IF($I69 < $J$12, INDEX(SavedResults!L$16:L$369, MATCH($G69, SavedResults!$G$16:$G$369, 0)), "")) ->  | M69: =IF($I69 = $J$12, M$51, IF($I69 < $J$12, INDEX(SavedResults!M$16:M$369, MATCH($G69, SavedResults!$G$16:$G$369, 0)), "")) ->  | N69: =IF($I69 = $J$12, N$51, IF($I69 < $J$12, INDEX(SavedResults!N$16:N$369, MATCH($G69, SavedResults!$G$16:$G$369, 0)), "")) ->  | O69: =IF($I69 = $J$12, O$51, IF($I69 < $J$12, INDEX(SavedResults!O$16:O$369, MATCH($G69, SavedResults!$G$16:$G$369, 0)), "")) ->  | P69: =IF($I69 = $J$12, P$51, IF($I69 < $J$12, INDEX(SavedResults!P$16:P$369, MATCH($G69, SavedResults!$G$16:$G$369, 0)), "")) ->  | Q69: 0 | R69: 0
I70: Calculated revenue (nominal) | K70: Rt ∙ (Pt / P2018/19)
D71: ESO | E71: Rnominal | F71: 2022 | G71: =D71&"_"&E71&"_"&F71 -> ESO_Rnominal_2022 | H71: =MAX(H$12:H70) + 1 -> 49 | I71: 2022-03-31 | J71: £m nominal | L71: =IF($I71 = $J$12,SOIAR!AP$26, IF($I71 < $J$12, INDEX(SavedResults!L$16:L$369, MATCH($G71, SavedResults!$G$16:$G$369, 0)), "")) -> 268.5723689 | M71: =IF($I71 = $J$12,SOIAR!AQ$26, IF($I71 < $J$12, INDEX(SavedResults!M$16:M$369, MATCH($G71, SavedResults!$G$16:$G$369, 0)), "")) -> 277.2111604 | N71: =IF($I71 = $J$12,SOIAR!AR$26, IF($I71 < $J$12, INDEX(SavedResults!N$16:N$369, MATCH($G71, SavedResults!$G$16:$G$369, 0)), "")) -> 288.292078 | O71: =IF($I71 = $J$12,SOIAR!AS$26, IF($I71 < $J$12, INDEX(SavedResults!O$16:O$369, MATCH($G71, SavedResults!$G$16:$G$369, 0)), "")) -> 304.1141856 | P71: =IF($I71 = $J$12,SOIAR!AT$26, IF($I71 < $J$12, INDEX(SavedResults!P$16:P$369, MATCH($G71, SavedResults!$G$16:$G$369, 0)), "")) -> 315.9260475 | Q71: 1454.11584 | R71: 290.8231681
D72: ESO | E72: Rnominal | F72: 2023 | G72: ESO_Rnominal_2023 | H72: =H71 + 1 -> 50 | I72: 2023-03-31 | J72: £m nominal | L72: =IF($I72 = $J$12,SOIAR!AP$26, IF($I72 < $J$12, INDEX(SavedResults!L$16:L$369, MATCH($G72, SavedResults!$G$16:$G$369, 0)), "")) -> 299.6291784 | M72: =IF($I72 = $J$12,SOIAR!AQ$26, IF($I72 < $J$12, INDEX(SavedResults!M$16:M$369, MATCH($G72, SavedResults!$G$16:$G$369, 0)), "")) -> 338.7489647 | N72: =IF($I72 = $J$12,SOIAR!AR$26, IF($I72 < $J$12, INDEX(SavedResults!N$16:N$369, MATCH($G72, SavedResults!$G$16:$G$369, 0)), "")) -> 312.8675058 | O72: =IF($I72 = $J$12,SOIAR!AS$26, IF($I72 < $J$12, INDEX(SavedResults!O$16:O$369, MATCH($G72, SavedResults!$G$16:$G$369, 0)), "")) -> 329.4437909 | P72: =IF($I72 = $J$12,SOIAR!AT$26, IF($I72 < $J$12, INDEX(SavedResults!P$16:P$369, MATCH($G72, SavedResults!$G$16:$G$369, 0)), "")) -> 341.249338 | Q72: 1621.938778 | R72: 324.3877556
D73: ESO | E73: Rnominal | F73: 2024 | G73: ESO_Rnominal_2024 | H73: =H72 + 1 -> 51 | I73: 2024-03-31 | J73: £m nominal | L73: =IF($I73 = $J$12,SOIAR!AP$26, IF($I73 < $J$12, INDEX(SavedResults!L$16:L$369, MATCH($G73, SavedResults!$G$16:$G$369, 0)), "")) ->  | M73: =IF($I73 = $J$12,SOIAR!AQ$26, IF($I73 < $J$12, INDEX(SavedResults!M$16:M$369, MATCH($G73, SavedResults!$G$16:$G$369, 0)), "")) ->  | N73: =IF($I73 = $J$12,SOIAR!AR$26, IF($I73 < $J$12, INDEX(SavedResults!N$16:N$369, MATCH($G73, SavedResults!$G$16:$G$369, 0)), "")) ->  | O73: =IF($I73 = $J$12,SOIAR!AS$26, IF($I73 < $J$12, INDEX(SavedResults!O$16:O$369, MATCH($G73, SavedResults!$G$16:$G$369, 0)), "")) ->  | P73: =IF($I73 = $J$12,SOIAR!AT$26, IF($I73 < $J$12, INDEX(SavedResults!P$16:P$369, MATCH($G73, SavedResults!$G$16:$G$369, 0)), "")) ->  | Q73: 0 | R73: 0
D74: ESO | E74: Rnominal | F74: 2025 | G74: ESO_Rnominal_2025 | H74: 52 | I74: 2025-03-31 | J74: £m nominal | L74: =IF($I74 = $J$12,SOIAR!AP$26, IF($I74 < $J$12, INDEX(SavedResults!L$16:L$369, MATCH($G74, SavedResults!$G$16:$G$369, 0)), "")) ->  | M74: =IF($I74 = $J$12,SOIAR!AQ$26, IF($I74 < $J$12, INDEX(SavedResults!M$16:M$369, MATCH($G74, SavedResults!$G$16:$G$369, 0)), "")) ->  | N74: =IF($I74 = $J$12,SOIAR!AR$26, IF($I74 < $J$12, INDEX(SavedResults!N$16:N$369, MATCH($G74, SavedResults!$G$16:$G$369, 0)), "")) ->  | O74: =IF($I74 = $J$12,SOIAR!AS$26, IF($I74 < $J$12, INDEX(SavedResults!O$16:O$369, MATCH($G74, SavedResults!$G$16:$G$369, 0)), "")) ->  | P74: =IF($I74 = $J$12,SOIAR!AT$26, IF($I74 < $J$12, INDEX(SavedResults!P$16:P$369, MATCH($G74, SavedResults!$G$16:$G$369, 0)), "")) ->  | Q74: 0 | R74: 0
D75: ESO | E75: Rnominal | F75: 2026 | G75: ESO_Rnominal_2026 | H75: 53 | I75: 2026-03-31 | J75: £m nominal | L75: =IF($I75 = $J$12,SOIAR!AP$26, IF($I75 < $J$12, INDEX(SavedResults!L$16:L$369, MATCH($G75, SavedResults!$G$16:$G$369, 0)), "")) ->  | M75: =IF($I75 = $J$12,SOIAR!AQ$26, IF($I75 < $J$12, INDEX(SavedResults!M$16:M$369, MATCH($G75, SavedResults!$G$16:$G$369, 0)), "")) ->  | N75: =IF($I75 = $J$12,SOIAR!AR$26, IF($I75 < $J$12, INDEX(SavedResults!N$16:N$369, MATCH($G75, SavedResults!$G$16:$G$369, 0)), "")) ->  | O75: =IF($I75 = $J$12,SOIAR!AS$26, IF($I75 < $J$12, INDEX(SavedResults!O$16:O$369, MATCH($G75, SavedResults!$G$16:$G$369, 0)), "")) ->  | P75: =IF($I75 = $J$12,SOIAR!AT$26, IF($I75 < $J$12, INDEX(SavedResults!P$16:P$369, MATCH($G75, SavedResults!$G$16:$G$369, 0)), "")) ->  | Q75: 0 | R75: 0
I76: AIP adjustment term | K76: ADJt
D77: ESO | E77: ADJ | F77: 2022 | G77: ESO_ADJ_2022 | H77: =MAX(H$12:H76) + 1 -> 54 | I77: 2022-03-31 | J77: £m nominal | L77: =IF($I77 = $J$12,SOIAR!AP$27, IF($I77 < $J$12, INDEX(SavedResults!L$16:L$369, MATCH($G77, SavedResults!$G$16:$G$369, 0)), "")) -> 0 | M77: =IF($I77 = $J$12,SOIAR!AQ$27, IF($I77 < $J$12, INDEX(SavedResults!M$16:M$369, MATCH($G77, SavedResults!$G$16:$G$369, 0)), "")) -> 0 | N77: =IF($I77 = $J$12,SOIAR!AR$27, IF($I77 < $J$12, INDEX(SavedResults!N$16:N$369, MATCH($G77, SavedResults!$G$16:$G$369, 0)), "")) -> 0 | O77: =IF($I77 = $J$12,SOIAR!AS$27, IF($I77 < $J$12, INDEX(SavedResults!O$16:O$369, MATCH($G77, SavedResults!$G$16:$G$369, 0)), "")) -> 0 | P77: =IF($I77 = $J$12,SOIAR!AT$27, IF($I77 < $J$12, INDEX(SavedResults!P$16:P$369, MATCH($G77, SavedResults!$G$16:$G$369, 0)), "")) -> 0 | Q77: 0 | R77: 0
D78: ESO | E78: ADJ | F78: 2023 | G78: ESO_ADJ_2023 | H78: =H77 + 1 -> 55 | I78: 2023-03-31 | J78: £m nominal | L78: =IF($I78 = $J$12,SOIAR!AP$27, IF($I78 < $J$12, INDEX(SavedResults!L$16:L$369, MATCH($G78, SavedResults!$G$16:$G$369, 0)), "")) -> 0 | M78: =IF($I78 = $J$12,SOIAR!AQ$27, IF($I78 < $J$12, INDEX(SavedResults!M$16:M$369, MATCH($G78, SavedResults!$G$16:$G$369, 0)), "")) -> 33.25813244 | N78: =IF($I78 = $J$12,SOIAR!AR$27, IF($I78 < $J$12, INDEX(SavedResults!N$16:N$369, MATCH($G78, SavedResults!$G$16:$G$369, 0)), "")) -> 0 | O78: =IF($I78 = $J$12,SOIAR!AS$27, IF($I78 < $J$12, INDEX(SavedResults!O$16:O$369, MATCH($G78, SavedResults!$G$16:$G$369, 0)), "")) -> 0 | P78: =IF($I78 = $J$12,SOIAR!AT$27, IF($I78 < $J$12, INDEX(SavedResults!P$16:P$369, MATCH($G78, SavedResults!$G$16:$G$369, 0)), "")) -> 0 | Q78: 33.25813244 | R78: 6.651626488
D79: ESO | E79: ADJ | F79: 2024 | G79: ESO_ADJ_2024 | H79: =H78 + 1 -> 56 | I79: 2024-03-31 | J79: £m nominal | L79: =IF($I79 = $J$12,SOIAR!AP$27, IF($I79 < $J$12, INDEX(SavedResults!L$16:L$369, MATCH($G79, SavedResults!$G$16:$G$369, 0)), "")) ->  | M79: =IF($I79 = $J$12,SOIAR!AQ$27, IF($I79 < $J$12, INDEX(SavedResults!M$16:M$369, MATCH($G79, SavedResults!$G$16:$G$369, 0)), "")) ->  | N79: =IF($I79 = $J$12,SOIAR!AR$27, IF($I79 < $J$12, INDEX(SavedResults!N$16:N$369, MATCH($G79, SavedResults!$G$16:$G$369, 0)), "")) ->  | O79: =IF($I79 = $J$12,SOIAR!AS$27, IF($I79 < $J$12, INDEX(SavedResults!O$16:O$369, MATCH($G79, SavedResults!$G$16:$G$369, 0)), "")) ->  | P79: =IF($I79 = $J$12,SOIAR!AT$27, IF($I79 < $J$12, INDEX(SavedResults!P$16:P$369, MATCH($G79, SavedResults!$G$16:$G$369, 0)), "")) ->  | Q79: 0 | R79: 0
D80: ESO | E80: ADJ | F80: 2025 | G80: ESO_ADJ_2025 | H80: 57 | I80: 2025-03-31 | J80: £m nominal | L80: =IF($I80 = $J$12,SOIAR!AP$27, IF($I80 < $J$12, INDEX(SavedResults!L$16:L$369, MATCH($G80, SavedResults!$G$16:$G$369, 0)), "")) ->  | M80: =IF($I80 = $J$12,SOIAR!AQ$27, IF($I80 < $J$12, INDEX(SavedResults!M$16:M$369, MATCH($G80, SavedResults!$G$16:$G$369, 0)), "")) ->  | N80: =IF($I80 = $J$12,SOIAR!AR$27, IF($I80 < $J$12, INDEX(SavedResults!N$16:N$369, MATCH($G80, SavedResults!$G$16:$G$369, 0)), "")) ->  | O80: =IF($I80 = $J$12,SOIAR!AS$27, IF($I80 < $J$12, INDEX(SavedResults!O$16:O$369, MATCH($G80, SavedResults!$G$16:$G$369, 0)), "")) ->  | P80: =IF($I80 = $J$12,SOIAR!AT$27, IF($I80 < $J$12, INDEX(SavedResults!P$16:P$369, MATCH($G80, SavedResults!$G$16:$G$369, 0)), "")) ->  | Q80: 0 | R80: 0
D81: ESO | E81: ADJ | F81: 2026 | G81: ESO_ADJ_2026 | H81: 58 | I81: 2026-03-31 | J81: £m nominal | L81: =IF($I81 = $J$12,SOIAR!AP$27, IF($I81 < $J$12, INDEX(SavedResults!L$16:L$369, MATCH($G81, SavedResults!$G$16:$G$369, 0)), "")) ->  | M81: =IF($I81 = $J$12,SOIAR!AQ$27, IF($I81 < $J$12, INDEX(SavedResults!M$16:M$369, MATCH($G81, SavedResults!$G$16:$G$369, 0)), "")) ->  | N81: =IF($I81 = $J$12,SOIAR!AR$27, IF($I81 < $J$12, INDEX(SavedResults!N$16:N$369, MATCH($G81, SavedResults!$G$16:$G$369, 0)), "")) ->  | O81: =IF($I81 = $J$12,SOIAR!AS$27, IF($I81 < $J$12, INDEX(SavedResults!O$16:O$369, MATCH($G81, SavedResults!$G$16:$G$369, 0)), "")) ->  | P81: =IF($I81 = $J$12,SOIAR!AT$27, IF($I81 < $J$12, INDEX(SavedResults!P$16:P$369, MATCH($G81, SavedResults!$G$16:$G$369, 0)), "")) ->  | Q81: 0 | R81: 0
I82: Allowed revenue | K82: ARt
D83: ESO | E83: AR | F83: 2022 | G83: ESO_AR_2022 | H83: =MAX(H$12:H82) + 1 -> 59 | I83: 2022-03-31 | J83: £m nominal | L83: =IF($I83 = $J$12,SOIAR!AP$15, IF($I83 < $J$12, INDEX(SavedResults!L$16:L$369, MATCH($G83, SavedResults!$G$16:$G$369, 0)), "")) -> 282.9542405 | M83: =IF($I83 = $J$12,SOIAR!AQ$15, IF($I83 < $J$12, INDEX(SavedResults!M$16:M$369, MATCH($G83, SavedResults!$G$16:$G$369, 0)), "")) -> 294.7998357 | N83: =IF($I83 = $J$12,SOIAR!AR$15, IF($I83 < $J$12, INDEX(SavedResults!N$16:N$369, MATCH($G83, SavedResults!$G$16:$G$369, 0)), "")) -> 288.292078 | O83: =IF($I83 = $J$12,SOIAR!AS$15, IF($I83 < $J$12, INDEX(SavedResults!O$16:O$369, MATCH($G83, SavedResults!$G$16:$G$369, 0)), "")) -> 304.1141856 | P83: =IF($I83 = $J$12,SOIAR!AT$15, IF($I83 < $J$12, INDEX(SavedResults!P$16:P$369, MATCH($G83, SavedResults!$G$16:$G$369, 0)), "")) -> 315.9260475 | Q83: 1486.086387 | R83: 297.2172775
D84: ESO | E84: AR | F84: 2023 | G84: ESO_AR_2023 | H84: =H83 + 1 -> 60 | I84: 2023-03-31 | J84: £m nominal | L84: =IF($I84 = $J$12,SOIAR!AP$15, IF($I84 < $J$12, INDEX(SavedResults!L$16:L$369, MATCH($G84, SavedResults!$G$16:$G$369, 0)), "")) -> 282.9551066 | M84: =IF($I84 = $J$12,SOIAR!AQ$15, IF($I84 < $J$12, INDEX(SavedResults!M$16:M$369, MATCH($G84, SavedResults!$G$16:$G$369, 0)), "")) -> 383.6285556 | N84: =IF($I84 = $J$12,SOIAR!AR$15, IF($I84 < $J$12, INDEX(SavedResults!N$16:N$369, MATCH($G84, SavedResults!$G$16:$G$369, 0)), "")) -> 312.8675058 | O84: =IF($I84 = $J$12,SOIAR!AS$15, IF($I84 < $J$12, INDEX(SavedResults!O$16:O$369, MATCH($G84, SavedResults!$G$16:$G$369, 0)), "")) -> 329.4437909 | P84: =IF($I84 = $J$12,SOIAR!AT$15, IF($I84 < $J$12, INDEX(SavedResults!P$16:P$369, MATCH($G84, SavedResults!$G$16:$G$369, 0)), "")) -> 341.249338 | Q84: 1650.144297 | R84: 330.0288594
D85: ESO | E85: AR | F85: 2024 | G85: ESO_AR_2024 | H85: =H84 + 1 -> 61 | I85: 2024-03-31 | J85: £m nominal | L85: =IF($I85 = $J$12,SOIAR!AP$15, IF($I85 < $J$12, INDEX(SavedResults!L$16:L$369, MATCH($G85, SavedResults!$G$16:$G$369, 0)), "")) ->  | M85: =IF($I85 = $J$12,SOIAR!AQ$15, IF($I85 < $J$12, INDEX(SavedResults!M$16:M$369, MATCH($G85, SavedResults!$G$16:$G$369, 0)), "")) ->  | N85: =IF($I85 = $J$12,SOIAR!AR$15, IF($I85 < $J$12, INDEX(SavedResults!N$16:N$369, MATCH($G85, SavedResults!$G$16:$G$369, 0)), "")) ->  | O85: =IF($I85 = $J$12,SOIAR!AS$15, IF($I85 < $J$12, INDEX(SavedResults!O$16:O$369, MATCH($G85, SavedResults!$G$16:$G$369, 0)), "")) ->  | P85: =IF($I85 = $J$12,SOIAR!AT$15, IF($I85 < $J$12, INDEX(SavedResults!P$16:P$369, MATCH($G85, SavedResults!$G$16:$G$369, 0)), "")) ->  | Q85: 0 | R85: 0
D86: ESO | E86: AR | F86: 2025 | G86: ESO_AR_2025 | H86: 62 | I86: 2025-03-31 | J86: £m nominal | L86: =IF($I86 = $J$12,SOIAR!AP$15, IF($I86 < $J$12, INDEX(SavedResults!L$16:L$369, MATCH($G86, SavedResults!$G$16:$G$369, 0)), "")) ->  | M86: =IF($I86 = $J$12,SOIAR!AQ$15, IF($I86 < $J$12, INDEX(SavedResults!M$16:M$369, MATCH($G86, SavedResults!$G$16:$G$369, 0)), "")) ->  | N86: =IF($I86 = $J$12,SOIAR!AR$15, IF($I86 < $J$12, INDEX(SavedResults!N$16:N$369, MATCH($G86, SavedResults!$G$16:$G$369, 0)), "")) ->  | O86: =IF($I86 = $J$12,SOIAR!AS$15, IF($I86 < $J$12, INDEX(SavedResults!O$16:O$369, MATCH($G86, SavedResults!$G$16:$G$369, 0)), "")) ->  | P86: =IF($I86 = $J$12,SOIAR!AT$15, IF($I86 < $J$12, INDEX(SavedResults!P$16:P$369, MATCH($G86, SavedResults!$G$16:$G$369, 0)), "")) ->  | Q86: 0 | R86: 0
D87: ESO | E87: AR | F87: 2026 | G87: ESO_AR_2026 | H87: 63 | I87: 2026-03-31 | J87: £m nominal | L87: =IF($I87 = $J$12,SOIAR!AP$15, IF($I87 < $J$12, INDEX(SavedResults!L$16:L$369, MATCH($G87, SavedResults!$G$16:$G$369, 0)), "")) ->  | M87: =IF($I87 = $J$12,SOIAR!AQ$15, IF($I87 < $J$12, INDEX(SavedResults!M$16:M$369, MATCH($G87, SavedResults!$G$16:$G$369, 0)), "")) ->  | N87: =IF($I87 = $J$12,SOIAR!AR$15, IF($I87 < $J$12, INDEX(SavedResults!N$16:N$369, MATCH($G87, SavedResults!$G$16:$G$369, 0)), "")) ->  | O87: =IF($I87 = $J$12,SOIAR!AS$15, IF($I87 < $J$12, INDEX(SavedResults!O$16:O$369, MATCH($G87, SavedResults!$G$16:$G$369, 0)), "")) ->  | P87: =IF($I87 = $J$12,SOIAR!AT$15, IF($I87 < $J$12, INDEX(SavedResults!P$16:P$369, MATCH($G87, SavedResults!$G$16:$G$369, 0)), "")) ->  | Q87: 0 | R87: 0
I88: Operational performance and Return adjustment (not applicable to ESO)
D89: ESO | E89: OPP | F89: TotexOPM | G89: =D89&"_"&E89&"_"&F89 -> ESO_OPP_TotexOPM | H89: =MAX(H$12:H88) + 1 -> 64 | I89: Totex outperformance (operator share) | J89: £m 18/19 prices | Q89: =SUM($L89:$P89) -> 0 | R89: =IFERROR( AVERAGE($L89:$P89), 0) -> 0
D90: ESO | E90: OPP | F90: ODI | G90: ESO_OPP_ODI | H90: =H89 + 1 -> 65 | I90: Output delivery incentives | J90: £m 18/19 prices | Q90: 0 | R90: 0
D91: ESO | E91: OPP | F91: NPVRAV | G91: ESO_OPP_NPVRAV | H91: =H90 + 1 -> 66 | I91: NPV-neutral RAV return base | J91: £m 18/19 prices | L91: =SystemOperator!AP466 -> 251.958786 | M91: =SystemOperator!AQ466 -> 296.6043834 | N91: =SystemOperator!AR466 -> 328.4315069 | O91: =SystemOperator!AS466 -> 348.7290328 | P91: =SystemOperator!AT466 -> 357.7643346 | Q91: 1583.488044 | R91: 316.6976087
B93: End of sheet

Sheet SavedResults
A1: Saved Results
B3: Links to saved results
B4: Note: The "Run_for_one" and "RunForAll" macros save output on the "LiveResults" sheet to points on this sheet designated by named ranges. The hyperlinks below lead to the saved output for each company.
B5: The "LiveResults" sheet recalls values generated in earlier iterations (Final Proposals allowances and recalculated base revenue) from this sheet.
B6: For "LiveResults" to recall data correctly, there must be an equal number of rows between each named ranges marking the start of each company's section. There must also be sufficient rows to hold the output generated on the "LiveResults" sheet.
C8: Values for NGESO
I11: Company | J11: Calculated for MOD year ending | L11: File
I12: NGESO | J12: 2023-03-31 | L12: Re-published ESO PCFM November 2021.xlsm
I14: PCFM year ending | J14: Unit | K14: Licence term (if applicable) | L14: 2022-03-31 | M14: 2023-03-31 | N14: 2024-03-31 | O14: 2025-03-31 | P14: 2026-03-31 | Q14: RIIO-2 Total | R14: RIIO-2 average
I15: Totex
D16: ESO | E16: Totex | F16: SlowMoney | G16: ESO_Totex_SlowMoney | H16: 1 | I16: Slow pot | J16: £m 18/19 prices | L16: 102.9525 | M16: 100.5675 | N16: 92.54828568 | O16: 91.36827928 | P16: 81.614287 | Q16: 469.050852 | R16: 93.81017039
D17: ESO | E17: Totex | F17: FastMoney | G17: ESO_Totex_FastMoney | H17: 2 | I17: Fast pot | J17: £m 18/19 prices | L17: 174.5475 | M17: 190.9325 | N17: 168.1511106 | O17: 175.0115437 | P17: 175.0344143 | Q17: 883.6770686 | R17: 176.7354137
D18: ESO | E18: Totex | F18: PostTIMTotex | G18: ESO_Totex_PostTIMTotex | H18: 3 | I18: Post-TIM totex allowance | J18: £m 18/19 prices | L18: 277.5 | M18: 291.5 | N18: 260.6993963 | O18: 266.379823 | P18: 256.6487013 | Q18: 1352.727921 | R18: 270.5455841
I19: Regulatory Asset Value (RAV)
D20: ESO | E20: RAV | F20: OpeningBeforeTransfers | G20: ESO_RAV_OpeningBeforeTransfers | H20: 4 | I20: Opening asset value (before transfers) | J20: £m 18/19 prices | L20: 211.8184009 | M20: 282.42307 | N20: 322.9342151 | O20: 347.2272183 | P20: 363.8942268 | Q20: 1528.297131 | R20: 305.6594262
D21: ESO | E21: RAV | F21: Transfers | G21: ESO_RAV_Transfers | H21: 5 | I21: Transfers | J21: £m 18/19 prices | L21: 18.973 | M21: 0 | N21: 0 | O21: 0 | P21: 0 | Q21: 18.973 | R21: 3.7946
D22: ESO | E22: RAV | F22: OpeningAfterTransfers | G22: ESO_RAV_OpeningAfterTransfers | H22: 6 | I22: Opening asset value (after transfers) | J22: £m 18/19 prices | L22: 230.7914009 | M22: 282.42307 | N22: 322.9342151 | O22: 347.2272183 | P22: 363.8942268 | Q22: 1547.270131 | R22: 309.4540262
D23: ESO | E23: RAV | F23: Additions | G23: ESO_RAV_Additions | H23: 7 | I23: RAV additions (after disposals) | J23: £m 18/19 prices | L23: 102.9525 | M23: 100.5675 | N23: 92.54828568 | O23: 91.36827928 | P23: 81.614287 | Q23: 469.050852 | R23: 93.81017039
D24: ESO | E24: RAV | F24: Depreciation | G24: ESO_RAV_Depreciation | H24: 8 | I24: Depreciation | J24: £m 18/19 prices | L24: -51.32083094 | M24: -60.05635482 | N24: -68.25528257 | O24: -74.70127074 | P24: -80.43920288 | Q24: -334.772942 | R24: -66.95458839
D25: ESO | E25: RAV | F25: Closing | G25: ESO_RAV_Closing | H25: 9 | I25: Closing asset value | J25: £m 18/19 prices | L25: 282.42307 | M25: 322.9342151 | N25: 347.2272183 | O25: 363.8942268 | P25: 365.0693109 | Q25: 1681.548041 | R25: 336.3096082
I26: Final proposals allowances (RIIO-2)
D27: ESO | E27: FinalProposals | F27: FM | G27: ESO_FinalProposals_FM | H27: 10 | I27: Fast money | J27: £m 18/19 prices | K27: FMt | L27: 160.92813 | M27: 162.584565 | N27: 167.8286106 | O27: 174.6830437 | P27: 174.6934143 | Q27: 840.7177636 | R27: 168.1435527
D28: ESO | E28: FinalProposals | F28: PT | G28: ESO_FinalProposals_PT | H28: 11 | I28: Pass-through expenditure | J28: £m 18/19 prices | K28: PTt | L28: 15.24375871 | M28: 10.94139353 | N28: 5.268061383 | O28: 1.471093126 | P28: 1.45697799 | Q28: 34.38128474 | R28: 6.876256948
D29: ESO | E29: FinalProposals | F29: DPN | G29: ESO_FinalProposals_DPN | H29: 12 | I29: RAV depreciation | J29: £m 18/19 prices | K29: DPNt | L29: 51.53456044 | M29: 59.12285959 | N29: 65.18908039 | O29: 71.61017257 | P29: 77.3241035 | Q29: 324.7807765 | R29: 64.9561553
D30: ESO | E30: FinalProposals | F30: RTN | G30: ESO_FinalProposals_RTN | H30: 13 | I30: Return | J30: £m 18/19 prices | K30: RTNt | L30: 8.269155092 | M30: 9.466474786 | N30: 10.41626902 | O30: 11.28503921 | P30: 11.78022728 | Q30: 51.21716539 | R30: 10.24343308
D31: ESO | E31: FinalProposals | F31: EIC | G31: ESO_FinalProposals_EIC | H31: 14 | I31: Equity issuance cost | J31: £m 18/19 prices | K31: EICt | L31: 0.5728360177 | M31: 0 | N31: 0 | O31: 0 | P31: 0 | Q31: 0.5728360177 | R31: 0.1145672035
D32: ESO | E32: FinalProposals | F32: ADF | G32: ESO_FinalProposals_ADF | H32: 15 | I32: Additional funding | J32: £m 18/19 prices | K32: ADFt | L32: 4.560456844 | M32: 4.488736624 | N32: 4.410196246 | O32: 4.326558756 | P32: 4.241867939 | Q32: 22.02781641 | R32: 4.405563282
D33: ESO | E33: FinalProposals | F33: DRS | G33: ESO_FinalProposals_DRS | H33: 16 | I33: Directly Remunerated Services adjustment | J33: £m 18/19 prices | K33: DRSt | L33: 0 | M33: 0 | N33: 0 | O33: 0 | P33: 0 | Q33: 0 | R33: 0
D34: ESO | E34: FinalProposals | F34: ORA | G34: ESO_FinalProposals_ORA | H34: 17 | I34: Other Revenue Allowances | J34: £m 18/19 prices | K34: ORAt | L34: 4.764559379 | M34: 4.5 | N34: 4.5 | O34: 4.5 | P34: 4.5 | Q34: 22.76455938 | R34: 4.552911876
D35: ESO | E35: FinalProposals | F35: ESORI | G35: ESO_FinalProposals_ESORI | H35: 18 | I35: Reporting & Incentive Arrangements | J35: £m 18/19 prices | K35: ESORIt | L35: 0 | M35: 0 | N35: 0 | O35: 0 | P35: 0 | Q35: 0 | R35: 0
D36: ESO | E36: FinalProposals | F36: TAX | G36: ESO_FinalProposals_TAX | H36: 19 | I36: Tax allowance | J36: £m 18/19 prices | K36: TAXt | L36: 9.295855617 | M36: 8.130947166 | N36: 7.267915781 | O36: 6.242403606 | P36: 5.194361501 | Q36: 36.13148367 | R36: 7.226296734
D37: ESO | E37: FinalProposals | F37: TAXA | G37: ESO_FinalProposals_TAXA | H37: 20 | I37: Tax allowance Adjustment | J37: £m 18/19 prices | K37: TAXAt | L37: 0 | M37: 0 | N37: 0 | O37: 0 | P37: 0 | Q37: 0 | R37: 0
D38: ESO | E38: FinalProposals | F38: R | G38: ESO_FinalProposals_R | H38: 21 | I38: Calculated Revenue | J38: £m 18/19 prices | K38: Rt | L38: 255.1693121 | M38: 259.2349767 | N38: 264.8801334 | O38: 274.118311 | P38: 279.1909525 | Q38: 1332.593686 | R38: 266.5187371
I39: Recalculated allowances
D40: ESO | E40: CalculatedRevenue | F40: FM | G40: ESO_CalculatedRevenue_FM | H40: 22 | I40: Fast money | J40: £m 18/19 prices | K40: FMt | L40: 174.5475 | M40: 190.9325 | N40: 168.1511106 | O40: 175.0115437 | P40: 175.0344143 | Q40: 883.6770686 | R40: 176.7354137
D41: ESO | E41: CalculatedRevenue | F41: PT | G41: ESO_CalculatedRevenue_PT | H41: 23 | I41: Pass-through expenditure | J41: £m 18/19 prices | K41: PTt | L41: 17.34472735 | M41: 14.03641111 | N41: 5.230989615 | O41: 1.433923048 | P41: 1.420504483 | Q41: 39.4665556 | R41: 7.893311121
D42: ESO | E42: CalculatedRevenue | F42: DPN | G42: ESO_CalculatedRevenue_DPN | H42: 24 | I42: RAV depreciation | J42: £m 18/19 prices | K42: DPNt | L42: 51.32083094 | M42: 60.05635482 | N42: 68.25528257 | O42: 74.70127074 | P42: 80.43920288 | Q42: 334.772942 | R42: 66.95458839
D43: ESO | E43: CalculatedRevenue | F43: RTN | G43: ESO_CalculatedRevenue_RTN | H43: 25 | I43: Return | J43: £m 18/19 prices | K43: RTNt | L43: 8.576385519 | M43: 11.59417499 | N43: 13.07949487 | O43: 13.60478997 | P43: 13.66907274 | Q43: 60.52391808 | R43: 12.10478362
D44: ESO | E44: CalculatedRevenue | F44: EIC | G44: ESO_CalculatedRevenue_EIC | H44: 26 | I44: Equity issuance cost | J44: £m 18/19 prices | K44: EICt | L44: 0.5545180639 | M44: 0 | N44: 0 | O44: 0 | P44: 0 | Q44: 0.5545180639 | R44: 0.1109036128
D45: ESO | E45: CalculatedRevenue | F45: ADF | G45: ESO_CalculatedRevenue_ADF | H45: 27 | I45: Additional funding | J45: £m 18/19 prices | K45: ADFt | L45: 4.442865781 | M45: 4.290017132 | N45: 4.187765641 | O45: 4.103538287 | P45: 4.023026899 | Q45: 21.04721374 | R45: 4.209442748
D46: ESO | E46: CalculatedRevenue | F46: DRS | G46: ESO_CalculatedRevenue_DRS | H46: 28 | I46: Directly Remunerated Services adjustment | J46: £m 18/19 prices | K46: DRSt | L46: 0 | M46: 0 | N46: 0 | O46: 0 | P46: 0 | Q46: 0 | R46: 0
D47: ESO | E47: CalculatedRevenue | F47: ORA | G47: ESO_CalculatedRevenue_ORA | H47: 29 | I47: Other Revenue Allowances | J47: £m 18/19 prices | K47: ORAt | L47: 6.486739593 | M47: 4.5 | N47: 4.5 | O47: 4.5 | P47: 4.5 | Q47: 24.48673959 | R47: 4.897347919
D48: ESO | E48: CalculatedRevenue | F48: ESORI | G48: ESO_CalculatedRevenue_ESORI | H48: 30 | I48: Reporting & Incentive Arrangements | J48: £m 18/19 prices | K48: ESORIt | L48: 4.750078802 | M48: 4.675373541 | N48: 0 | O48: 0 | P48: 0 | Q48: 9.425452343 | R48: 1.885090469
D49: ESO | E49: CalculatedRevenue | F49: TAX | G49: ESO_CalculatedRevenue_TAX | H49: 31 | I49: Tax allowance | J49: £m 18/19 prices | K49: TAXt | L49: 9.312233952 | M49: 12.67326462 | N49: 9.556979811 | O49: 8.287686271 | P49: 6.925292525 | Q49: 46.75545718 | R49: 9.351091436
D50: ESO | E50: CalculatedRevenue | F50: TAXA | G50: ESO_CalculatedRevenue_TAXA | H50: 32 | I50: Tax allowance Adjustment | J50: £m 18/19 prices | K50: TAXAt | L50: 0 | M50: 0 | N50: 0 | O50: 0 | P50: 0 | Q50: 0 | R50: 0
D51: ESO | E51: CalculatedRevenue | F51: R | G51: ESO_CalculatedRevenue_R | H51: 33 | I51: Calculated Revenue | J51: £m 18/19 prices | K51: Rt | L51: 277.33588 | M51: 302.7580962 | N51: 272.9616231 | O51: 281.642752 | P51: 286.0115138 | Q51: 1420.709865 | R51: 284.141973
I52: Price Control Revenue
D53: ESO | E53: TotalRevenue | F53: Rnominal | G53: ESO_TotalRevenue_Rnominal | H53: 34 | I53: Calculated Revenue | J53: £m nominal | K53: Rt ∙ (Pt / P2018/19) | L53: 268.5723689 | M53: 338.7489647 | Q53: 607.3213336 | R53: 303.6606668
D54: ESO | E54: TotalRevenue | F54: ADJ | G54: ESO_TotalRevenue_ADJ | H54: 35 | I54: Adjustment term | J54: £m nominal | K54: ADJt | L54: 0 | M54: 33.25813244 | Q54: 33.25813244 | R54: 16.62906622
D55: ESO | E55: TotalRevenue | F55: ADJR | G55: ESO_TotalRevenue_ADJR | H55: 36 | I55: Adjusted revenue | J55: £m nominal | K55: Rt ∙ (Pt / P2018/19) + ADJt | L55: 268.5723689 | M55: 372.0070971 | N55: 312.8675058 | O55: 329.4437909 | P55: 341.249338 | Q55: 1624.140101 | R55: 324.8280202
D56: ESO | E56: TotalRevenue | F56: LAR | G56: ESO_TotalRevenue_LAR | H56: 37 | I56: Legacy allowed revenue | J56: £m nominal | K56: SOLARt | L56: 14.38273773 | M56: 11.6214585 | N56: 0 | O56: 0 | P56: 0
D57: ESO | E57: TotalRevenue | F57: AR | G57: ESO_TotalRevenue_AR | H57: 38 | I57: Allowed revenue | J57: £m nominal | K57: ARt | L57: 282.9551066 | M57: 383.6285556 | N57: 312.8675058 | O57: 329.4437909 | P57: 341.249338 | Q57: 1650.144297 | R57: 330.0288594
I58: Inflation rate
D59: ESO | E59: Inflation | F59: 2022 | G59: ESO_Inflation_2022 | H59: 39 | I59: 2022-03-31 | J59: annual % | L59: 0.01364606145 | M59: 0.01597781889 | N59: 0.01780881685 | O59: 0.0193311809 | P59: 0.01996545358 | R59: 0.01734586633
D60: ESO | E60: Inflation | F60: 2023 | G60: ESO_Inflation_2023 | H60: 40 | I60: 2023-03-31 | J60: annual % | L60: 0.0405044305 | M60: 0.03562891362 | N60: 0.02441671753 | O60: 0.02052554347 | P60: 0.02001263978 | R60: 0.02821764898
D61: ESO | E61: Inflation | F61: 2024 | G61: ESO_Inflation_2024 | H61: 41 | I61: 2024-03-31 | J61: annual % | R61: 0
D62: ESO | E62: Inflation | F62: 2025 | G62: ESO_Inflation_2025 | H62: 42 | I62: 2025-03-31 | J62: annual % | R62: 0
D63: ESO | E63: Inflation | F63: 2026 | G63: ESO_Inflation_2026 | H63: 43 | I63: 2026-03-31 | J63: annual % | R63: 0
I64: Calculated revenue | K64: Rt
D65: ESO | E65: R | F65: 2022 | G65: ESO_R_2022 | H65: 44 | I65: 2022-03-31 | J65: £m 18/19 prices | L65: 255.1693121 | M65: 259.2349767 | N65: 264.8801334 | O65: 274.118311 | P65: 279.1909525 | Q65: 1332.593686 | R65: 266.5187371
D66: ESO | E66: R | F66: 2023 | G66: ESO_R_2023 | H66: 45 | I66: 2023-03-31 | J66: £m 18/19 prices | L66: 277.33588 | M66: 302.7580962 | N66: 272.9616231 | O66: 281.642752 | P66: 286.0115138 | Q66: 1420.709865 | R66: 284.141973
D67: ESO | E67: R | F67: 2024 | G67: ESO_R_2024 | H67: 46 | I67: 2024-03-31 | J67: £m 18/19 prices | Q67: 0 | R67: 0
D68: ESO | E68: R | F68: 2025 | G68: ESO_R_2025 | H68: 47 | I68: 2025-03-31 | J68: £m 18/19 prices | Q68: 0 | R68: 0
D69: ESO | E69: R | F69: 2026 | G69: ESO_R_2026 | H69: 48 | I69: 2026-03-31 | J69: £m 18/19 prices | Q69: 0 | R69: 0
I70: Calculated revenue (nominal) | K70: Rt ∙ (Pt / P2018/19)
D71: ESO | E71: Rnominal | F71: 2022 | G71: ESO_Rnominal_2022 | H71: 49 | I71: 2022-03-31 | J71: £m nominal | L71: 268.5723689 | M71: 277.2111604 | N71: 288.292078 | O71: 304.1141856 | P71: 315.9260475 | Q71: 1454.11584 | R71: 290.8231681
D72: ESO | E72: Rnominal | F72: 2023 | G72: ESO_Rnominal_2023 | H72: 50 | I72: 2023-03-31 | J72: £m nominal | L72: 299.6291784 | M72: 338.7489647 | N72: 312.8675058 | O72: 329.4437909 | P72: 341.249338 | Q72: 1621.938778 | R72: 324.3877556
D73: ESO | E73: Rnominal | F73: 2024 | G73: ESO_Rnominal_2024 | H73: 51 | I73: 2024-03-31 | J73: £m nominal | Q73: 0 | R73: 0
D74: ESO | E74: Rnominal | F74: 2025 | G74: ESO_Rnominal_2025 | H74: 52 | I74: 2025-03-31 | J74: £m nominal | Q74: 0 | R74: 0
D75: ESO | E75: Rnominal | F75: 2026 | G75: ESO_Rnominal_2026 | H75: 53 | I75: 2026-03-31 | J75: £m nominal | Q75: 0 | R75: 0
I76: AIP adjustment term | K76: ADJt
D77: ESO | E77: ADJ | F77: 2022 | G77: ESO_ADJ_2022 | H77: 54 | I77: 2022-03-31 | J77: £m nominal | L77: 0 | M77: 0 | N77: 0 | O77: 0 | P77: 0 | Q77: 0 | R77: 0
D78: ESO | E78: ADJ | F78: 2023 | G78: ESO_ADJ_2023 | H78: 55 | I78: 2023-03-31 | J78: £m nominal | L78: 0 | M78: 33.25813244 | N78: 0 | O78: 0 | P78: 0 | Q78: 33.25813244 | R78: 6.651626488
D79: ESO | E79: ADJ | F79: 2024 | G79: ESO_ADJ_2024 | H79: 56 | I79: 2024-03-31 | J79: £m nominal | Q79: 0 | R79: 0
D80: ESO | E80: ADJ | F80: 2025 | G80: ESO_ADJ_2025 | H80: 57 | I80: 2025-03-31 | J80: £m nominal | Q80: 0 | R80: 0
D81: ESO | E81: ADJ | F81: 2026 | G81: ESO_ADJ_2026 | H81: 58 | I81: 2026-03-31 | J81: £m nominal | Q81: 0 | R81: 0
I82: Allowed revenue | K82: ARt
D83: ESO | E83: AR | F83: 2022 | G83: ESO_AR_2022 | H83: 59 | I83: 2022-03-31 | J83: £m nominal | L83: 282.9542405 | M83: 294.7998357 | N83: 288.292078 | O83: 304.1141856 | P83: 315.9260475 | Q83: 1486.086387 | R83: 297.2172775
D84: ESO | E84: AR | F84: 2023 | G84: ESO_AR_2023 | H84: 60 | I84: 2023-03-31 | J84: £m nominal | L84: 282.9551066 | M84: 383.6285556 | N84: 312.8675058 | O84: 329.4437909 | P84: 341.249338 | Q84: 1650.144297 | R84: 330.0288594
D85: ESO | E85: AR | F85: 2024 | G85: ESO_AR_2024 | H85: 61 | I85: 2024-03-31 | J85: £m nominal | Q85: 0 | R85: 0
D86: ESO | E86: AR | F86: 2025 | G86: ESO_AR_2025 | H86: 62 | I86: 2025-03-31 | J86: £m nominal | Q86: 0 | R86: 0
D87: ESO | E87: AR | F87: 2026 | G87: ESO_AR_2026 | H87: 63 | I87: 2026-03-31 | J87: £m nominal | Q87: 0 | R87: 0
I88: Operational performance and Return adjustment (not applicable to ESO)
D89: ESO | E89: OPP | F89: TotexOPM | G89: ESO_OPP_TotexOPM | H89: 64 | I89: Totex outperformance (operator share) | J89: £m 18/19 prices | Q89: 0 | R89: 0
D90: ESO | E90: OPP | F90: ODI | G90: ESO_OPP_ODI | H90: 65 | I90: Output delivery incentives | J90: £m 18/19 prices | Q90: 0 | R90: 0
D91: ESO | E91: OPP | F91: NPVRAV | G91: ESO_OPP_NPVRAV | H91: 66 | I91: NPV-neutral RAV return base | J91: £m 18/19 prices | L91: 251.958786 | M91: 296.6043834 | N91: 328.4315069 | O91: 348.7290328 | P91: 357.7643346 | Q91: 1583.488044 | R91: 316.6976087
B93: End of sheet

Sheet Annual Inflation
A1: Annual Inflation
E3: Parameter | F3: Licence condition | G3: Units | H3: Term | I3: Constant | AH3: Annual values
V4: 2002-03-31 | W4: 2003-03-31 | X4: 2004-03-31 | Y4: 2005-03-31 | Z4: 2006-03-31 | AA4: 2007-03-31 | AB4: 2008-03-31 | AC4: 2009-03-31 | AD4: 2010-03-31 | AE4: 2011-03-31 | AF4: 2012-03-31 | AG4: 2013-03-31 | AH4: 2014-03-31 | AI4: 2015-03-31 | AJ4: 2016-03-31 | AK4: 2017-03-31 | AL4: 2018-03-31 | AM4: 2019-03-31 | AN4: 2020-03-31 | AO4: 2021-03-31 | AP4: 2022-03-31 | AQ4: 2023-03-31 | AR4: 2024-03-31 | AS4: 2025-03-31 | AT4: 2026-03-31
E6: Calendar year | G6: year | J6: > | V6: =YEAR(V4) -> 2002 | W6: 2003 | X6: 2004 | Y6: 2005 | Z6: 2006 | AA6: 2007 | AB6: 2008 | AC6: 2009 | AD6: 2010 | AE6: 2011 | AF6: 2012 | AG6: 2013 | AH6: 2014 | AI6: 2015 | AJ6: 2016 | AK6: 2017 | AL6: 2018 | AM6: 2019 | AN6: 2020 | AO6: 2021 | AP6: 2022 | AQ6: 2023 | AR6: 2024 | AS6: 2025 | AT6: 2026
E8: Last year of actual data | G8: year | I8: =YEAR( INDEX('Monthly Inflation'!$A:$A, COUNTIF('Monthly Inflation'!$C:$C, "<>"))) -> 2021
E9: Last month of actual data | G9: month | I9: =MONTH( INDEX('Monthly Inflation'!$A:$A, COUNTIF('Monthly Inflation'!$C:$C, "<>"))) -> 6
E11: First month of financial year | G11: month | I11: 4
E12: First day of financial year | G12: day | I12: 1
E14: RIIO-2 real price base | G14: year ending | I14: 2019-03-31
E15: Start of RIIO-2 | G15: year ending | I15: 2022-03-31
B17: Derivation of annual inflation rates and price indices
C19: Financial year average price indices and inflation rates
E21: Outturn/Forecast (financial year average inflation) | G21: text | J21: > | V21: =IF(DATE($I8, $I9, $I12) >= DATE(V$6, $I11 - 1, $I12),"OUTTURN","FORECAST") -> OUTTURN | W21: OUTTURN | X21: OUTTURN | Y21: OUTTURN | Z21: OUTTURN | AA21: OUTTURN | AB21: OUTTURN | AC21: OUTTURN | AD21: OUTTURN | AE21: OUTTURN | AF21: OUTTURN | AG21: OUTTURN | AH21: OUTTURN | AI21: OUTTURN | AJ21: OUTTURN | AK21: OUTTURN | AL21: OUTTURN | AM21: OUTTURN | AN21: OUTTURN | AO21: OUTTURN | AP21: FORECAST | AQ21: FORECAST | AR21: FORECAST | AS21: FORECAST | AT21: FORECAST
E23: Retail Prices Index (financial year average) | G23: index value | H23: RPIt | J23: > | V23: =AVERAGEIFS('Monthly Inflation'!$H:$H,'Monthly Inflation'!$A:$A,">="&DATE(V$6 - 1, $I11, $I12),'Monthly Inflation'!$A:$A,"<="&DATE(V$6, $I11 - 1, $I12)) -> 173.875 | W23: =AVERAGEIFS('Monthly Inflation'!$H:$H,'Monthly Inflation'!$A:$A,">="&DATE(W$6 - 1, $I11, $I12),'Monthly Inflation'!$A:$A,"<="&DATE(W$6, $I11 - 1, $I12)) -> 177.5166667 | X23: =AVERAGEIFS('Monthly Inflation'!$H:$H,'Monthly Inflation'!$A:$A,">="&DATE(X$6 - 1, $I11, $I12),'Monthly Inflation'!$A:$A,"<="&DATE(X$6, $I11 - 1, $I12)) -> 182.475 | Y23: =AVERAGEIFS('Monthly Inflation'!$H:$H,'Monthly Inflation'!$A:$A,">="&DATE(Y$6 - 1, $I11, $I12),'Monthly Inflation'!$A:$A,"<="&DATE(Y$6, $I11 - 1, $I12)) -> 188.15 | Z23: =AVERAGEIFS('Monthly Inflation'!$H:$H,'Monthly Inflation'!$A:$A,">="&DATE(Z$6 - 1, $I11, $I12),'Monthly Inflation'!$A:$A,"<="&DATE(Z$6, $I11 - 1, $I12)) -> 193.1083333 | AA23: =AVERAGEIFS('Monthly Inflation'!$H:$H,'Monthly Inflation'!$A:$A,">="&DATE(AA$6 - 1, $I11, $I12),'Monthly Inflation'!$A:$A,"<="&DATE(AA$6, $I11 - 1, $I12)) -> 200.3166667 | AB23: =AVERAGEIFS('Monthly Inflation'!$H:$H,'Monthly Inflation'!$A:$A,">="&DATE(AB$6 - 1, $I11, $I12),'Monthly Inflation'!$A:$A,"<="&DATE(AB$6, $I11 - 1, $I12)) -> 208.5916667 | AC23: =AVERAGEIFS('Monthly Inflation'!$H:$H,'Monthly Inflation'!$A:$A,">="&DATE(AC$6 - 1, $I11, $I12),'Monthly Inflation'!$A:$A,"<="&DATE(AC$6, $I11 - 1, $I12)) -> 214.7833333 | AD23: =AVERAGEIFS('Monthly Inflation'!$H:$H,'Monthly Inflation'!$A:$A,">="&DATE(AD$6 - 1, $I11, $I12),'Monthly Inflation'!$A:$A,"<="&DATE(AD$6, $I11 - 1, $I12)) -> 215.7666667 | AE23: =AVERAGEIFS('Monthly Inflation'!$H:$H,'Monthly Inflation'!$A:$A,">="&DATE(AE$6 - 1, $I11, $I12),'Monthly Inflation'!$A:$A,"<="&DATE(AE$6, $I11 - 1, $I12)) -> 226.475 | AF23: =AVERAGEIFS('Monthly Inflation'!$H:$H,'Monthly Inflation'!$A:$A,">="&DATE(AF$6 - 1, $I11, $I12),'Monthly Inflation'!$A:$A,"<="&DATE(AF$6, $I11 - 1, $I12)) -> 237.3416667 | AG23: =AVERAGEIFS('Monthly Inflation'!$H:$H,'Monthly Inflation'!$A:$A,">="&DATE(AG$6 - 1, $I11, $I12),'Monthly Inflation'!$A:$A,"<="&DATE(AG$6, $I11 - 1, $I12)) -> 244.675 | AH23: =AVERAGEIFS('Monthly Inflation'!$H:$H,'Monthly Inflation'!$A:$A,">="&DATE(AH$6 - 1, $I11, $I12),'Monthly Inflation'!$A:$A,"<="&DATE(AH$6, $I11 - 1, $I12)) -> 251.7333333 | AI23: =AVERAGEIFS('Monthly Inflation'!$H:$H,'Monthly Inflation'!$A:$A,">="&DATE(AI$6 - 1, $I11, $I12),'Monthly Inflation'!$A:$A,"<="&DATE(AI$6, $I11 - 1, $I12)) -> 256.6666667 | AJ23: =AVERAGEIFS('Monthly Inflation'!$H:$H,'Monthly Inflation'!$A:$A,">="&DATE(AJ$6 - 1, $I11, $I12),'Monthly Inflation'!$A:$A,"<="&DATE(AJ$6, $I11 - 1, $I12)) -> 259.4333333 | AK23: =AVERAGEIFS('Monthly Inflation'!$H:$H,'Monthly Inflation'!$A:$A,">="&DATE(AK$6 - 1, $I11, $I12),'Monthly Inflation'!$A:$A,"<="&DATE(AK$6, $I11 - 1, $I12)) -> 264.9916667 | AL23: =AVERAGEIFS('Monthly Inflation'!$H:$H,'Monthly Inflation'!$A:$A,">="&DATE(AL$6 - 1, $I11, $I12),'Monthly Inflation'!$A:$A,"<="&DATE(AL$6, $I11 - 1, $I12)) -> 274.9083333 | AM23: =AVERAGEIFS('Monthly Inflation'!$H:$H,'Monthly Inflation'!$A:$A,">="&DATE(AM$6 - 1, $I11, $I12),'Monthly Inflation'!$A:$A,"<="&DATE(AM$6, $I11 - 1, $I12)) -> 283.3083333 | AN23: =AVERAGEIFS('Monthly Inflation'!$H:$H,'Monthly Inflation'!$A:$A,">="&DATE(AN$6 - 1, $I11, $I12),'Monthly Inflation'!$A:$A,"<="&DATE(AN$6, $I11 - 1, $I12)) -> 290.6416667 | AO23: =AVERAGEIFS('Monthly Inflation'!$H:$H,'Monthly Inflation'!$A:$A,">="&DATE(AO$6 - 1, $I11, $I12),'Monthly Inflation'!$A:$A,"<="&DATE(AO$6, $I11 - 1, $I12)) -> 294.1666667 | AP23: =AVERAGEIFS('Monthly Inflation'!$H:$H,'Monthly Inflation'!$A:$A,">="&DATE(AP$6 - 1, $I11, $I12),'Monthly Inflation'!$A:$A,"<="&DATE(AP$6, $I11 - 1, $I12)) -> 308.2475298 | AQ23: =AVERAGEIFS('Monthly Inflation'!$H:$H,'Monthly Inflation'!$A:$A,">="&DATE(AQ$6 - 1, $I11, $I12),'Monthly Inflation'!$A:$A,"<="&DATE(AQ$6, $I11 - 1, $I12)) -> 322.1742484 | AR23: =AVERAGEIFS('Monthly Inflation'!$H:$H,'Monthly Inflation'!$A:$A,">="&DATE(AR$6 - 1, $I11, $I12),'Monthly Inflation'!$A:$A,"<="&DATE(AR$6, $I11 - 1, $I12)) -> 332.7117672 | AS23: =AVERAGEIFS('Monthly Inflation'!$H:$H,'Monthly Inflation'!$A:$A,">="&DATE(AS$6 - 1, $I11, $I12),'Monthly Inflation'!$A:$A,"<="&DATE(AS$6, $I11 - 1, $I12)) -> 342.0979774 | AT23: =AVERAGEIFS('Monthly Inflation'!$H:$H,'Monthly Inflation'!$A:$A,">="&DATE(AT$6 - 1, $I11, $I12),'Monthly Inflation'!$A:$A,"<="&DATE(AT$6, $I11 - 1, $I12)) -> 351.8693076
E24: RPI inflation (financial year average) | G24: annual % | J24: > | W24: =W23/V23-1 -> 0.02094416487 | X24: 0.02793164961 | Y24: 0.03110015071 | Z24: 0.02635308708 | AA24: 0.03732792474 | AB24: 0.04130959314 | AC24: 0.02968319284 | AD24: 0.004578257158 | AE24: 0.04962922911 | AF24: 0.04798174927 | AG24: 0.03089779151 | AH24: =AH23/AG23-1 -> 0.02884779129 | AI24: =AI23/AH23-1 -> 0.01959745763 | AJ24: 0.01077922078 | AK24: 0.02142490042 | AL24: 0.03742256046 | AM24: 0.03055563976 | AN24: 0.02588463688 | AO24: 0.01212833673 | AP24: 0.04786695668 | AQ24: 0.045180309 | AR24: 0.03270751427 | AS24: 0.02821123608 | AT24: 0.02856295792
E26: Consumer Prices Index incl. housing costs (financial year average) | G26: index value | H26: CPIHt | J26: > | V26: =AVERAGEIFS('Monthly Inflation'!$G:$G,'Monthly Inflation'!$A:$A,">="&DATE(V$6-1,$I11, $I12),'Monthly Inflation'!$A:$A,"<="&DATE(V$6,$I11-1,$I12)) -> 74.86666667 | W26: =AVERAGEIFS('Monthly Inflation'!$G:$G,'Monthly Inflation'!$A:$A,">="&DATE(W$6-1,$I11, $I12),'Monthly Inflation'!$A:$A,"<="&DATE(W$6,$I11-1,$I12)) -> 75.95833333 | X26: =AVERAGEIFS('Monthly Inflation'!$G:$G,'Monthly Inflation'!$A:$A,">="&DATE(X$6-1,$I11, $I12),'Monthly Inflation'!$A:$A,"<="&DATE(X$6,$I11-1,$I12)) -> 76.975 | Y26: =AVERAGEIFS('Monthly Inflation'!$G:$G,'Monthly Inflation'!$A:$A,">="&DATE(Y$6-1,$I11, $I12),'Monthly Inflation'!$A:$A,"<="&DATE(Y$6,$I11-1,$I12)) -> 78.125 | Z26: =AVERAGEIFS('Monthly Inflation'!$G:$G,'Monthly Inflation'!$A:$A,">="&DATE(Z$6-1,$I11, $I12),'Monthly Inflation'!$A:$A,"<="&DATE(Z$6,$I11-1,$I12)) -> 79.825 | AA26: =AVERAGEIFS('Monthly Inflation'!$G:$G,'Monthly Inflation'!$A:$A,">="&DATE(AA$6-1,$I11, $I12),'Monthly Inflation'!$A:$A,"<="&DATE(AA$6,$I11-1,$I12)) -> 81.91666667 | AB26: =AVERAGEIFS('Monthly Inflation'!$G:$G,'Monthly Inflation'!$A:$A,">="&DATE(AB$6-1,$I11, $I12),'Monthly Inflation'!$A:$A,"<="&DATE(AB$6,$I11-1,$I12)) -> 83.825 | AC26: =AVERAGEIFS('Monthly Inflation'!$G:$G,'Monthly Inflation'!$A:$A,">="&DATE(AC$6-1,$I11, $I12),'Monthly Inflation'!$A:$A,"<="&DATE(AC$6,$I11-1,$I12)) -> 86.85833333 | AD26: =AVERAGEIFS('Monthly Inflation'!$G:$G,'Monthly Inflation'!$A:$A,">="&DATE(AD$6-1,$I11, $I12),'Monthly Inflation'!$A:$A,"<="&DATE(AD$6,$I11-1,$I12)) -> 88.43333333 | AE26: =AVERAGEIFS('Monthly Inflation'!$G:$G,'Monthly Inflation'!$A:$A,">="&DATE(AE$6-1,$I11, $I12),'Monthly Inflation'!$A:$A,"<="&DATE(AE$6,$I11-1,$I12)) -> 90.90833333 | AF26: =AVERAGEIFS('Monthly Inflation'!$G:$G,'Monthly Inflation'!$A:$A,">="&DATE(AF$6-1,$I11, $I12),'Monthly Inflation'!$A:$A,"<="&DATE(AF$6,$I11-1,$I12)) -> 94.30833333 | AG26: =AVERAGEIFS('Monthly Inflation'!$G:$G,'Monthly Inflation'!$A:$A,">="&DATE(AG$6-1,$I11, $I12),'Monthly Inflation'!$A:$A,"<="&DATE(AG$6,$I11-1,$I12)) -> 96.58333333 | AH26: =AVERAGEIFS('Monthly Inflation'!$G:$G,'Monthly Inflation'!$A:$A,">="&DATE(AH$6-1,$I11, $I12),'Monthly Inflation'!$A:$A,"<="&DATE(AH$6,$I11-1,$I12)) -> 98.6 | AI26: =AVERAGEIFS('Monthly Inflation'!$G:$G,'Monthly Inflation'!$A:$A,">="&DATE(AI$6-1,$I11, $I12),'Monthly Inflation'!$A:$A,"<="&DATE(AI$6,$I11-1,$I12)) -> 99.725 | AJ26: =AVERAGEIFS('Monthly Inflation'!$G:$G,'Monthly Inflation'!$A:$A,">="&DATE(AJ$6-1,$I11, $I12),'Monthly Inflation'!$A:$A,"<="&DATE(AJ$6,$I11-1,$I12)) -> 100.1666667 | AK26: =AVERAGEIFS('Monthly Inflation'!$G:$G,'Monthly Inflation'!$A:$A,">="&DATE(AK$6-1,$I11, $I12),'Monthly Inflation'!$A:$A,"<="&DATE(AK$6,$I11-1,$I12)) -> 101.5416667 | AL26: =AVERAGEIFS('Monthly Inflation'!$G:$G,'Monthly Inflation'!$A:$A,">="&DATE(AL$6-1,$I11, $I12),'Monthly Inflation'!$A:$A,"<="&DATE(AL$6,$I11-1,$I12)) -> 104.2166667 | AM26: =AVERAGEIFS('Monthly Inflation'!$G:$G,'Monthly Inflation'!$A:$A,">="&DATE(AM$6-1,$I11, $I12),'Monthly Inflation'!$A:$A,"<="&DATE(AM$6,$I11-1,$I12)) -> 106.4333333 | AN26: =AVERAGEIFS('Monthly Inflation'!$G:$G,'Monthly Inflation'!$A:$A,">="&DATE(AN$6-1,$I11, $I12),'Monthly Inflation'!$A:$A,"<="&DATE(AN$6,$I11-1,$I12)) -> 108.2416667 | AO26: =AVERAGEIFS('Monthly Inflation'!$G:$G,'Monthly Inflation'!$A:$A,">="&DATE(AO$6-1,$I11, $I12),'Monthly Inflation'!$A:$A,"<="&DATE(AO$6,$I11-1,$I12)) -> 109.1083333 | AP26: =AVERAGEIFS('Monthly Inflation'!$G:$G,'Monthly Inflation'!$A:$A,">="&DATE(AP$6-1,$I11, $I12),'Monthly Inflation'!$A:$A,"<="&DATE(AP$6,$I11-1,$I12)) -> 112.6578762 | AQ26: =AVERAGEIFS('Monthly Inflation'!$G:$G,'Monthly Inflation'!$A:$A,">="&DATE(AQ$6-1,$I11, $I12),'Monthly Inflation'!$A:$A,"<="&DATE(AQ$6,$I11-1,$I12)) -> 116.671754 | AR26: =AVERAGEIFS('Monthly Inflation'!$G:$G,'Monthly Inflation'!$A:$A,">="&DATE(AR$6-1,$I11, $I12),'Monthly Inflation'!$A:$A,"<="&DATE(AR$6,$I11-1,$I12)) -> 119.5204952 | AS26: =AVERAGEIFS('Monthly Inflation'!$G:$G,'Monthly Inflation'!$A:$A,">="&DATE(AS$6-1,$I11, $I12),'Monthly Inflation'!$A:$A,"<="&DATE(AS$6,$I11-1,$I12)) -> 121.9737183 | AT26: =AVERAGEIFS('Monthly Inflation'!$G:$G,'Monthly Inflation'!$A:$A,">="&DATE(AT$6-1,$I11, $I12),'Monthly Inflation'!$A:$A,"<="&DATE(AT$6,$I11-1,$I12)) -> 124.4147344
E27: CPIH inflation (financial year average) | G27: annual % | J27: > | W27: =W26/V26-1 -> 0.01458147818 | X27: 0.01338453099 | Y27: 0.01493991556 | Z27: 0.02176 | AA27: 0.02620315273 | AB27: 0.02329603255 | AC27: 0.03618649965 | AD27: 0.01813297515 | AE27: 0.02798718432 | AF27: 0.03740031167 | AG27: 0.0241230008 | AH27: =AH26/AG26-1 -> 0.02088006903 | AI27: =AI26/AH26-1 -> 0.01140973631 | AJ27: 0.004428845993 | AK27: 0.01372712146 | AL27: 0.02634386541 | AM27: 0.0212697905 | AN27: 0.01699029126 | AO27: 0.008006774963 | AP27: 0.03253228038 | AQ27: 0.03562891362 | AR27: 0.02441671753 | AS27: 0.02052554347 | AT27: 0.02001263978
E29: Combined RPI-CPIH price index (financial year average) | G29: index value | H29: PIt | J29: > | V29: =AVERAGEIFS('Monthly Inflation'!$I:$I,'Monthly Inflation'!$A:$A,">="&DATE(V$6-1, $I11, $I12),'Monthly Inflation'!$A:$A,"<="&DATE(V$6, $I11 - 1, $I12)) -> 173.875 | W29: =AVERAGEIFS('Monthly Inflation'!$I:$I,'Monthly Inflation'!$A:$A,">="&DATE(W$6-1, $I11, $I12),'Monthly Inflation'!$A:$A,"<="&DATE(W$6, $I11 - 1, $I12)) -> 177.5166667 | X29: =AVERAGEIFS('Monthly Inflation'!$I:$I,'Monthly Inflation'!$A:$A,">="&DATE(X$6-1, $I11, $I12),'Monthly Inflation'!$A:$A,"<="&DATE(X$6, $I11 - 1, $I12)) -> 182.475 | Y29: =AVERAGEIFS('Monthly Inflation'!$I:$I,'Monthly Inflation'!$A:$A,">="&DATE(Y$6-1, $I11, $I12),'Monthly Inflation'!$A:$A,"<="&DATE(Y$6, $I11 - 1, $I12)) -> 188.15 | Z29: =AVERAGEIFS('Monthly Inflation'!$I:$I,'Monthly Inflation'!$A:$A,">="&DATE(Z$6-1, $I11, $I12),'Monthly Inflation'!$A:$A,"<="&DATE(Z$6, $I11 - 1, $I12)) -> 193.1083333 | AA29: =AVERAGEIFS('Monthly Inflation'!$I:$I,'Monthly Inflation'!$A:$A,">="&DATE(AA$6-1, $I11, $I12),'Monthly Inflation'!$A:$A,"<="&DATE(AA$6, $I11 - 1, $I12)) -> 200.3166667 | AB29: =AVERAGEIFS('Monthly Inflation'!$I:$I,'Monthly Inflation'!$A:$A,">="&DATE(AB$6-1, $I11, $I12),'Monthly Inflation'!$A:$A,"<="&DATE(AB$6, $I11 - 1, $I12)) -> 208.5916667 | AC29: =AVERAGEIFS('Monthly Inflation'!$I:$I,'Monthly Inflation'!$A:$A,">="&DATE(AC$6-1, $I11, $I12),'Monthly Inflation'!$A:$A,"<="&DATE(AC$6, $I11 - 1, $I12)) -> 214.7833333 | AD29: =AVERAGEIFS('Monthly Inflation'!$I:$I,'Monthly Inflation'!$A:$A,">="&DATE(AD$6-1, $I11, $I12),'Monthly Inflation'!$A:$A,"<="&DATE(AD$6, $I11 - 1, $I12)) -> 215.7666667 | AE29: =AVERAGEIFS('Monthly Inflation'!$I:$I,'Monthly Inflation'!$A:$A,">="&DATE(AE$6-1, $I11, $I12),'Monthly Inflation'!$A:$A,"<="&DATE(AE$6, $I11 - 1, $I12)) -> 226.475 | AF29: =AVERAGEIFS('Monthly Inflation'!$I:$I,'Monthly Inflation'!$A:$A,">="&DATE(AF$6-1, $I11, $I12),'Monthly Inflation'!$A:$A,"<="&DATE(AF$6, $I11 - 1, $I12)) -> 237.3416667 | AG29: =AVERAGEIFS('Monthly Inflation'!$I:$I,'Monthly Inflation'!$A:$A,">="&DATE(AG$6-1, $I11, $I12),'Monthly Inflation'!$A:$A,"<="&DATE(AG$6, $I11 - 1, $I12)) -> 244.675 | AH29: =AVERAGEIFS('Monthly Inflation'!$I:$I,'Monthly Inflation'!$A:$A,">="&DATE(AH$6-1, $I11, $I12),'Monthly Inflation'!$A:$A,"<="&DATE(AH$6, $I11 - 1, $I12)) -> 251.7333333 | AI29: =AVERAGEIFS('Monthly Inflation'!$I:$I,'Monthly Inflation'!$A:$A,">="&DATE(AI$6-1, $I11, $I12),'Monthly Inflation'!$A:$A,"<="&DATE(AI$6, $I11 - 1, $I12)) -> 256.6666667 | AJ29: =AVERAGEIFS('Monthly Inflation'!$I:$I,'Monthly Inflation'!$A:$A,">="&DATE(AJ$6-1, $I11, $I12),'Monthly Inflation'!$A:$A,"<="&DATE(AJ$6, $I11 - 1, $I12)) -> 259.4333333 | AK29: =AVERAGEIFS('Monthly Inflation'!$I:$I,'Monthly Inflation'!$A:$A,">="&DATE(AK$6-1, $I11, $I12),'Monthly Inflation'!$A:$A,"<="&DATE(AK$6, $I11 - 1, $I12)) -> 264.9916667 | AL29: =AVERAGEIFS('Monthly Inflation'!$I:$I,'Monthly Inflation'!$A:$A,">="&DATE(AL$6-1, $I11, $I12),'Monthly Inflation'!$A:$A,"<="&DATE(AL$6, $I11 - 1, $I12)) -> 274.9083333 | AM29: =AVERAGEIFS('Monthly Inflation'!$I:$I,'Monthly Inflation'!$A:$A,">="&DATE(AM$6-1, $I11, $I12),'Monthly Inflation'!$A:$A,"<="&DATE(AM$6, $I11 - 1, $I12)) -> 283.3083333 | AN29: =AVERAGEIFS('Monthly Inflation'!$I:$I,'Monthly Inflation'!$A:$A,">="&DATE(AN$6-1, $I11, $I12),'Monthly Inflation'!$A:$A,"<="&DATE(AN$6, $I11 - 1, $I12)) -> 290.6416667 | AO29: =AVERAGEIFS('Monthly Inflation'!$I:$I,'Monthly Inflation'!$A:$A,">="&DATE(AO$6-1, $I11, $I12),'Monthly Inflation'!$A:$A,"<="&DATE(AO$6, $I11 - 1, $I12)) -> 294.1666667 | AP29: =AVERAGEIFS('Monthly Inflation'!$I:$I,'Monthly Inflation'!$A:$A,">="&DATE(AP$6-1, $I11, $I12),'Monthly Inflation'!$A:$A,"<="&DATE(AP$6, $I11 - 1, $I12)) -> 306.08172 | AQ29: =AVERAGEIFS('Monthly Inflation'!$I:$I,'Monthly Inflation'!$A:$A,">="&DATE(AQ$6-1, $I11, $I12),'Monthly Inflation'!$A:$A,"<="&DATE(AQ$6, $I11 - 1, $I12)) -> 316.9870791 | AR29: =AVERAGEIFS('Monthly Inflation'!$I:$I,'Monthly Inflation'!$A:$A,">="&DATE(AR$6-1, $I11, $I12),'Monthly Inflation'!$A:$A,"<="&DATE(AR$6, $I11 - 1, $I12)) -> 324.7268631 | AS29: =AVERAGEIFS('Monthly Inflation'!$I:$I,'Monthly Inflation'!$A:$A,">="&DATE(AS$6-1, $I11, $I12),'Monthly Inflation'!$A:$A,"<="&DATE(AS$6, $I11 - 1, $I12)) -> 331.3920584 | AT29: =AVERAGEIFS('Monthly Inflation'!$I:$I,'Monthly Inflation'!$A:$A,">="&DATE(AT$6-1, $I11, $I12),'Monthly Inflation'!$A:$A,"<="&DATE(AT$6, $I11 - 1, $I12)) -> 338.0240883
E30: Combined RPI-CPIH inflation (financial year average) | G30: annual % | J30: > | W30: =W29/V29-1 -> 0.02094416487 | X30: 0.02793164961 | Y30: 0.03110015071 | Z30: 0.02635308708 | AA30: 0.03732792474 | AB30: 0.04130959314 | AC30: 0.02968319284 | AD30: 0.004578257158 | AE30: 0.04962922911 | AF30: 0.04798174927 | AG30: 0.03089779151 | AH30: =AH29/AG29-1 -> 0.02884779129 | AI30: =AI29/AH29-1 -> 0.01959745763 | AJ30: 0.01077922078 | AK30: 0.02142490042 | AL30: 0.03742256046 | AM30: 0.03055563976 | AN30: 0.02588463688 | AO30: 0.01212833673 | AP30: 0.0405044305 | AQ30: =AQ29/AP29-1 -> 0.03562891362 | AR30: =AR29/AQ29-1 -> 0.02441671753 | AS30: 0.02052554347 | AT30: 0.02001263978
E32: Combined RPI-CPIH real to nominal prices conversion factor | G32: scalar | J32: > | V32: =V29/INDEX($V$29:$AT$29,MATCH($I$14,$V$4:$AT$4,0)) -> 0.6137306233 | W32: 0.6265846986 | X32: 0.6440862429 | Y32: 0.6641174221 | Z32: 0.6816189664 | AA32: 0.7070623879 | AB32: 0.7362708474 | AC32: 0.758125717 | AD32: 0.7615966115 | AE32: 0.7993940642 | AF32: 0.8377503897 | AG32: 0.8636350266 | AH32: 0.8885489896 | AI32: 0.9059622908 | AJ32: 0.9157278583 | AK32: 0.9353472365 | AL32: 0.970350325 | AM32: 1 | AN32: 1.025884637 | AO32: 1.038326911 | AP32: 1.080383751 | AQ32: 1.118876651 | AR32: 1.146195946 | AS32: 1.169722241 | AT32: 1.19313147
E34: Long term CPIH inflation forecast | G34: annual % | H34: LTCPIHt | AP34: 0.02 | AQ34: 0.02 | AR34: 0.02 | AS34: 0.02 | AT34: 0.02
C36: Financial year end price index
E38: Outturn/Forecast (financial year start inflation) | G38: text | V38: =IF(DATE($I8, $I9, $I12) >= DATE(V$6 - 1, $I11, $I12),"OUTTURN","FORECAST") -> OUTTURN | W38: =IF(DATE($I8, $I9, $I12) >= DATE(W$6 - 1, $I11, $I12),"OUTTURN","FORECAST") -> OUTTURN | X38: OUTTURN | Y38: OUTTURN | Z38: OUTTURN | AA38: OUTTURN | AB38: OUTTURN | AC38: OUTTURN | AD38: OUTTURN | AE38: OUTTURN | AF38: OUTTURN | AG38: OUTTURN | AH38: OUTTURN | AI38: OUTTURN | AJ38: OUTTURN | AK38: OUTTURN | AL38: OUTTURN | AM38: OUTTURN | AN38: OUTTURN | AO38: OUTTURN | AP38: OUTTURN | AQ38: FORECAST | AR38: FORECAST | AS38: FORECAST | AT38: FORECAST
E39: Combined RPI-CPIH price index (financial year start) | G39: index value | V39: =AVERAGEIFS('Monthly Inflation'!$I:$I,'Monthly Inflation'!$A:$A,">="&DATE(V$6 - 1, $I11 - 1, $I12),'Monthly Inflation'!$A:$A,"<="&DATE(V$6 - 1, $I11, $I12)) -> 172.65 | W39: =AVERAGEIFS('Monthly Inflation'!$I:$I,'Monthly Inflation'!$A:$A,">="&DATE(W$6 - 1, $I11 - 1, $I12),'Monthly Inflation'!$A:$A,"<="&DATE(W$6 - 1, $I11, $I12)) -> 175.1 | X39: =AVERAGEIFS('Monthly Inflation'!$I:$I,'Monthly Inflation'!$A:$A,">="&DATE(X$6 - 1, $I11 - 1, $I12),'Monthly Inflation'!$A:$A,"<="&DATE(X$6 - 1, $I11, $I12)) -> 180.55 | Y39: =AVERAGEIFS('Monthly Inflation'!$I:$I,'Monthly Inflation'!$A:$A,">="&DATE(Y$6 - 1, $I11 - 1, $I12),'Monthly Inflation'!$A:$A,"<="&DATE(Y$6 - 1, $I11, $I12)) -> 185.15 | Z39: =AVERAGEIFS('Monthly Inflation'!$I:$I,'Monthly Inflation'!$A:$A,">="&DATE(Z$6 - 1, $I11 - 1, $I12),'Monthly Inflation'!$A:$A,"<="&DATE(Z$6 - 1, $I11, $I12)) -> 191.05 | AA39: =AVERAGEIFS('Monthly Inflation'!$I:$I,'Monthly Inflation'!$A:$A,">="&DATE(AA$6 - 1, $I11 - 1, $I12),'Monthly Inflation'!$A:$A,"<="&DATE(AA$6 - 1, $I11, $I12)) -> 195.75 | AB39: =AVERAGEIFS('Monthly Inflation'!$I:$I,'Monthly Inflation'!$A:$A,">="&DATE(AB$6 - 1, $I11 - 1, $I12),'Monthly Inflation'!$A:$A,"<="&DATE(AB$6 - 1, $I11, $I12)) -> 204.9 | AC39: =AVERAGEIFS('Monthly Inflation'!$I:$I,'Monthly Inflation'!$A:$A,">="&DATE(AC$6 - 1, $I11 - 1, $I12),'Monthly Inflation'!$A:$A,"<="&DATE(AC$6 - 1, $I11, $I12)) -> 213.05 | AD39: =AVERAGEIFS('Monthly Inflation'!$I:$I,'Monthly Inflation'!$A:$A,">="&DATE(AD$6 - 1, $I11 - 1, $I12),'Monthly Inflation'!$A:$A,"<="&DATE(AD$6 - 1, $I11, $I12)) -> 211.4 | AE39: =AVERAGEIFS('Monthly Inflation'!$I:$I,'Monthly Inflation'!$A:$A,">="&DATE(AE$6 - 1, $I11 - 1, $I12),'Monthly Inflation'!$A:$A,"<="&DATE(AE$6 - 1, $I11, $I12)) -> 221.75 | AF39: =AVERAGEIFS('Monthly Inflation'!$I:$I,'Monthly Inflation'!$A:$A,">="&DATE(AF$6 - 1, $I11 - 1, $I12),'Monthly Inflation'!$A:$A,"<="&DATE(AF$6 - 1, $I11, $I12)) -> 233.45 | AG39: =AVERAGEIFS('Monthly Inflation'!$I:$I,'Monthly Inflation'!$A:$A,">="&DATE(AG$6 - 1, $I11 - 1, $I12),'Monthly Inflation'!$A:$A,"<="&DATE(AG$6 - 1, $I11, $I12)) -> 241.65 | AH39: =AVERAGEIFS('Monthly Inflation'!$I:$I,'Monthly Inflation'!$A:$A,">="&DATE(AH$6 - 1, $I11 - 1, $I12),'Monthly Inflation'!$A:$A,"<="&DATE(AH$6 - 1, $I11, $I12)) -> 249.1 | AI39: =AVERAGEIFS('Monthly Inflation'!$I:$I,'Monthly Inflation'!$A:$A,">="&DATE(AI$6 - 1, $I11 - 1, $I12),'Monthly Inflation'!$A:$A,"<="&DATE(AI$6 - 1, $I11, $I12)) -> 255.25 | AJ39: =AVERAGEIFS('Monthly Inflation'!$I:$I,'Monthly Inflation'!$A:$A,">="&DATE(AJ$6 - 1, $I11 - 1, $I12),'Monthly Inflation'!$A:$A,"<="&DATE(AJ$6 - 1, $I11, $I12)) -> 257.55 | AK39: =AVERAGEIFS('Monthly Inflation'!$I:$I,'Monthly Inflation'!$A:$A,">="&DATE(AK$6 - 1, $I11 - 1, $I12),'Monthly Inflation'!$A:$A,"<="&DATE(AK$6 - 1, $I11, $I12)) -> 261.25 | AL39: =AVERAGEIFS('Monthly Inflation'!$I:$I,'Monthly Inflation'!$A:$A,">="&DATE(AL$6 - 1, $I11 - 1, $I12),'Monthly Inflation'!$A:$A,"<="&DATE(AL$6 - 1, $I11, $I12)) -> 269.95 | AM39: =AVERAGEIFS('Monthly Inflation'!$I:$I,'Monthly Inflation'!$A:$A,">="&DATE(AM$6 - 1, $I11 - 1, $I12),'Monthly Inflation'!$A:$A,"<="&DATE(AM$6 - 1, $I11, $I12)) -> 279 | AN39: =AVERAGEIFS('Monthly Inflation'!$I:$I,'Monthly Inflation'!$A:$A,">="&DATE(AN$6 - 1, $I11 - 1, $I12),'Monthly Inflation'!$A:$A,"<="&DATE(AN$6 - 1, $I11, $I12)) -> 286.65 | AO39: =AVERAGEIFS('Monthly Inflation'!$I:$I,'Monthly Inflation'!$A:$A,">="&DATE(AO$6 - 1, $I11 - 1, $I12),'Monthly Inflation'!$A:$A,"<="&DATE(AO$6 - 1, $I11, $I12)) -> 292.6 | AP39: =AVERAGEIFS('Monthly Inflation'!$I:$I,'Monthly Inflation'!$A:$A,">="&DATE(AP$6 - 1, $I11 - 1, $I12),'Monthly Inflation'!$A:$A,"<="&DATE(AP$6 - 1, $I11, $I12)) -> 298.4236326 | AQ39: =AVERAGEIFS('Monthly Inflation'!$I:$I,'Monthly Inflation'!$A:$A,">="&DATE(AQ$6 - 1, $I11 - 1, $I12),'Monthly Inflation'!$A:$A,"<="&DATE(AQ$6 - 1, $I11, $I12)) -> 312.1743975 | AR39: =AVERAGEIFS('Monthly Inflation'!$I:$I,'Monthly Inflation'!$A:$A,">="&DATE(AR$6 - 1, $I11 - 1, $I12),'Monthly Inflation'!$A:$A,"<="&DATE(AR$6 - 1, $I11, $I12)) -> 321.123285 | AS39: =AVERAGEIFS('Monthly Inflation'!$I:$I,'Monthly Inflation'!$A:$A,">="&DATE(AS$6 - 1, $I11 - 1, $I12),'Monthly Inflation'!$A:$A,"<="&DATE(AS$6 - 1, $I11, $I12)) -> 328.0848843 | AT39: =AVERAGEIFS('Monthly Inflation'!$I:$I,'Monthly Inflation'!$A:$A,">="&DATE(AT$6 - 1, $I11 - 1, $I12),'Monthly Inflation'!$A:$A,"<="&DATE(AT$6 - 1, $I11, $I12)) -> 334.6884038
E41: Outturn/Forecast (financial year end inflation) | G41: text | J41: > | V41: =IF(DATE($I8, $I9, $I12) >= DATE(V$6, I$11, I$12),"OUTTURN","FORECAST") -> OUTTURN | W41: =IF(DATE($I8, $I9, $I12) >= DATE(W$6, J$11, J$12),"OUTTURN","FORECAST") -> OUTTURN | X41: =IF(DATE($I8, $I9, $I12) >= DATE(X$6, K$11, K$12),"OUTTURN","FORECAST") -> OUTTURN | Y41: =IF(DATE($I8, $I9, $I12) >= DATE(Y$6, L$11, L$12),"OUTTURN","FORECAST") -> OUTTURN | Z41: =IF(DATE($I8, $I9, $I12) >= DATE(Z$6, M$11, M$12),"OUTTURN","FORECAST") -> OUTTURN | AA41: =IF(DATE($I8, $I9, $I12) >= DATE(AA$6, N$11, N$12),"OUTTURN","FORECAST") -> OUTTURN | AB41: =IF(DATE($I8, $I9, $I12) >= DATE(AB$6, O$11, O$12),"OUTTURN","FORECAST") -> OUTTURN | AC41: =IF(DATE($I8, $I9, $I12) >= DATE(AC$6, P$11, P$12),"OUTTURN","FORECAST") -> OUTTURN | AD41: =IF(DATE($I8, $I9, $I12) >= DATE(AD$6, Q$11, Q$12),"OUTTURN","FORECAST") -> OUTTURN | AE41: =IF(DATE($I8, $I9, $I12) >= DATE(AE$6, R$11, R$12),"OUTTURN","FORECAST") -> OUTTURN | AF41: =IF(DATE($I8, $I9, $I12) >= DATE(AF$6, S$11, S$12),"OUTTURN","FORECAST") -> OUTTURN | AG41: =IF(DATE($I8, $I9, $I12) >= DATE(AG$6, T$11, T$12),"OUTTURN","FORECAST") -> OUTTURN | AH41: =IF(DATE($I8, $I9, $I12) >= DATE(AH$6, U$11, U$12),"OUTTURN","FORECAST") -> OUTTURN | AI41: =IF(DATE($I8, $I9, $I12) >= DATE(AI$6, V$11, V$12),"OUTTURN","FORECAST") -> OUTTURN | AJ41: =IF(DATE($I8, $I9, $I12) >= DATE(AJ$6, W$11, W$12),"OUTTURN","FORECAST") -> OUTTURN | AK41: =IF(DATE($I8, $I9, $I12) >= DATE(AK$6, X$11, X$12),"OUTTURN","FORECAST") -> OUTTURN | AL41: =IF(DATE($I8, $I9, $I12) >= DATE(AL$6, Y$11, Y$12),"OUTTURN","FORECAST") -> OUTTURN | AM41: =IF(DATE($I8, $I9, $I12) >= DATE(AM$6, Z$11, Z$12),"OUTTURN","FORECAST") -> OUTTURN | AN41: =IF(DATE($I8, $I9, $I12) >= DATE(AN$6, AA$11, AA$12),"OUTTURN","FORECAST") -> OUTTURN | AO41: =IF(DATE($I8, $I9, $I12) >= DATE(AO$6, AB$11, AB$12),"OUTTURN","FORECAST") -> OUTTURN | AP41: =IF(DATE($I8, $I9, $I12) >= DATE(AP$6, AC$11, AC$12),"OUTTURN","FORECAST") -> FORECAST | AQ41: =IF(DATE($I8, $I9, $I12) >= DATE(AQ$6, AD$11, AD$12),"OUTTURN","FORECAST") -> FORECAST | AR41: =IF(DATE($I8, $I9, $I12) >= DATE(AR$6, AE$11, AE$12),"OUTTURN","FORECAST") -> FORECAST | AS41: =IF(DATE($I8, $I9, $I12) >= DATE(AS$6, AF$11, AF$12),"OUTTURN","FORECAST") -> FORECAST | AT41: =IF(DATE($I8, $I9, $I12) >= DATE(AT$6, AG$11, AG$12),"OUTTURN","FORECAST") -> FORECAST
E42: Combined RPI-CPIH price index (financial year end) | G42: index value | J42: > | V42: =AVERAGEIFS('Monthly Inflation'!$I:$I,'Monthly Inflation'!$A:$A,">="&DATE(V$6,$I11 - 1, $I12),'Monthly Inflation'!$A:$A,"<="&DATE(V$6, $I11, $I12)) -> 175.1 | W42: =AVERAGEIFS('Monthly Inflation'!$I:$I,'Monthly Inflation'!$A:$A,">="&DATE(W$6,$I11 - 1, $I12),'Monthly Inflation'!$A:$A,"<="&DATE(W$6, $I11, $I12)) -> 180.55 | X42: =AVERAGEIFS('Monthly Inflation'!$I:$I,'Monthly Inflation'!$A:$A,">="&DATE(X$6,$I11 - 1, $I12),'Monthly Inflation'!$A:$A,"<="&DATE(X$6, $I11, $I12)) -> 185.15 | Y42: =AVERAGEIFS('Monthly Inflation'!$I:$I,'Monthly Inflation'!$A:$A,">="&DATE(Y$6,$I11 - 1, $I12),'Monthly Inflation'!$A:$A,"<="&DATE(Y$6, $I11, $I12)) -> 191.05 | Z42: =AVERAGEIFS('Monthly Inflation'!$I:$I,'Monthly Inflation'!$A:$A,">="&DATE(Z$6,$I11 - 1, $I12),'Monthly Inflation'!$A:$A,"<="&DATE(Z$6, $I11, $I12)) -> 195.75 | AA42: =AVERAGEIFS('Monthly Inflation'!$I:$I,'Monthly Inflation'!$A:$A,">="&DATE(AA$6,$I11 - 1, $I12),'Monthly Inflation'!$A:$A,"<="&DATE(AA$6, $I11, $I12)) -> 204.9 | AB42: =AVERAGEIFS('Monthly Inflation'!$I:$I,'Monthly Inflation'!$A:$A,">="&DATE(AB$6,$I11 - 1, $I12),'Monthly Inflation'!$A:$A,"<="&DATE(AB$6, $I11, $I12)) -> 213.05 | AC42: =AVERAGEIFS('Monthly Inflation'!$I:$I,'Monthly Inflation'!$A:$A,">="&DATE(AC$6,$I11 - 1, $I12),'Monthly Inflation'!$A:$A,"<="&DATE(AC$6, $I11, $I12)) -> 211.4 | AD42: =AVERAGEIFS('Monthly Inflation'!$I:$I,'Monthly Inflation'!$A:$A,">="&DATE(AD$6,$I11 - 1, $I12),'Monthly Inflation'!$A:$A,"<="&DATE(AD$6, $I11, $I12)) -> 221.75 | AE42: =AVERAGEIFS('Monthly Inflation'!$I:$I,'Monthly Inflation'!$A:$A,">="&DATE(AE$6,$I11 - 1, $I12),'Monthly Inflation'!$A:$A,"<="&DATE(AE$6, $I11, $I12)) -> 233.45 | AF42: =AVERAGEIFS('Monthly Inflation'!$I:$I,'Monthly Inflation'!$A:$A,">="&DATE(AF$6,$I11 - 1, $I12),'Monthly Inflation'!$A:$A,"<="&DATE(AF$6, $I11, $I12)) -> 241.65 | AG42: =AVERAGEIFS('Monthly Inflation'!$I:$I,'Monthly Inflation'!$A:$A,">="&DATE(AG$6,$I11 - 1, $I12),'Monthly Inflation'!$A:$A,"<="&DATE(AG$6, $I11, $I12)) -> 249.1 | AH42: =AVERAGEIFS('Monthly Inflation'!$I:$I,'Monthly Inflation'!$A:$A,">="&DATE(AH$6,$I11 - 1, $I12),'Monthly Inflation'!$A:$A,"<="&DATE(AH$6, $I11, $I12)) -> 255.25 | AI42: =AVERAGEIFS('Monthly Inflation'!$I:$I,'Monthly Inflation'!$A:$A,">="&DATE(AI$6,$I11 - 1, $I12),'Monthly Inflation'!$A:$A,"<="&DATE(AI$6, $I11, $I12)) -> 257.55 | AJ42: =AVERAGEIFS('Monthly Inflation'!$I:$I,'Monthly Inflation'!$A:$A,">="&DATE(AJ$6,$I11 - 1, $I12),'Monthly Inflation'!$A:$A,"<="&DATE(AJ$6, $I11, $I12)) -> 261.25 | AK42: =AVERAGEIFS('Monthly Inflation'!$I:$I,'Monthly Inflation'!$A:$A,">="&DATE(AK$6,$I11 - 1, $I12),'Monthly Inflation'!$A:$A,"<="&DATE(AK$6, $I11, $I12)) -> 269.95 | AL42: =AVERAGEIFS('Monthly Inflation'!$I:$I,'Monthly Inflation'!$A:$A,">="&DATE(AL$6,$I11 - 1, $I12),'Monthly Inflation'!$A:$A,"<="&DATE(AL$6, $I11, $I12)) -> 279 | AM42: =AVERAGEIFS('Monthly Inflation'!$I:$I,'Monthly Inflation'!$A:$A,">="&DATE(AM$6,$I11 - 1, $I12),'Monthly Inflation'!$A:$A,"<="&DATE(AM$6, $I11, $I12)) -> 286.65 | AN42: =AVERAGEIFS('Monthly Inflation'!$I:$I,'Monthly Inflation'!$A:$A,">="&DATE(AN$6,$I11 - 1, $I12),'Monthly Inflation'!$A:$A,"<="&DATE(AN$6, $I11, $I12)) -> 292.6 | AO42: =AVERAGEIFS('Monthly Inflation'!$I:$I,'Monthly Inflation'!$A:$A,">="&DATE(AO$6,$I11 - 1, $I12),'Monthly Inflation'!$A:$A,"<="&DATE(AO$6, $I11, $I12)) -> 298.4236326 | AP42: =AVERAGEIFS('Monthly Inflation'!$I:$I,'Monthly Inflation'!$A:$A,">="&DATE(AP$6,$I11 - 1, $I12),'Monthly Inflation'!$A:$A,"<="&DATE(AP$6, $I11, $I12)) -> 312.1743975 | AQ42: =AVERAGEIFS('Monthly Inflation'!$I:$I,'Monthly Inflation'!$A:$A,">="&DATE(AQ$6,$I11 - 1, $I12),'Monthly Inflation'!$A:$A,"<="&DATE(AQ$6, $I11, $I12)) -> 321.123285 | AR42: =AVERAGEIFS('Monthly Inflation'!$I:$I,'Monthly Inflation'!$A:$A,">="&DATE(AR$6,$I11 - 1, $I12),'Monthly Inflation'!$A:$A,"<="&DATE(AR$6, $I11, $I12)) -> 328.0848843 | AS42: =AVERAGEIFS('Monthly Inflation'!$I:$I,'Monthly Inflation'!$A:$A,">="&DATE(AS$6,$I11 - 1, $I12),'Monthly Inflation'!$A:$A,"<="&DATE(AS$6, $I11, $I12)) -> 334.6884038 | AT42: =AVERAGEIFS('Monthly Inflation'!$I:$I,'Monthly Inflation'!$A:$A,">="&DATE(AT$6,$I11 - 1, $I12),'Monthly Inflation'!$A:$A,"<="&DATE(AT$6, $I11, $I12)) -> 341.1004943
E44: Combined real to nominal prices conversion factor (financial year start) | G44: scalar | V44: =V39/INDEX($V$29:$AT$29,MATCH($I$14,$V$4:$AT$4,0)) -> 0.6094067124 | W44: =W39/INDEX($V$29:$AT$29,MATCH($I$14,$V$4:$AT$4,0)) -> 0.6180545342 | X44: =X39/INDEX($V$29:$AT$29,MATCH($I$14,$V$4:$AT$4,0)) -> 0.6372915257 | Y44: 0.6535282525 | Z44: 0.6743536194 | AA44: 0.6909433185 | AB44: 0.7232402859 | AC44: 0.7520075301 | AD44: 0.7461834868 | AE44: 0.782716122 | AF44: 0.8240138836 | AG44: 0.8529576139 | AH44: 0.8792540518 | AI44: 0.9009618496 | AJ44: 0.909080213 | AK44: 0.9221401888 | AL44: 0.9528487808 | AM44: 0.9847927758 | AN44: 1.011795158 | AO44: 1.032797012 | AP44: 1.053352823 | AQ44: 1.101889217 | AR44: 1.133476313 | AS44: 1.158048831 | AT44: 1.181357427
E45: Combined real to nominal prices conversion factor (financial year end) | G45: scalar | J45: > | V45: =V42/INDEX($V$29:$AT$29,MATCH($I$14,$V$4:$AT$4,0)) -> 0.6180545342 | W45: 0.6372915257 | X45: 0.6535282525 | Y45: 0.6743536194 | Z45: 0.6909433185 | AA45: 0.7232402859 | AB45: 0.7520075301 | AC45: 0.7461834868 | AD45: 0.782716122 | AE45: 0.8240138836 | AF45: 0.8529576139 | AG45: 0.8792540518 | AH45: 0.9009618496 | AI45: 0.909080213 | AJ45: 0.9221401888 | AK45: 0.9528487808 | AL45: 0.9847927758 | AM45: 1.011795158 | AN45: 1.032797012 | AO45: 1.053352823 | AP45: 1.101889217 | AQ45: 1.133476313 | AR45: 1.158048831 | AS45: 1.181357427 | AT45: 1.203990332
C47: Inflation forecasts for monthly rates forecasting
E49: RPI inflation forecast (calendar year) | G49: scalar | H49: CYRPIFt | AM49: 2.562888459 | AN49: 1.503347126 | AO49: 3.581093785 | AP49: 4.966476438 | AQ49: 3.434274347 | AR49: 2.817130707 | AS49: 2.789574914 | AT49: 3
E50: RPI inflation forecast (financial year) | G50: annual % | AN50: =0.75*(AM49/100)+0.25*(AN49/100) -> 0.02298003126 | AO50: 0.02022783791 | AP50: 0.03927439448 | AQ50: 0.04583425915 | AR50: 0.03279988437 | AS50: 0.02810241759 | AT50: 0.02842181185
E52: CPI inflation forecast (calendar year) | G52: scalar | H52: CYCPIFt | AM52: 1.791020587 | AN52: 0.8506540282 | AO52: 2.348558358 | AP52: 3.985165712 | AQ52: 2.574383684 | AR52: 2.06121159 | AS52: 2 | AT52: 2
E53: CPI inflation forecast (financial year) | G53: annual % | AN53: =0.75*(AM52/100)+0.25*(AN52/100) -> 0.01555928947 | AO53: 0.01225130111 | AP53: 0.02757710196 | AQ53: 0.03632470205 | AR53: 0.02446090661 | AS53: 0.02045908692 | AT53: 0.02
B55: End of sheet

Sheet Monthly Inflation
A1: Year-Month | B1: FYE | C1: CPIH Outturn | D1: RPI Outturn | E1: CPI % forecast | F1: RPI % forecast | G1: CPIH | H1: RPI | I1: Price Index
A2: 1999-04-01 | B2: =IF(MONTH(A2)>=4,YEAR(A2)+1,YEAR(A2)) -> 2000 | C2: 72.6 | D2: 165.2 | E2: =IF($A2<DATE(2018,7,1),"-",INDEX('Annual Inflation'!$AM$52:$AT$52, MATCH(YEAR(EOMONTH($A2,6)), 'Annual Inflation'!$AM$6:$AT$6, 0))/100) -> - | F2: =IF($A2<DATE(2018,7,1),"-",INDEX('Annual Inflation'!$AM$49:$AT$49, MATCH(YEAR(EOMONTH($A2,6)), 'Annual Inflation'!$AM$6:$AT$6, 0))/100) -> - | G2: =IF(ISBLANK(C2),G1*((1+E2)^(1/12)),C2) -> 72.6 | H2: =IF(ISBLANK(D2),H1*((1+F2)^(1/12)),D2) -> 165.2 | I2: =IF($A2<DATE(2021,4,1),H2,IF(A2=DATE(2021,4,1),I1*((0.5*G2/G1)+(0.5*H2/H1)),I1*(G2/G1))) -> 165.2
A3: 1999-05-01 | B3: =IF(MONTH(A3)>=4,YEAR(A3)+1,YEAR(A3)) -> 2000 | C3: 72.8 | D3: 165.6 | E3: =IF($A3<DATE(2018,7,1),"-",INDEX('Annual Inflation'!$AM$52:$AT$52, MATCH(YEAR(EOMONTH($A3,6)), 'Annual Inflation'!$AM$6:$AT$6, 0))/100) -> - | F3: =IF($A3<DATE(2018,7,1),"-",INDEX('Annual Inflation'!$AM$49:$AT$49, MATCH(YEAR(EOMONTH($A3,6)), 'Annual Inflation'!$AM$6:$AT$6, 0))/100) -> - | G3: =IF(ISBLANK(C3),G2*((1+E3)^(1/12)),C3) -> 72.8 | H3: =IF(ISBLANK(D3),H2*((1+F3)^(1/12)),D3) -> 165.6 | I3: =IF($A3<DATE(2021,4,1),H3,IF(A3=DATE(2021,4,1),I2*((0.5*G3/G2)+(0.5*H3/H2)),I2*(G3/G2))) -> 165.6
A4: 1999-06-01 | B4: 2000 | C4: 72.7 | D4: 165.6 | E4: =IF($A4<DATE(2018,7,1),"-",INDEX('Annual Inflation'!$AM$52:$AT$52, MATCH(YEAR(EOMONTH($A4,6)), 'Annual Inflation'!$AM$6:$AT$6, 0))/100) -> - | F4: =IF($A4<DATE(2018,7,1),"-",INDEX('Annual Inflation'!$AM$49:$AT$49, MATCH(YEAR(EOMONTH($A4,6)), 'Annual Inflation'!$AM$6:$AT$6, 0))/100) -> - | G4: 72.7 | H4: 165.6 | I4: 165.6
A5: 1999-07-01 | B5: 2000 | C5: 72.4 | D5: 165.1 | E5: =IF($A5<DATE(2018,7,1),"-",INDEX('Annual Inflation'!$AM$52:$AT$52, MATCH(YEAR(EOMONTH($A5,6)), 'Annual Inflation'!$AM$6:$AT$6, 0))/100) -> - | F5: =IF($A5<DATE(2018,7,1),"-",INDEX('Annual Inflation'!$AM$49:$AT$49, MATCH(YEAR(EOMONTH($A5,6)), 'Annual Inflation'!$AM$6:$AT$6, 0))/100) -> - | G5: 72.4 | H5: 165.1 | I5: 165.1
A6: 1999-08-01 | B6: 2000 | C6: 72.6 | D6: 165.5 | E6: =IF($A6<DATE(2018,7,1),"-",INDEX('Annual Inflation'!$AM$52:$AT$52, MATCH(YEAR(EOMONTH($A6,6)), 'Annual Inflation'!$AM$6:$AT$6, 0))/100) -> - | F6: =IF($A6<DATE(2018,7,1),"-",INDEX('Annual Inflation'!$AM$49:$AT$49, MATCH(YEAR(EOMONTH($A6,6)), 'Annual Inflation'!$AM$6:$AT$6, 0))/100) -> - | G6: 72.6 | H6: 165.5 | I6: 165.5
A7: 1999-09-01 | B7: 2000 | C7: 72.8 | D7: 166.2 | E7: =IF($A7<DATE(2018,7,1),"-",INDEX('Annual Inflation'!$AM$52:$AT$52, MATCH(YEAR(EOMONTH($A7,6)), 'Annual Inflation'!$AM$6:$AT$6, 0))/100) -> - | F7: =IF($A7<DATE(2018,7,1),"-",INDEX('Annual Inflation'!$AM$49:$AT$49, MATCH(YEAR(EOMONTH($A7,6)), 'Annual Inflation'!$AM$6:$AT$6, 0))/100) -> - | G7: 72.8 | H7: 166.2 | I7: 166.2
A8: 1999-10-01 | B8: 2000 | C8: 72.8 | D8: 166.5 | E8: =IF($A8<DATE(2018,7,1),"-",INDEX('Annual Inflation'!$AM$52:$AT$52, MATCH(YEAR(EOMONTH($A8,6)), 'Annual Inflation'!$AM$6:$AT$6, 0))/100) -> - | F8: =IF($A8<DATE(2018,7,1),"-",INDEX('Annual Inflation'!$AM$49:$AT$49, MATCH(YEAR(EOMONTH($A8,6)), 'Annual Inflation'!$AM$6:$AT$6, 0))/100) -> - | G8: 72.8 | H8: 166.5 | I8: 166.5
A9: 1999-11-01 | B9: 2000 | C9: 72.9 | D9: 166.7 | E9: =IF($A9<DATE(2018,7,1),"-",INDEX('Annual Inflation'!$AM$52:$AT$52, MATCH(YEAR(EOMONTH($A9,6)), 'Annual Inflation'!$AM$6:$AT$6, 0))/100) -> - | F9: =IF($A9<DATE(2018,7,1),"-",INDEX('Annual Inflation'!$AM$49:$AT$49, MATCH(YEAR(EOMONTH($A9,6)), 'Annual Inflation'!$AM$6:$AT$6, 0))/100) -> - | G9: 72.9 | H9: 166.7 | I9: 166.7
A10: 1999-12-01 | B10: 2000 | C10: 73.1 | D10: 167.3 | E10: =IF($A10<DATE(2018,7,1),"-",INDEX('Annual Inflation'!$AM$52:$AT$52, MATCH(YEAR(EOMONTH($A10,6)), 'Annual Inflation'!$AM$6:$AT$6, 0))/100) -> - | F10: =IF($A10<DATE(2018,7,1),"-",INDEX('Annual Inflation'!$AM$49:$AT$49, MATCH(YEAR(EOMONTH($A10,6)), 'Annual Inflation'!$AM$6:$AT$6, 0))/100) -> - | G10: 73.1 | H10: 167.3 | I10: 167.3
A11: 2000-01-01 | B11: 2000 | C11: 72.6 | D11: 166.6 | E11: =IF($A11<DATE(2018,7,1),"-",INDEX('Annual Inflation'!$AM$52:$AT$52, MATCH(YEAR(EOMONTH($A11,6)), 'Annual Inflation'!$AM$6:$AT$6, 0))/100) -> - | F11: =IF($A11<DATE(2018,7,1),"-",INDEX('Annual Inflation'!$AM$49:$AT$49, MATCH(YEAR(EOMONTH($A11,6)), 'Annual Inflation'!$AM$6:$AT$6, 0))/100) -> - | G11: 72.6 | H11: 166.6 | I11: 166.6
A12: 2000-02-01 | B12: 2000 | C12: 72.8 | D12: 167.5 | E12: =IF($A12<DATE(2018,7,1),"-",INDEX('Annual Inflation'!$AM$52:$AT$52, MATCH(YEAR(EOMONTH($A12,6)), 'Annual Inflation'!$AM$6:$AT$6, 0))/100) -> - | F12: =IF($A12<DATE(2018,7,1),"-",INDEX('Annual Inflation'!$AM$49:$AT$49, MATCH(YEAR(EOMONTH($A12,6)), 'Annual Inflation'!$AM$6:$AT$6, 0))/100) -> - | G12: 72.8 | H12: 167.5 | I12: 167.5
A13: 2000-03-01 | B13: 2000 | C13: 73 | D13: 168.4 | E13: =IF($A13<DATE(2018,7,1),"-",INDEX('Annual Inflation'!$AM$52:$AT$52, MATCH(YEAR(EOMONTH($A13,6)), 'Annual Inflation'!$AM$6:$AT$6, 0))/100) -> - | F13: =IF($A13<DATE(2018,7,1),"-",INDEX('Annual Inflation'!$AM$49:$AT$49, MATCH(YEAR(EOMONTH($A13,6)), 'Annual Inflation'!$AM$6:$AT$6, 0))/100) -> - | G13: 73 | H13: 168.4 | I13: 168.4
A14: 2000-04-01 | B14: 2001 | C14: 73.3 | D14: 170.1 | E14: =IF($A14<DATE(2018,7,1),"-",INDEX('Annual Inflation'!$AM$52:$AT$52, MATCH(YEAR(EOMONTH($A14,6)), 'Annual Inflation'!$AM$6:$AT$6, 0))/100) -> - | F14: =IF($A14<DATE(2018,7,1),"-",INDEX('Annual Inflation'!$AM$49:$AT$49, MATCH(YEAR(EOMONTH($A14,6)), 'Annual Inflation'!$AM$6:$AT$6, 0))/100) -> - | G14: 73.3 | H14: 170.1 | I14: 170.1
A15: 2000-05-01 | B15: 2001 | C15: 73.5 | D15: 170.7 | E15: =IF($A15<DATE(2018,7,1),"-",INDEX('Annual Inflation'!$AM$52:$AT$52, MATCH(YEAR(EOMONTH($A15,6)), 'Annual Inflation'!$AM$6:$AT$6, 0))/100) -> - | F15: =IF($A15<DATE(2018,7,1),"-",INDEX('Annual Inflation'!$AM$49:$AT$49, MATCH(YEAR(EOMONTH($A15,6)), 'Annual Inflation'!$AM$6:$AT$6, 0))/100) -> - | G15: 73.5 | H15: 170.7 | I15: 170.7
A16: 2000-06-01 | B16: 2001 | C16: 73.6 | D16: 171.1 | E16: =IF($A16<DATE(2018,7,1),"-",INDEX('Annual Inflation'!$AM$52:$AT$52, MATCH(YEAR(EOMONTH($A16,6)), 'Annual Inflation'!$AM$6:$AT$6, 0))/100) -> - | F16: =IF($A16<DATE(2018,7,1),"-",INDEX('Annual Inflation'!$AM$49:$AT$49, MATCH(YEAR(EOMONTH($A16,6)), 'Annual Inflation'!$AM$6:$AT$6, 0))/100) -> - | G16: 73.6 | H16: 171.1 | I16: 171.1
A17: 2000-07-01 | B17: 2001 | C17: 73.3 | D17: 170.5 | E17: =IF($A17<DATE(2018,7,1),"-",INDEX('Annual Inflation'!$AM$52:$AT$52, MATCH(YEAR(EOMONTH($A17,6)), 'Annual Inflation'!$AM$6:$AT$6, 0))/100) -> - | F17: =IF($A17<DATE(2018,7,1),"-",INDEX('Annual Inflation'!$AM$49:$AT$49, MATCH(YEAR(EOMONTH($A17,6)), 'Annual Inflation'!$AM$6:$AT$6, 0))/100) -> - | G17: 73.3 | H17: 170.5 | I17: 170.5
A18: 2000-08-01 | B18: 2001 | C18: 73.3 | D18: 170.5 | E18: =IF($A18<DATE(2018,7,1),"-",INDEX('Annual Inflation'!$AM$52:$AT$52, MATCH(YEAR(EOMONTH($A18,6)), 'Annual Inflation'!$AM$6:$AT$6, 0))/100) -> - | F18: =IF($A18<DATE(2018,7,1),"-",INDEX('Annual Inflation'!$AM$49:$AT$49, MATCH(YEAR(EOMONTH($A18,6)), 'Annual Inflation'!$AM$6:$AT$6, 0))/100) -> - | G18: 73.3 | H18: 170.5 | I18: 170.5
A19: 2000-09-01 | B19: 2001 | C19: 73.8 | D19: 171.7 | E19: =IF($A19<DATE(2018,7,1),"-",INDEX('Annual Inflation'!$AM$52:$AT$52, MATCH(YEAR(EOMONTH($A19,6)), 'Annual Inflation'!$AM$6:$AT$6, 0))/100) -> - | F19: =IF($A19<DATE(2018,7,1),"-",INDEX('Annual Inflation'!$AM$49:$AT$49, MATCH(YEAR(EOMONTH($A19,6)), 'Annual Inflation'!$AM$6:$AT$6, 0))/100) -> - | G19: 73.8 | H19: 171.7 | I19: 171.7
A20: 2000-10-01 | B20: 2001 | C20: 73.8 | D20: 171.6 | E20: =IF($A20<DATE(2018,7,1),"-",INDEX('Annual Inflation'!$AM$52:$AT$52, MATCH(YEAR(EOMONTH($A20,6)), 'Annual Inflation'!$AM$6:$AT$6, 0))/100) -> - | F20: =IF($A20<DATE(2018,7,1),"-",INDEX('Annual Inflation'!$AM$49:$AT$49, MATCH(YEAR(EOMONTH($A20,6)), 'Annual Inflation'!$AM$6:$AT$6, 0))/100) -> - | G20: 73.8 | H20: 171.6 | I20: 171.6
A21: 2000-11-01 | B21: 2001 | C21: 74 | D21: 172.1 | E21: =IF($A21<DATE(2018,7,1),"-",INDEX('Annual Inflation'!$AM$52:$AT$52, MATCH(YEAR(EOMONTH($A21,6)), 'Annual Inflation'!$AM$6:$AT$6, 0))/100) -> - | F21: =IF($A21<DATE(2018,7,1),"-",INDEX('Annual Inflation'!$AM$49:$AT$49, MATCH(YEAR(EOMONTH($A21,6)), 'Annual Inflation'!$AM$6:$AT$6, 0))/100) -> - | G21: 74 | H21: 172.1 | I21: 172.1
A22: 2000-12-01 | B22: 2001 | C22: 74 | D22: 172.2 | E22: =IF($A22<DATE(2018,7,1),"-",INDEX('Annual Inflation'!$AM$52:$AT$52, MATCH(YEAR(EOMONTH($A22,6)), 'Annual Inflation'!$AM$6:$AT$6, 0))/100) -> - | F22: =IF($A22<DATE(2018,7,1),"-",INDEX('Annual Inflation'!$AM$49:$AT$49, MATCH(YEAR(EOMONTH($A22,6)), 'Annual Inflation'!$AM$6:$AT$6, 0))/100) -> - | G22: 74 | H22: 172.2 | I22: 172.2
A23: 2001-01-01 | B23: 2001 | C23: 73.5 | D23: 171.1 | E23: =IF($A23<DATE(2018,7,1),"-",INDEX('Annual Inflation'!$AM$52:$AT$52, MATCH(YEAR(EOMONTH($A23,6)), 'Annual Inflation'!$AM$6:$AT$6, 0))/100) -> - | F23: =IF($A23<DATE(2018,7,1),"-",INDEX('Annual Inflation'!$AM$49:$AT$49, MATCH(YEAR(EOMONTH($A23,6)), 'Annual Inflation'!$AM$6:$AT$6, 0))/100) -> - | G23: 73.5 | H23: 171.1 | I23: 171.1
A24: 2001-02-01 | B24: 2001 | C24: 73.7 | D24: 172 | E24: =IF($A24<DATE(2018,7,1),"-",INDEX('Annual Inflation'!$AM$52:$AT$52, MATCH(YEAR(EOMONTH($A24,6)), 'Annual Inflation'!$AM$6:$AT$6, 0))/100) -> - | F24: =IF($A24<DATE(2018,7,1),"-",INDEX('Annual Inflation'!$AM$49:$AT$49, MATCH(YEAR(EOMONTH($A24,6)), 'Annual Inflation'!$AM$6:$AT$6, 0))/100) -> - | G24: 73.7 | H24: 172 | I24: 172
A25: 2001-03-01 | B25: 2001 | C25: 73.9 | D25: 172.2 | E25: =IF($A25<DATE(2018,7,1),"-",INDEX('Annual Inflation'!$AM$52:$AT$52, MATCH(YEAR(EOMONTH($A25,6)), 'Annual Inflation'!$AM$6:$AT$6, 0))/100) -> - | F25: =IF($A25<DATE(2018,7,1),"-",INDEX('Annual Inflation'!$AM$49:$AT$49, MATCH(YEAR(EOMONTH($A25,6)), 'Annual Inflation'!$AM$6:$AT$6, 0))/100) -> - | G25: 73.9 | H25: 172.2 | I25: 172.2
A26: 2001-04-01 | B26: 2002 | C26: 74.4 | D26: 173.1 | E26: =IF($A26<DATE(2018,7,1),"-",INDEX('Annual Inflation'!$AM$52:$AT$52, MATCH(YEAR(EOMONTH($A26,6)), 'Annual Inflation'!$AM$6:$AT$6, 0))/100) -> - | F26: =IF($A26<DATE(2018,7,1),"-",INDEX('Annual Inflation'!$AM$49:$AT$49, MATCH(YEAR(EOMONTH($A26,6)), 'Annual Inflation'!$AM$6:$AT$6, 0))/100) -> - | G26: 74.4 | H26: 173.1 | I26: 173.1
A27: 2001-05-01 | B27: 2002 | C27: 74.9 | D27: 174.2 | E27: =IF($A27<DATE(2018,7,1),"-",INDEX('Annual Inflation'!$AM$52:$AT$52, MATCH(YEAR(EOMONTH($A27,6)), 'Annual Inflation'!$AM$6:$AT$6, 0))/100) -> - | F27: =IF($A27<DATE(2018,7,1),"-",INDEX('Annual Inflation'!$AM$49:$AT$49, MATCH(YEAR(EOMONTH($A27,6)), 'Annual Inflation'!$AM$6:$AT$6, 0))/100) -> - | G27: 74.9 | H27: 174.2 | I27: 174.2
A28: 2001-06-01 | B28: 2002 | C28: 75 | D28: 174.4 | E28: =IF($A28<DATE(2018,7,1),"-",INDEX('Annual Inflation'!$AM$52:$AT$52, MATCH(YEAR(EOMONTH($A28,6)), 'Annual Inflation'!$AM$6:$AT$6, 0))/100) -> - | F28: =IF($A28<DATE(2018,7,1),"-",INDEX('Annual Inflation'!$AM$49:$AT$49, MATCH(YEAR(EOMONTH($A28,6)), 'Annual Inflation'!$AM$6:$AT$6, 0))/100) -> - | G28: 75 | H28: 174.4 | I28: 174.4
A29: 2001-07-01 | B29: 2002 | C29: 74.5 | D29: 173.3 | E29: =IF($A29<DATE(2018,7,1),"-",INDEX('Annual Inflation'!$AM$52:$AT$52, MATCH(YEAR(EOMONTH($A29,6)), 'Annual Inflation'!$AM$6:$AT$6, 0))/100) -> - | F29: =IF($A29<DATE(2018,7,1),"-",INDEX('Annual Inflation'!$AM$49:$AT$49, MATCH(YEAR(EOMONTH($A29,6)), 'Annual Inflation'!$AM$6:$AT$6, 0))/100) -> - | G29: 74.5 | H29: 173.3 | I29: 173.3
A30: 2001-08-01 | B30: 2002 | C30: 74.8 | D30: 174 | E30: =IF($A30<DATE(2018,7,1),"-",INDEX('Annual Inflation'!$AM$52:$AT$52, MATCH(YEAR(EOMONTH($A30,6)), 'Annual Inflation'!$AM$6:$AT$6, 0))/100) -> - | F30: =IF($A30<DATE(2018,7,1),"-",INDEX('Annual Inflation'!$AM$49:$AT$49, MATCH(YEAR(EOMONTH($A30,6)), 'Annual Inflation'!$AM$6:$AT$6, 0))/100) -> - | G30: 74.8 | H30: 174 | I30: 174
A31: 2001-09-01 | B31: 2002 | C31: 75 | D31: 174.6 | E31: =IF($A31<DATE(2018,7,1),"-",INDEX('Annual Inflation'!$AM$52:$AT$52, MATCH(YEAR(EOMONTH($A31,6)), 'Annual Inflation'!$AM$6:$AT$6, 0))/100) -> - | F31: =IF($A31<DATE(2018,7,1),"-",INDEX('Annual Inflation'!$AM$49:$AT$49, MATCH(YEAR(EOMONTH($A31,6)), 'Annual Inflation'!$AM$6:$AT$6, 0))/100) -> - | G31: 75 | H31: 174.6 | I31: 174.6
A32: 2001-10-01 | B32: 2002 | C32: 74.9 | D32: 174.3 | E32: =IF($A32<DATE(2018,7,1),"-",INDEX('Annual Inflation'!$AM$52:$AT$52, MATCH(YEAR(EOMONTH($A32,6)), 'Annual Inflation'!$AM$6:$AT$6, 0))/100) -> - | F32: =IF($A32<DATE(2018,7,1),"-",INDEX('Annual Inflation'!$AM$49:$AT$49, MATCH(YEAR(EOMONTH($A32,6)), 'Annual Inflation'!$AM$6:$AT$6, 0))/100) -> - | G32: 74.9 | H32: 174.3 | I32: 174.3
A33: 2001-11-01 | B33: 2002 | C33: 74.9 | D33: 173.6 | E33: =IF($A33<DATE(2018,7,1),"-",INDEX('Annual Inflation'!$AM$52:$AT$52, MATCH(YEAR(EOMONTH($A33,6)), 'Annual Inflation'!$AM$6:$AT$6, 0))/100) -> - | F33: =IF($A33<DATE(2018,7,1),"-",INDEX('Annual Inflation'!$AM$49:$AT$49, MATCH(YEAR(EOMONTH($A33,6)), 'Annual Inflation'!$AM$6:$AT$6, 0))/100) -> - | G33: 74.9 | H33: 173.6 | I33: 173.6
A34: 2001-12-01 | B34: 2002 | C34: 75 | D34: 173.4 | E34: =IF($A34<DATE(2018,7,1),"-",INDEX('Annual Inflation'!$AM$52:$AT$52, MATCH(YEAR(EOMONTH($A34,6)), 'Annual Inflation'!$AM$6:$AT$6, 0))/100) -> - | F34: =IF($A34<DATE(2018,7,1),"-",INDEX('Annual Inflation'!$AM$49:$AT$49, MATCH(YEAR(EOMONTH($A34,6)), 'Annual Inflation'!$AM$6:$AT$6, 0))/100) -> - | G34: 75 | H34: 173.4 | I34: 173.4
A35: 2002-01-01 | B35: 2002 | C35: 74.8 | D35: 173.3 | E35: =IF($A35<DATE(2018,7,1),"-",INDEX('Annual Inflation'!$AM$52:$AT$52, MATCH(YEAR(EOMONTH($A35,6)), 'Annual Inflation'!$AM$6:$AT$6, 0))/100) -> - | F35: =IF($A35<DATE(2018,7,1),"-",INDEX('Annual Inflation'!$AM$49:$AT$49, MATCH(YEAR(EOMONTH($A35,6)), 'Annual Inflation'!$AM$6:$AT$6, 0))/100) -> - | G35: 74.8 | H35: 173.3 | I35: 173.3
A36: 2002-02-01 | B36: 2002 | C36: 75 | D36: 173.8 | E36: =IF($A36<DATE(2018,7,1),"-",INDEX('Annual Inflation'!$AM$52:$AT$52, MATCH(YEAR(EOMONTH($A36,6)), 'Annual Inflation'!$AM$6:$AT$6, 0))/100) -> - | F36: =IF($A36<DATE(2018,7,1),"-",INDEX('Annual Inflation'!$AM$49:$AT$49, MATCH(YEAR(EOMONTH($A36,6)), 'Annual Inflation'!$AM$6:$AT$6, 0))/100) -> - | G36: 75 | H36: 173.8 | I36: 173.8
A37: 2002-03-01 | B37: 2002 | C37: 75.2 | D37: 174.5 | E37: =IF($A37<DATE(2018,7,1),"-",INDEX('Annual Inflation'!$AM$52:$AT$52, MATCH(YEAR(EOMONTH($A37,6)), 'Annual Inflation'!$AM$6:$AT$6, 0))/100) -> - | F37: =IF($A37<DATE(2018,7,1),"-",INDEX('Annual Inflation'!$AM$49:$AT$49, MATCH(YEAR(EOMONTH($A37,6)), 'Annual Inflation'!$AM$6:$AT$6, 0))/100) -> - | G37: 75.2 | H37: 174.5 | I37: 174.5
A38: 2002-04-01 | B38: 2003 | C38: 75.6 | D38: 175.7 | E38: =IF($A38<DATE(2018,7,1),"-",INDEX('Annual Inflation'!$AM$52:$AT$52, MATCH(YEAR(EOMONTH($A38,6)), 'Annual Inflation'!$AM$6:$AT$6, 0))/100) -> - | F38: =IF($A38<DATE(2018,7,1),"-",INDEX('Annual Inflation'!$AM$49:$AT$49, MATCH(YEAR(EOMONTH($A38,6)), 'Annual Inflation'!$AM$6:$AT$6, 0))/100) -> - | G38: 75.6 | H38: 175.7 | I38: 175.7
A39: 2002-05-01 | B39: 2003 | C39: 75.8 | D39: 176.2 | E39: =IF($A39<DATE(2018,7,1),"-",INDEX('Annual Inflation'!$AM$52:$AT$52, MATCH(YEAR(EOMONTH($A39,6)), 'Annual Inflation'!$AM$6:$AT$6, 0))/100) -> - | F39: =IF($A39<DATE(2018,7,1),"-",INDEX('Annual Inflation'!$AM$49:$AT$49, MATCH(YEAR(EOMONTH($A39,6)), 'Annual Inflation'!$AM$6:$AT$6, 0))/100) -> - | G39: 75.8 | H39: 176.2 | I39: 176.2
A40: 2002-06-01 | B40: 2003 | C40: 75.8 | D40: 176.2 | E40: =IF($A40<DATE(2018,7,1),"-",INDEX('Annual Inflation'!$AM$52:$AT$52, MATCH(YEAR(EOMONTH($A40,6)), 'Annual Inflation'!$AM$6:$AT$6, 0))/100) -> - | F40: =IF($A40<DATE(2018,7,1),"-",INDEX('Annual Inflation'!$AM$49:$AT$49, MATCH(YEAR(EOMONTH($A40,6)), 'Annual Inflation'!$AM$6:$AT$6, 0))/100) -> - | G40: 75.8 | H40: 176.2 | I40: 176.2
A41: 2002-07-01 | B41: 2003 | C41: 75.6 | D41: 175.9 | E41: =IF($A41<DATE(2018,7,1),"-",INDEX('Annual Inflation'!$AM$52:$AT$52, MATCH(YEAR(EOMONTH($A41,6)), 'Annual Inflation'!$AM$6:$AT$6, 0))/100) -> - | F41: =IF($A41<DATE(2018,7,1),"-",INDEX('Annual Inflation'!$AM$49:$AT$49, MATCH(YEAR(EOMONTH($A41,6)), 'Annual Inflation'!$AM$6:$AT$6, 0))/100) -> - | G41: 75.6 | H41: 175.9 | I41: 175.9
A42: 2002-08-01 | B42: 2003 | C42: 75.8 | D42: 176.4 | E42: =IF($A42<DATE(2018,7,1),"-",INDEX('Annual Inflation'!$AM$52:$AT$52, MATCH(YEAR(EOMONTH($A42,6)), 'Annual Inflation'!$AM$6:$AT$6, 0))/100) -> - | F42: =IF($A42<DATE(2018,7,1),"-",INDEX('Annual Inflation'!$AM$49:$AT$49, MATCH(YEAR(EOMONTH($A42,6)), 'Annual Inflation'!$AM$6:$AT$6, 0))/100) -> - | G42: 75.8 | H42: 176.4 | I42: 176.4
A43: 2002-09-01 | B43: 2003 | C43: 76 | D43: 177.6 | E43: =IF($A43<DATE(2018,7,1),"-",INDEX('Annual Inflation'!$AM$52:$AT$52, MATCH(YEAR(EOMONTH($A43,6)), 'Annual Inflation'!$AM$6:$AT$6, 0))/100) -> - | F43: =IF($A43<DATE(2018,7,1),"-",INDEX('Annual Inflation'!$AM$49:$AT$49, MATCH(YEAR(EOMONTH($A43,6)), 'Annual Inflation'!$AM$6:$AT$6, 0))/100) -> - | G43: 76 | H43: 177.6 | I43: 177.6
A44: 2002-10-01 | B44: 2003 | C44: 76.1 | D44: 177.9 | E44: =IF($A44<DATE(2018,7,1),"-",INDEX('Annual Inflation'!$AM$52:$AT$52, MATCH(YEAR(EOMONTH($A44,6)), 'Annual Inflation'!$AM$6:$AT$6, 0))/100) -> - | F44: =IF($A44<DATE(2018,7,1),"-",INDEX('Annual Inflation'!$AM$49:$AT$49, MATCH(YEAR(EOMONTH($A44,6)), 'Annual Inflation'!$AM$6:$AT$6, 0))/100) -> - | G44: 76.1 | H44: 177.9 | I44: 177.9
A45: 2002-11-01 | B45: 2003 | C45: 76.1 | D45: 178.2 | E45: =IF($A45<DATE(2018,7,1),"-",INDEX('Annual Inflation'!$AM$52:$AT$52, MATCH(YEAR(EOMONTH($A45,6)), 'Annual Inflation'!$AM$6:$AT$6, 0))/100) -> - | F45: =IF($A45<DATE(2018,7,1),"-",INDEX('Annual Inflation'!$AM$49:$AT$49, MATCH(YEAR(EOMONTH($A45,6)), 'Annual Inflation'!$AM$6:$AT$6, 0))/100) -> - | G45: 76.1 | H45: 178.2 | I45: 178.2
A46: 2002-12-01 | B46: 2003 | C46: 76.3 | D46: 178.5 | E46: =IF($A46<DATE(2018,7,1),"-",INDEX('Annual Inflation'!$AM$52:$AT$52, MATCH(YEAR(EOMONTH($A46,6)), 'Annual Inflation'!$AM$6:$AT$6, 0))/100) -> - | F46: =IF($A46<DATE(2018,7,1),"-",INDEX('Annual Inflation'!$AM$49:$AT$49, MATCH(YEAR(EOMONTH($A46,6)), 'Annual Inflation'!$AM$6:$AT$6, 0))/100) -> - | G46: 76.3 | H46: 178.5 | I46: 178.5
A47: 2003-01-01 | B47: 2003 | C47: 75.9 | D47: 178.4 | E47: =IF($A47<DATE(2018,7,1),"-",INDEX('Annual Inflation'!$AM$52:$AT$52, MATCH(YEAR(EOMONTH($A47,6)), 'Annual Inflation'!$AM$6:$AT$6, 0))/100) -> - | F47: =IF($A47<DATE(2018,7,1),"-",INDEX('Annual Inflation'!$AM$49:$AT$49, MATCH(YEAR(EOMONTH($A47,6)), 'Annual Inflation'!$AM$6:$AT$6, 0))/100) -> - | G47: 75.9 | H47: 178.4 | I47: 178.4
A48: 2003-02-01 | B48: 2003 | C48: 76.1 | D48: 179.3 | E48: =IF($A48<DATE(2018,7,1),"-",INDEX('Annual Inflation'!$AM$52:$AT$52, MATCH(YEAR(EOMONTH($A48,6)), 'Annual Inflation'!$AM$6:$AT$6, 0))/100) -> - | F48: =IF($A48<DATE(2018,7,1),"-",INDEX('Annual Inflation'!$AM$49:$AT$49, MATCH(YEAR(EOMONTH($A48,6)), 'Annual Inflation'!$AM$6:$AT$6, 0))/100) -> - | G48: 76.1 | H48: 179.3 | I48: 179.3
A49: 2003-03-01 | B49: 2003 | C49: 76.4 | D49: 179.9 | E49: =IF($A49<DATE(2018,7,1),"-",INDEX('Annual Inflation'!$AM$52:$AT$52, MATCH(YEAR(EOMONTH($A49,6)), 'Annual Inflation'!$AM$6:$AT$6, 0))/100) -> - | F49: =IF($A49<DATE(2018,7,1),"-",INDEX('Annual Inflation'!$AM$49:$AT$49, MATCH(YEAR(EOMONTH($A49,6)), 'Annual Inflation'!$AM$6:$AT$6, 0))/100) -> - | G49: 76.4 | H49: 179.9 | I49: 179.9
A50: 2003-04-01 | B50: 2004 | C50: 76.8 | D50: 181.2 | E50: =IF($A50<DATE(2018,7,1),"-",INDEX('Annual Inflation'!$AM$52:$AT$52, MATCH(YEAR(EOMONTH($A50,6)), 'Annual Inflation'!$AM$6:$AT$6, 0))/100) -> - | F50: =IF($A50<DATE(2018,7,1),"-",INDEX('Annual Inflation'!$AM$49:$AT$49, MATCH(YEAR(EOMONTH($A50,6)), 'Annual Inflation'!$AM$6:$AT$6, 0))/100) -> - | G50: 76.8 | H50: 181.2 | I50: 181.2
A51: 2003-05-01 | B51: 2004 | C51: 76.8 | D51: 181.5 | E51: =IF($A51<DATE(2018,7,1),"-",INDEX('Annual Inflation'!$AM$52:$AT$52, MATCH(YEAR(EOMONTH($A51,6)), 'Annual Inflation'!$AM$6:$AT$6, 0))/100) -> - | F51: =IF($A51<DATE(2018,7,1),"-",INDEX('Annual Inflation'!$AM$49:$AT$49, MATCH(YEAR(EOMONTH($A51,6)), 'Annual Inflation'!$AM$6:$AT$6, 0))/100) -> - | G51: 76.8 | H51: 181.5 | I51: 181.5
A52: 2003-06-01 | B52: 2004 | C52: 76.7 | D52: 181.3 | E52: =IF($A52<DATE(2018,7,1),"-",INDEX('Annual Inflation'!$AM$52:$AT$52, MATCH(YEAR(EOMONTH($A52,6)), 'Annual Inflation'!$AM$6:$AT$6, 0))/100) -> - | F52: =IF($A52<DATE(2018,7,1),"-",INDEX('Annual Inflation'!$AM$49:$AT$49, MATCH(YEAR(EOMONTH($A52,6)), 'Annual Inflation'!$AM$6:$AT$6, 0))/100) -> - | G52: 76.7 | H52: 181.3 | I52: 181.3
A53: 2003-07-01 | B53: 2004 | C53: 76.6 | D53: 181.3 | E53: =IF($A53<DATE(2018,7,1),"-",INDEX('Annual Inflation'!$AM$52:$AT$52, MATCH(YEAR(EOMONTH($A53,6)), 'Annual Inflation'!$AM$6:$AT$6, 0))/100) -> - | F53: =IF($A53<DATE(2018,7,1),"-",INDEX('Annual Inflation'!$AM$49:$AT$49, MATCH(YEAR(EOMONTH($A53,6)), 'Annual Inflation'!$AM$6:$AT$6, 0))/100) -> - | G53: 76.6 | H53: 181.3 | I53: 181.3
A54: 2003-08-01 | B54: 2004 | C54: 76.8 | D54: 181.6 | E54: =IF($A54<DATE(2018,7,1),"-",INDEX('Annual Inflation'!$AM$52:$AT$52, MATCH(YEAR(EOMONTH($A54,6)), 'Annual Inflation'!$AM$6:$AT$6, 0))/100) -> - | F54: =IF($A54<DATE(2018,7,1),"-",INDEX('Annual Inflation'!$AM$49:$AT$49, MATCH(YEAR(EOMONTH($A54,6)), 'Annual Inflation'!$AM$6:$AT$6, 0))/100) -> - | G54: 76.8 | H54: 181.6 | I54: 181.6
A55: 2003-09-01 | B55: 2004 | C55: 77 | D55: 182.5 | E55: =IF($A55<DATE(2018,7,1),"-",INDEX('Annual Inflation'!$AM$52:$AT$52, MATCH(YEAR(EOMONTH($A55,6)), 'Annual Inflation'!$AM$6:$AT$6, 0))/100) -> - | F55: =IF($A55<DATE(2018,7,1),"-",INDEX('Annual Inflation'!$AM$49:$AT$49, MATCH(YEAR(EOMONTH($A55,6)), 'Annual Inflation'!$AM$6:$AT$6, 0))/100) -> - | G55: 77 | H55: 182.5 | I55: 182.5
A56: 2003-10-01 | B56: 2004 | C56: 77.1 | D56: 182.6 | E56: =IF($A56<DATE(2018,7,1),"-",INDEX('Annual Inflation'!$AM$52:$AT$52, MATCH(YEAR(EOMONTH($A56,6)), 'Annual Inflation'!$AM$6:$AT$6, 0))/100) -> - | F56: =IF($A56<DATE(2018,7,1),"-",INDEX('Annual Inflation'!$AM$49:$AT$49, MATCH(YEAR(EOMONTH($A56,6)), 'Annual Inflation'!$AM$6:$AT$6, 0))/100) -> - | G56: 77.1 | H56: 182.6 | I56: 182.6
A57: 2003-11-01 | B57: 2004 | C57: 77.1 | D57: 182.7 | E57: =IF($A57<DATE(2018,7,1),"-",INDEX('Annual Inflation'!$AM$52:$AT$52, MATCH(YEAR(EOMONTH($A57,6)), 'Annual Inflation'!$AM$6:$AT$6, 0))/100) -> - | F57: =IF($A57<DATE(2018,7,1),"-",INDEX('Annual Inflation'!$AM$49:$AT$49, MATCH(YEAR(EOMONTH($A57,6)), 'Annual Inflation'!$AM$6:$AT$6, 0))/100) -> - | G57: 77.1 | H57: 182.7 | I57: 182.7
A58: 2003-12-01 | B58: 2004 | C58: 77.3 | D58: 183.5 | E58: =IF($A58<DATE(2018,7,1),"-",INDEX('Annual Inflation'!$AM$52:$AT$52, MATCH(YEAR(EOMONTH($A58,6)), 'Annual Inflation'!$AM$6:$AT$6, 0))/100) -> - | F58: =IF($A58<DATE(2018,7,1),"-",INDEX('Annual Inflation'!$AM$49:$AT$49, MATCH(YEAR(EOMONTH($A58,6)), 'Annual Inflation'!$AM$6:$AT$6, 0))/100) -> - | G58: 77.3 | H58: 183.5 | I58: 183.5
A59: 2004-01-01 | B59: 2004 | C59: 77 | D59: 183.1 | E59: =IF($A59<DATE(2018,7,1),"-",INDEX('Annual Inflation'!$AM$52:$AT$52, MATCH(YEAR(EOMONTH($A59,6)), 'Annual Inflation'!$AM$6:$AT$6, 0))/100) -> - | F59: =IF($A59<DATE(2018,7,1),"-",INDEX('Annual Inflation'!$AM$49:$AT$49, MATCH(YEAR(EOMONTH($A59,6)), 'Annual Inflation'!$AM$6:$AT$6, 0))/100) -> - | G59: 77 | H59: 183.1 | I59: 183.1
A60: 2004-02-01 | B60: 2004 | C60: 77.2 | D60: 183.8 | E60: =IF($A60<DATE(2018,7,1),"-",INDEX('Annual Inflation'!$AM$52:$AT$52, MATCH(YEAR(EOMONTH($A60,6)), 'Annual Inflation'!$AM$6:$AT$6, 0))/100) -> - | F60: =IF($A60<DATE(2018,7,1),"-",INDEX('Annual Inflation'!$AM$49:$AT$49, MATCH(YEAR(EOMONTH($A60,6)), 'Annual Inflation'!$AM$6:$AT$6, 0))/100) -> - | G60: 77.2 | H60: 183.8 | I60: 183.8
A61: 2004-03-01 | B61: 2004 | C61: 77.3 | D61: 184.6 | E61: =IF($A61<DATE(2018,7,1),"-",INDEX('Annual Inflation'!$AM$52:$AT$52, MATCH(YEAR(EOMONTH($A61,6)), 'Annual Inflation'!$AM$6:$AT$6, 0))/100) -> - | F61: =IF($A61<DATE(2018,7,1),"-",INDEX('Annual Inflation'!$AM$49:$AT$49, MATCH(YEAR(EOMONTH($A61,6)), 'Annual Inflation'!$AM$6:$AT$6, 0))/100) -> - | G61: 77.3 | H61: 184.6 | I61: 184.6
A62: 2004-04-01 | B62: 2005 | C62: 77.6 | D62: 185.7 | E62: =IF($A62<DATE(2018,7,1),"-",INDEX('Annual Inflation'!$AM$52:$AT$52, MATCH(YEAR(EOMONTH($A62,6)), 'Annual Inflation'!$AM$6:$AT$6, 0))/100) -> - | F62: =IF($A62<DATE(2018,7,1),"-",INDEX('Annual Inflation'!$AM$49:$AT$49, MATCH(YEAR(EOMONTH($A62,6)), 'Annual Inflation'!$AM$6:$AT$6, 0))/100) -> - | G62: 77.6 | H62: 185.7 | I62: 185.7
A63: 2004-05-01 | B63: 2005 | C63: 77.9 | D63: 186.5 | E63: =IF($A63<DATE(2018,7,1),"-",INDEX('Annual Inflation'!$AM$52:$AT$52, MATCH(YEAR(EOMONTH($A63,6)), 'Annual Inflation'!$AM$6:$AT$6, 0))/100) -> - | F63: =IF($A63<DATE(2018,7,1),"-",INDEX('Annual Inflation'!$AM$49:$AT$49, MATCH(YEAR(EOMONTH($A63,6)), 'Annual Inflation'!$AM$6:$AT$6, 0))/100) -> - | G63: 77.9 | H63: 186.5 | I63: 186.5
A64: 2004-06-01 | B64: 2005 | C64: 77.9 | D64: 186.8 | E64: =IF($A64<DATE(2018,7,1),"-",INDEX('Annual Inflation'!$AM$52:$AT$52, MATCH(YEAR(EOMONTH($A64,6)), 'Annual Inflation'!$AM$6:$AT$6, 0))/100) -> - | F64: =IF($A64<DATE(2018,7,1),"-",INDEX('Annual Inflation'!$AM$49:$AT$49, MATCH(YEAR(EOMONTH($A64,6)), 'Annual Inflation'!$AM$6:$AT$6, 0))/100) -> - | G64: 77.9 | H64: 186.8 | I64: 186.8
A65: 2004-07-01 | B65: 2005 | C65: 77.7 | D65: 186.8 | E65: =IF($A65<DATE(2018,7,1),"-",INDEX('Annual Inflation'!$AM$52:$AT$52, MATCH(YEAR(EOMONTH($A65,6)), 'Annual Inflation'!$AM$6:$AT$6, 0))/100) -> - | F65: =IF($A65<DATE(2018,7,1),"-",INDEX('Annual Inflation'!$AM$49:$AT$49, MATCH(YEAR(EOMONTH($A65,6)), 'Annual Inflation'!$AM$6:$AT$6, 0))/100) -> - | G65: 77.7 | H65: 186.8 | I65: 186.8
A66: 2004-08-01 | B66: 2005 | C66: 77.9 | D66: 187.4 | E66: =IF($A66<DATE(2018,7,1),"-",INDEX('Annual Inflation'!$AM$52:$AT$52, MATCH(YEAR(EOMONTH($A66,6)), 'Annual Inflation'!$AM$6:$AT$6, 0))/100) -> - | F66: =IF($A66<DATE(2018,7,1),"-",INDEX('Annual Inflation'!$AM$49:$AT$49, MATCH(YEAR(EOMONTH($A66,6)), 'Annual Inflation'!$AM$6:$AT$6, 0))/100) -> - | G66: 77.9 | H66: 187.4 | I66: 187.4
A67: 2004-09-01 | B67: =IF(MONTH(A67)>=4,YEAR(A67)+1,YEAR(A67)) -> 2005 | C67: 77.9 | D67: 188.1 | E67: =IF($A67<DATE(2018,7,1),"-",INDEX('Annual Inflation'!$AM$52:$AT$52, MATCH(YEAR(EOMONTH($A67,6)), 'Annual Inflation'!$AM$6:$AT$6, 0))/100) -> - | F67: =IF($A67<DATE(2018,7,1),"-",INDEX('Annual Inflation'!$AM$49:$AT$49, MATCH(YEAR(EOMONTH($A67,6)), 'Annual Inflation'!$AM$6:$AT$6, 0))/100) -> - | G67: =IF(ISBLANK(C67),G66*((1+E67)^(1/12)),C67) -> 77.9 | H67: =IF(ISBLANK(D67),H66*((1+F67)^(1/12)),D67) -> 188.1 | I67: =IF($A67<DATE(2021,4,1),H67,IF(A67=DATE(2021,4,1),I66*((0.5*G67/G66)+(0.5*H67/H66)),I66*(G67/G66))) -> 188.1
A68: 2004-10-01 | B68: 2005 | C68: 78.1 | D68: 188.6 | E68: =IF($A68<DATE(2018,7,1),"-",INDEX('Annual Inflation'!$AM$52:$AT$52, MATCH(YEAR(EOMONTH($A68,6)), 'Annual Inflation'!$AM$6:$AT$6, 0))/100) -> - | F68: =IF($A68<DATE(2018,7,1),"-",INDEX('Annual Inflation'!$AM$49:$AT$49, MATCH(YEAR(EOMONTH($A68,6)), 'Annual Inflation'!$AM$6:$AT$6, 0))/100) -> - | G68: 78.1 | H68: 188.6 | I68: 188.6
A69: 2004-11-01 | B69: 2005 | C69: 78.3 | D69: 189 | E69: =IF($A69<DATE(2018,7,1),"-",INDEX('Annual Inflation'!$AM$52:$AT$52, MATCH(YEAR(EOMONTH($A69,6)), 'Annual Inflation'!$AM$6:$AT$6, 0))/100) -> - | F69: =IF($A69<DATE(2018,7,1),"-",INDEX('Annual Inflation'!$AM$49:$AT$49, MATCH(YEAR(EOMONTH($A69,6)), 'Annual Inflation'!$AM$6:$AT$6, 0))/100) -> - | G69: 78.3 | H69: 189 | I69: 189
A70: 2004-12-01 | B70: 2005 | C70: 78.6 | D70: 189.9 | E70: =IF($A70<DATE(2018,7,1),"-",INDEX('Annual Inflation'!$AM$52:$AT$52, MATCH(YEAR(EOMONTH($A70,6)), 'Annual Inflation'!$AM$6:$AT$6, 0))/100) -> - | F70: =IF($A70<DATE(2018,7,1),"-",INDEX('Annual Inflation'!$AM$49:$AT$49, MATCH(YEAR(EOMONTH($A70,6)), 'Annual Inflation'!$AM$6:$AT$6, 0))/100) -> - | G70: 78.6 | H70: 189.9 | I70: 189.9
A71: 2005-01-01 | B71: 2005 | C71: 78.3 | D71: 188.9 | E71: =IF($A71<DATE(2018,7,1),"-",INDEX('Annual Inflation'!$AM$52:$AT$52, MATCH(YEAR(EOMONTH($A71,6)), 'Annual Inflation'!$AM$6:$AT$6, 0))/100) -> - | F71: =IF($A71<DATE(2018,7,1),"-",INDEX('Annual Inflation'!$AM$49:$AT$49, MATCH(YEAR(EOMONTH($A71,6)), 'Annual Inflation'!$AM$6:$AT$6, 0))/100) -> - | G71: 78.3 | H71: 188.9 | I71: 188.9
A72: 2005-02-01 | B72: 2005 | C72: 78.5 | D72: 189.6 | E72: =IF($A72<DATE(2018,7,1),"-",INDEX('Annual Inflation'!$AM$52:$AT$52, MATCH(YEAR(EOMONTH($A72,6)), 'Annual Inflation'!$AM$6:$AT$6, 0))/100) -> - | F72: =IF($A72<DATE(2018,7,1),"-",INDEX('Annual Inflation'!$AM$49:$AT$49, MATCH(YEAR(EOMONTH($A72,6)), 'Annual Inflation'!$AM$6:$AT$6, 0))/100) -> - | G72: 78.5 | H72: 189.6 | I72: 189.6
A73: 2005-03-01 | B73: 2005 | C73: 78.8 | D73: 190.5 | E73: =IF($A73<DATE(2018,7,1),"-",INDEX('Annual Inflation'!$AM$52:$AT$52, MATCH(YEAR(EOMONTH($A73,6)), 'Annual Inflation'!$AM$6:$AT$6, 0))/100) -> - | F73: =IF($A73<DATE(2018,7,1),"-",INDEX('Annual Inflation'!$AM$49:$AT$49, MATCH(YEAR(EOMONTH($A73,6)), 'Annual Inflation'!$AM$6:$AT$6, 0))/100) -> - | G73: 78.8 | H73: 190.5 | I73: 190.5
A74: 2005-04-01 | B74: 2006 | C74: 79.1 | D74: 191.6 | E74: =IF($A74<DATE(2018,7,1),"-",INDEX('Annual Inflation'!$AM$52:$AT$52, MATCH(YEAR(EOMONTH($A74,6)), 'Annual Inflation'!$AM$6:$AT$6, 0))/100) -> - | F74: =IF($A74<DATE(2018,7,1),"-",INDEX('Annual Inflation'!$AM$49:$AT$49, MATCH(YEAR(EOMONTH($A74,6)), 'Annual Inflation'!$AM$6:$AT$6, 0))/100) -> - | G74: 79.1 | H74: 191.6 | I74: 191.6
A75: 2005-05-01 | B75: 2006 | C75: 79.4 | D75: 192 | E75: =IF($A75<DATE(2018,7,1),"-",INDEX('Annual Inflation'!$AM$52:$AT$52, MATCH(YEAR(EOMONTH($A75,6)), 'Annual Inflation'!$AM$6:$AT$6, 0))/100) -> - | F75: =IF($A75<DATE(2018,7,1),"-",INDEX('Annual Inflation'!$AM$49:$AT$49, MATCH(YEAR(EOMONTH($A75,6)), 'Annual Inflation'!$AM$6:$AT$6, 0))/100) -> - | G75: 79.4 | H75: 192 | I75: 192
A76: 2005-06-01 | B76: 2006 | C76: 79.4 | D76: 192.2 | E76: =IF($A76<DATE(2018,7,1),"-",INDEX('Annual Inflation'!$AM$52:$AT$52, MATCH(YEAR(EOMONTH($A76,6)), 'Annual Inflation'!$AM$6:$AT$6, 0))/100) -> - | F76: =IF($A76<DATE(2018,7,1),"-",INDEX('Annual Inflation'!$AM$49:$AT$49, MATCH(YEAR(EOMONTH($A76,6)), 'Annual Inflation'!$AM$6:$AT$6, 0))/100) -> - | G76: 79.4 | H76: 192.2 | I76: 192.2
A77: 2005-07-01 | B77: 2006 | C77: 79.5 | D77: 192.2 | E77: =IF($A77<DATE(2018,7,1),"-",INDEX('Annual Inflation'!$AM$52:$AT$52, MATCH(YEAR(EOMONTH($A77,6)), 'Annual Inflation'!$AM$6:$AT$6, 0))/100) -> - | F77: =IF($A77<DATE(2018,7,1),"-",INDEX('Annual Inflation'!$AM$49:$AT$49, MATCH(YEAR(EOMONTH($A77,6)), 'Annual Inflation'!$AM$6:$AT$6, 0))/100) -> - | G77: 79.5 | H77: 192.2 | I77: 192.2
A78: 2005-08-01 | B78: 2006 | C78: 79.7 | D78: 192.6 | E78: =IF($A78<DATE(2018,7,1),"-",INDEX('Annual Inflation'!$AM$52:$AT$52, MATCH(YEAR(EOMONTH($A78,6)), 'Annual Inflation'!$AM$6:$AT$6, 0))/100) -> - | F78: =IF($A78<DATE(2018,7,1),"-",INDEX('Annual Inflation'!$AM$49:$AT$49, MATCH(YEAR(EOMONTH($A78,6)), 'Annual Inflation'!$AM$6:$AT$6, 0))/100) -> - | G78: 79.7 | H78: 192.6 | I78: 192.6
A79: 2005-09-01 | B79: 2006 | C79: 79.9 | D79: 193.1 | E79: =IF($A79<DATE(2018,7,1),"-",INDEX('Annual Inflation'!$AM$52:$AT$52, MATCH(YEAR(EOMONTH($A79,6)), 'Annual Inflation'!$AM$6:$AT$6, 0))/100) -> - | F79: =IF($A79<DATE(2018,7,1),"-",INDEX('Annual Inflation'!$AM$49:$AT$49, MATCH(YEAR(EOMONTH($A79,6)), 'Annual Inflation'!$AM$6:$AT$6, 0))/100) -> - | G79: 79.9 | H79: 193.1 | I79: 193.1
A80: 2005-10-01 | B80: 2006 | C80: 80 | D80: 193.3 | E80: =IF($A80<DATE(2018,7,1),"-",INDEX('Annual Inflation'!$AM$52:$AT$52, MATCH(YEAR(EOMONTH($A80,6)), 'Annual Inflation'!$AM$6:$AT$6, 0))/100) -> - | F80: =IF($A80<DATE(2018,7,1),"-",INDEX('Annual Inflation'!$AM$49:$AT$49, MATCH(YEAR(EOMONTH($A80,6)), 'Annual Inflation'!$AM$6:$AT$6, 0))/100) -> - | G80: 80 | H80: 193.3 | I80: 193.3
A81: 2005-11-01 | B81: 2006 | C81: 80 | D81: 193.6 | E81: =IF($A81<DATE(2018,7,1),"-",INDEX('Annual Inflation'!$AM$52:$AT$52, MATCH(YEAR(EOMONTH($A81,6)), 'Annual Inflation'!$AM$6:$AT$6, 0))/100) -> - | F81: =IF($A81<DATE(2018,7,1),"-",INDEX('Annual Inflation'!$AM$49:$AT$49, MATCH(YEAR(EOMONTH($A81,6)), 'Annual Inflation'!$AM$6:$AT$6, 0))/100) -> - | G81: 80 | H81: 193.6 | I81: 193.6
A82: 2005-12-01 | B82: 2006 | C82: 80.3 | D82: 194.1 | E82: =IF($A82<DATE(2018,7,1),"-",INDEX('Annual Inflation'!$AM$52:$AT$52, MATCH(YEAR(EOMONTH($A82,6)), 'Annual Inflation'!$AM$6:$AT$6, 0))/100) -> - | F82: =IF($A82<DATE(2018,7,1),"-",INDEX('Annual Inflation'!$AM$49:$AT$49, MATCH(YEAR(EOMONTH($A82,6)), 'Annual Inflation'!$AM$6:$AT$6, 0))/100) -> - | G82: 80.3 | H82: 194.1 | I82: 194.1
A83: 2006-01-01 | B83: 2006 | C83: 80 | D83: 193.4 | E83: =IF($A83<DATE(2018,7,1),"-",INDEX('Annual Inflation'!$AM$52:$AT$52, MATCH(YEAR(EOMONTH($A83,6)), 'Annual Inflation'!$AM$6:$AT$6, 0))/100) -> - | F83: =IF($A83<DATE(2018,7,1),"-",INDEX('Annual Inflation'!$AM$49:$AT$49, MATCH(YEAR(EOMONTH($A83,6)), 'Annual Inflation'!$AM$6:$AT$6, 0))/100) -> - | G83: 80 | H83: 193.4 | I83: 193.4
A84: 2006-02-01 | B84: 2006 | C84: 80.2 | D84: 194.2 | E84: =IF($A84<DATE(2018,7,1),"-",INDEX('Annual Inflation'!$AM$52:$AT$52, MATCH(YEAR(EOMONTH($A84,6)), 'Annual Inflation'!$AM$6:$AT$6, 0))/100) -> - | F84: =IF($A84<DATE(2018,7,1),"-",INDEX('Annual Inflation'!$AM$49:$AT$49, MATCH(YEAR(EOMONTH($A84,6)), 'Annual Inflation'!$AM$6:$AT$6, 0))/100) -> - | G84: 80.2 | H84: 194.2 | I84: 194.2
A85: 2006-03-01 | B85: 2006 | C85: 80.4 | D85: 195 | E85: =IF($A85<DATE(2018,7,1),"-",INDEX('Annual Inflation'!$AM$52:$AT$52, MATCH(YEAR(EOMONTH($A85,6)), 'Annual Inflation'!$AM$6:$AT$6, 0))/100) -> - | F85: =IF($A85<DATE(2018,7,1),"-",INDEX('Annual Inflation'!$AM$49:$AT$49, MATCH(YEAR(EOMONTH($A85,6)), 'Annual Inflation'!$AM$6:$AT$6, 0))/100) -> - | G85: 80.4 | H85: 195 | I85: 195
A86: 2006-04-01 | B86: 2007 | C86: 80.9 | D86: 196.5 | E86: =IF($A86<DATE(2018,7,1),"-",INDEX('Annual Inflation'!$AM$52:$AT$52, MATCH(YEAR(EOMONTH($A86,6)), 'Annual Inflation'!$AM$6:$AT$6, 0))/100) -> - | F86: =IF($A86<DATE(2018,7,1),"-",INDEX('Annual Inflation'!$AM$49:$AT$49, MATCH(YEAR(EOMONTH($A86,6)), 'Annual Inflation'!$AM$6:$AT$6, 0))/100) -> - | G86: 80.9 | H86: 196.5 | I86: 196.5
A87: 2006-05-01 | B87: 2007 | C87: 81.3 | D87: 197.7 | E87: =IF($A87<DATE(2018,7,1),"-",INDEX('Annual Inflation'!$AM$52:$AT$52, MATCH(YEAR(EOMONTH($A87,6)), 'Annual Inflation'!$AM$6:$AT$6, 0))/100) -> - | F87: =IF($A87<DATE(2018,7,1),"-",INDEX('Annual Inflation'!$AM$49:$AT$49, MATCH(YEAR(EOMONTH($A87,6)), 'Annual Inflation'!$AM$6:$AT$6, 0))/100) -> - | G87: 81.3 | H87: 197.7 | I87: 197.7
A88: 2006-06-01 | B88: 2007 | C88: 81.5 | D88: 198.5 | E88: =IF($A88<DATE(2018,7,1),"-",INDEX('Annual Inflation'!$AM$52:$AT$52, MATCH(YEAR(EOMONTH($A88,6)), 'Annual Inflation'!$AM$6:$AT$6, 0))/100) -> - | F88: =IF($A88<DATE(2018,7,1),"-",INDEX('Annual Inflation'!$AM$49:$AT$49, MATCH(YEAR(EOMONTH($A88,6)), 'Annual Inflation'!$AM$6:$AT$6, 0))/100) -> - | G88: 81.5 | H88: 198.5 | I88: 198.5
A89: 2006-07-01 | B89: 2007 | C89: 81.5 | D89: 198.5 | E89: =IF($A89<DATE(2018,7,1),"-",INDEX('Annual Inflation'!$AM$52:$AT$52, MATCH(YEAR(EOMONTH($A89,6)), 'Annual Inflation'!$AM$6:$AT$6, 0))/100) -> - | F89: =IF($A89<DATE(2018,7,1),"-",INDEX('Annual Inflation'!$AM$49:$AT$49, MATCH(YEAR(EOMONTH($A89,6)), 'Annual Inflation'!$AM$6:$AT$6, 0))/100) -> - | G89: 81.5 | H89: 198.5 | I89: 198.5
A90: 2006-08-01 | B90: 2007 | C90: 81.8 | D90: 199.2 | E90: =IF($A90<DATE(2018,7,1),"-",INDEX('Annual Inflation'!$AM$52:$AT$52, MATCH(YEAR(EOMONTH($A90,6)), 'Annual Inflation'!$AM$6:$AT$6, 0))/100) -> - | F90: =IF($A90<DATE(2018,7,1),"-",INDEX('Annual Inflation'!$AM$49:$AT$49, MATCH(YEAR(EOMONTH($A90,6)), 'Annual Inflation'!$AM$6:$AT$6, 0))/100) -> - | G90: 81.8 | H90: 199.2 | I90: 199.2
A91: 2006-09-01 | B91: 2007 | C91: 81.9 | D91: 200.1 | E91: =IF($A91<DATE(2018,7,1),"-",INDEX('Annual Inflation'!$AM$52:$AT$52, MATCH(YEAR(EOMONTH($A91,6)), 'Annual Inflation'!$AM$6:$AT$6, 0))/100) -> - | F91: =IF($A91<DATE(2018,7,1),"-",INDEX('Annual Inflation'!$AM$49:$AT$49, MATCH(YEAR(EOMONTH($A91,6)), 'Annual Inflation'!$AM$6:$AT$6, 0))/100) -> - | G91: 81.9 | H91: 200.1 | I91: 200.1
A92: 2006-10-01 | B92: 2007 | C92: 82 | D92: 200.4 | E92: =IF($A92<DATE(2018,7,1),"-",INDEX('Annual Inflation'!$AM$52:$AT$52, MATCH(YEAR(EOMONTH($A92,6)), 'Annual Inflation'!$AM$6:$AT$6, 0))/100) -> - | F92: =IF($A92<DATE(2018,7,1),"-",INDEX('Annual Inflation'!$AM$49:$AT$49, MATCH(YEAR(EOMONTH($A92,6)), 'Annual Inflation'!$AM$6:$AT$6, 0))/100) -> - | G92: 82 | H92: 200.4 | I92: 200.4
A93: 2006-11-01 | B93: 2007 | C93: 82.2 | D93: 201.1 | E93: =IF($A93<DATE(2018,7,1),"-",INDEX('Annual Inflation'!$AM$52:$AT$52, MATCH(YEAR(EOMONTH($A93,6)), 'Annual Inflation'!$AM$6:$AT$6, 0))/100) -> - | F93: =IF($A93<DATE(2018,7,1),"-",INDEX('Annual Inflation'!$AM$49:$AT$49, MATCH(YEAR(EOMONTH($A93,6)), 'Annual Inflation'!$AM$6:$AT$6, 0))/100) -> - | G93: 82.2 | H93: 201.1 | I93: 201.1
A94: 2006-12-01 | B94: 2007 | C94: 82.6 | D94: 202.7 | E94: =IF($A94<DATE(2018,7,1),"-",INDEX('Annual Inflation'!$AM$52:$AT$52, MATCH(YEAR(EOMONTH($A94,6)), 'Annual Inflation'!$AM$6:$AT$6, 0))/100) -> - | F94: =IF($A94<DATE(2018,7,1),"-",INDEX('Annual Inflation'!$AM$49:$AT$49, MATCH(YEAR(EOMONTH($A94,6)), 'Annual Inflation'!$AM$6:$AT$6, 0))/100) -> - | G94: 82.6 | H94: 202.7 | I94: 202.7
A95: 2007-01-01 | B95: 2007 | C95: 82.1 | D95: 201.6 | E95: =IF($A95<DATE(2018,7,1),"-",INDEX('Annual Inflation'!$AM$52:$AT$52, MATCH(YEAR(EOMONTH($A95,6)), 'Annual Inflation'!$AM$6:$AT$6, 0))/100) -> - | F95: =IF($A95<DATE(2018,7,1),"-",INDEX('Annual Inflation'!$AM$49:$AT$49, MATCH(YEAR(EOMONTH($A95,6)), 'Annual Inflation'!$AM$6:$AT$6, 0))/100) -> - | G95: 82.1 | H95: 201.6 | I95: 201.6
A96: 2007-02-01 | B96: 2007 | C96: 82.4 | D96: 203.1 | E96: =IF($A96<DATE(2018,7,1),"-",INDEX('Annual Inflation'!$AM$52:$AT$52, MATCH(YEAR(EOMONTH($A96,6)), 'Annual Inflation'!$AM$6:$AT$6, 0))/100) -> - | F96: =IF($A96<DATE(2018,7,1),"-",INDEX('Annual Inflation'!$AM$49:$AT$49, MATCH(YEAR(EOMONTH($A96,6)), 'Annual Inflation'!$AM$6:$AT$6, 0))/100) -> - | G96: 82.4 | H96: 203.1 | I96: 203.1
A97: 2007-03-01 | B97: 2007 | C97: 82.8 | D97: 204.4 | E97: =IF($A97<DATE(2018,7,1),"-",INDEX('Annual Inflation'!$AM$52:$AT$52, MATCH(YEAR(EOMONTH($A97,6)), 'Annual Inflation'!$AM$6:$AT$6, 0))/100) -> - | F97: =IF($A97<DATE(2018,7,1),"-",INDEX('Annual Inflation'!$AM$49:$AT$49, MATCH(YEAR(EOMONTH($A97,6)), 'Annual Inflation'!$AM$6:$AT$6, 0))/100) -> - | G97: 82.8 | H97: 204.4 | I97: 204.4
A98: 2007-04-01 | B98: 2008 | C98: 83.1 | D98: 205.4 | E98: =IF($A98<DATE(2018,7,1),"-",INDEX('Annual Inflation'!$AM$52:$AT$52, MATCH(YEAR(EOMONTH($A98,6)), 'Annual Inflation'!$AM$6:$AT$6, 0))/100) -> - | F98: =IF($A98<DATE(2018,7,1),"-",INDEX('Annual Inflation'!$AM$49:$AT$49, MATCH(YEAR(EOMONTH($A98,6)), 'Annual Inflation'!$AM$6:$AT$6, 0))/100) -> - | G98: 83.1 | H98: 205.4 | I98: 205.4
A99: 2007-05-01 | B99: 2008 | C99: 83.3 | D99: 206.2 | E99: =IF($A99<DATE(2018,7,1),"-",INDEX('Annual Inflation'!$AM$52:$AT$52, MATCH(YEAR(EOMONTH($A99,6)), 'Annual Inflation'!$AM$6:$AT$6, 0))/100) -> - | F99: =IF($A99<DATE(2018,7,1),"-",INDEX('Annual Inflation'!$AM$49:$AT$49, MATCH(YEAR(EOMONTH($A99,6)), 'Annual Inflation'!$AM$6:$AT$6, 0))/100) -> - | G99: 83.3 | H99: 206.2 | I99: 206.2
A100: 2007-06-01 | B100: 2008 | C100: 83.5 | D100: 207.3 | E100: =IF($A100<DATE(2018,7,1),"-",INDEX('Annual Inflation'!$AM$52:$AT$52, MATCH(YEAR(EOMONTH($A100,6)), 'Annual Inflation'!$AM$6:$AT$6, 0))/100) -> - | F100: =IF($A100<DATE(2018,7,1),"-",INDEX('Annual Inflation'!$AM$49:$AT$49, MATCH(YEAR(EOMONTH($A100,6)), 'Annual Inflation'!$AM$6:$AT$6, 0))/100) -> - | G100: 83.5 | H100: 207.3 | I100: 207.3
A101: 2007-07-01 | B101: 2008 | C101: 83.1 | D101: 206.1 | E101: =IF($A101<DATE(2018,7,1),"-",INDEX('Annual Inflation'!$AM$52:$AT$52, MATCH(YEAR(EOMONTH($A101,6)), 'Annual Inflation'!$AM$6:$AT$6, 0))/100) -> - | F101: =IF($A101<DATE(2018,7,1),"-",INDEX('Annual Inflation'!$AM$49:$AT$49, MATCH(YEAR(EOMONTH($A101,6)), 'Annual Inflation'!$AM$6:$AT$6, 0))/100) -> - | G101: 83.1 | H101: 206.1 | I101: 206.1
A102: 2007-08-01 | B102: 2008 | C102: 83.4 | D102: 207.3 | E102: =IF($A102<DATE(2018,7,1),"-",INDEX('Annual Inflation'!$AM$52:$AT$52, MATCH(YEAR(EOMONTH($A102,6)), 'Annual Inflation'!$AM$6:$AT$6, 0))/100) -> - | F102: =IF($A102<DATE(2018,7,1),"-",INDEX('Annual Inflation'!$AM$49:$AT$49, MATCH(YEAR(EOMONTH($A102,6)), 'Annual Inflation'!$AM$6:$AT$6, 0))/100) -> - | G102: 83.4 | H102: 207.3 | I102: 207.3
A103: 2007-09-01 | B103: 2008 | C103: 83.5 | D103: 208 | E103: =IF($A103<DATE(2018,7,1),"-",INDEX('Annual Inflation'!$AM$52:$AT$52, MATCH(YEAR(EOMONTH($A103,6)), 'Annual Inflation'!$AM$6:$AT$6, 0))/100) -> - | F103: =IF($A103<DATE(2018,7,1),"-",INDEX('Annual Inflation'!$AM$49:$AT$49, MATCH(YEAR(EOMONTH($A103,6)), 'Annual Inflation'!$AM$6:$AT$6, 0))/100) -> - | G103: 83.5 | H103: 208 | I103: 208
A104: 2007-10-01 | B104: 2008 | C104: 83.8 | D104: 208.9 | E104: =IF($A104<DATE(2018,7,1),"-",INDEX('Annual Inflation'!$AM$52:$AT$52, MATCH(YEAR(EOMONTH($A104,6)), 'Annual Inflation'!$AM$6:$AT$6, 0))/100) -> - | F104: =IF($A104<DATE(2018,7,1),"-",INDEX('Annual Inflation'!$AM$49:$AT$49, MATCH(YEAR(EOMONTH($A104,6)), 'Annual Inflation'!$AM$6:$AT$6, 0))/100) -> - | G104: 83.8 | H104: 208.9 | I104: 208.9
A105: 2007-11-01 | B105: 2008 | C105: 84.1 | D105: 209.7 | E105: =IF($A105<DATE(2018,7,1),"-",INDEX('Annual Inflation'!$AM$52:$AT$52, MATCH(YEAR(EOMONTH($A105,6)), 'Annual Inflation'!$AM$6:$AT$6, 0))/100) -> - | F105: =IF($A105<DATE(2018,7,1),"-",INDEX('Annual Inflation'!$AM$49:$AT$49, MATCH(YEAR(EOMONTH($A105,6)), 'Annual Inflation'!$AM$6:$AT$6, 0))/100) -> - | G105: 84.1 | H105: 209.7 | I105: 209.7
A106: 2007-12-01 | B106: 2008 | C106: 84.5 | D106: 210.9 | E106: =IF($A106<DATE(2018,7,1),"-",INDEX('Annual Inflation'!$AM$52:$AT$52, MATCH(YEAR(EOMONTH($A106,6)), 'Annual Inflation'!$AM$6:$AT$6, 0))/100) -> - | F106: =IF($A106<DATE(2018,7,1),"-",INDEX('Annual Inflation'!$AM$49:$AT$49, MATCH(YEAR(EOMONTH($A106,6)), 'Annual Inflation'!$AM$6:$AT$6, 0))/100) -> - | G106: 84.5 | H106: 210.9 | I106: 210.9
A107: 2008-01-01 | B107: 2008 | C107: 84.1 | D107: 209.8 | E107: =IF($A107<DATE(2018,7,1),"-",INDEX('Annual Inflation'!$AM$52:$AT$52, MATCH(YEAR(EOMONTH($A107,6)), 'Annual Inflation'!$AM$6:$AT$6, 0))/100) -> - | F107: =IF($A107<DATE(2018,7,1),"-",INDEX('Annual Inflation'!$AM$49:$AT$49, MATCH(YEAR(EOMONTH($A107,6)), 'Annual Inflation'!$AM$6:$AT$6, 0))/100) -> - | G107: 84.1 | H107: 209.8 | I107: 209.8
A108: 2008-02-01 | B108: 2008 | C108: 84.6 | D108: 211.4 | E108: =IF($A108<DATE(2018,7,1),"-",INDEX('Annual Inflation'!$AM$52:$AT$52, MATCH(YEAR(EOMONTH($A108,6)), 'Annual Inflation'!$AM$6:$AT$6, 0))/100) -> - | F108: =IF($A108<DATE(2018,7,1),"-",INDEX('Annual Inflation'!$AM$49:$AT$49, MATCH(YEAR(EOMONTH($A108,6)), 'Annual Inflation'!$AM$6:$AT$6, 0))/100) -> - | G108: 84.6 | H108: 211.4 | I108: 211.4
A109: 2008-03-01 | B109: 2008 | C109: 84.9 | D109: 212.1 | E109: =IF($A109<DATE(2018,7,1),"-",INDEX('Annual Inflation'!$AM$52:$AT$52, MATCH(YEAR(EOMONTH($A109,6)), 'Annual Inflation'!$AM$6:$AT$6, 0))/100) -> - | F109: =IF($A109<DATE(2018,7,1),"-",INDEX('Annual Inflation'!$AM$49:$AT$49, MATCH(YEAR(EOMONTH($A109,6)), 'Annual Inflation'!$AM$6:$AT$6, 0))/100) -> - | G109: 84.9 | H109: 212.1 | I109: 212.1
A110: 2008-04-01 | B110: 2009 | C110: 85.6 | D110: 214 | E110: =IF($A110<DATE(2018,7,1),"-",INDEX('Annual Inflation'!$AM$52:$AT$52, MATCH(YEAR(EOMONTH($A110,6)), 'Annual Inflation'!$AM$6:$AT$6, 0))/100) -> - | F110: =IF($A110<DATE(2018,7,1),"-",INDEX('Annual Inflation'!$AM$49:$AT$49, MATCH(YEAR(EOMONTH($A110,6)), 'Annual Inflation'!$AM$6:$AT$6, 0))/100) -> - | G110: 85.6 | H110: 214 | I110: 214
A111: 2008-05-01 | B111: 2009 | C111: 86.1 | D111: 215.1 | E111: =IF($A111<DATE(2018,7,1),"-",INDEX('Annual Inflation'!$AM$52:$AT$52, MATCH(YEAR(EOMONTH($A111,6)), 'Annual Inflation'!$AM$6:$AT$6, 0))/100) -> - | F111: =IF($A111<DATE(2018,7,1),"-",INDEX('Annual Inflation'!$AM$49:$AT$49, MATCH(YEAR(EOMONTH($A111,6)), 'Annual Inflation'!$AM$6:$AT$6, 0))/100) -> - | G111: 86.1 | H111: 215.1 | I111: 215.1
A112: 2008-06-01 | B112: 2009 | C112: 86.6 | D112: 216.8 | E112: =IF($A112<DATE(2018,7,1),"-",INDEX('Annual Inflation'!$AM$52:$AT$52, MATCH(YEAR(EOMONTH($A112,6)), 'Annual Inflation'!$AM$6:$AT$6, 0))/100) -> - | F112: =IF($A112<DATE(2018,7,1),"-",INDEX('Annual Inflation'!$AM$49:$AT$49, MATCH(YEAR(EOMONTH($A112,6)), 'Annual Inflation'!$AM$6:$AT$6, 0))/100) -> - | G112: 86.6 | H112: 216.8 | I112: 216.8
A113: 2008-07-01 | B113: 2009 | C113: 86.6 | D113: 216.5 | E113: =IF($A113<DATE(2018,7,1),"-",INDEX('Annual Inflation'!$AM$52:$AT$52, MATCH(YEAR(EOMONTH($A113,6)), 'Annual Inflation'!$AM$6:$AT$6, 0))/100) -> - | F113: =IF($A113<DATE(2018,7,1),"-",INDEX('Annual Inflation'!$AM$49:$AT$49, MATCH(YEAR(EOMONTH($A113,6)), 'Annual Inflation'!$AM$6:$AT$6, 0))/100) -> - | G113: 86.6 | H113: 216.5 | I113: 216.5
A114: 2008-08-01 | B114: 2009 | C114: 87.1 | D114: 217.2 | E114: =IF($A114<DATE(2018,7,1),"-",INDEX('Annual Inflation'!$AM$52:$AT$52, MATCH(YEAR(EOMONTH($A114,6)), 'Annual Inflation'!$AM$6:$AT$6, 0))/100) -> - | F114: =IF($A114<DATE(2018,7,1),"-",INDEX('Annual Inflation'!$AM$49:$AT$49, MATCH(YEAR(EOMONTH($A114,6)), 'Annual Inflation'!$AM$6:$AT$6, 0))/100) -> - | G114: 87.1 | H114: 217.2 | I114: 217.2
A115: 2008-09-01 | B115: 2009 | C115: 87.5 | D115: 218.4 | E115: =IF($A115<DATE(2018,7,1),"-",INDEX('Annual Inflation'!$AM$52:$AT$52, MATCH(YEAR(EOMONTH($A115,6)), 'Annual Inflation'!$AM$6:$AT$6, 0))/100) -> - | F115: =IF($A115<DATE(2018,7,1),"-",INDEX('Annual Inflation'!$AM$49:$AT$49, MATCH(YEAR(EOMONTH($A115,6)), 'Annual Inflation'!$AM$6:$AT$6, 0))/100) -> - | G115: 87.5 | H115: 218.4 | I115: 218.4
A116: 2008-10-01 | B116: 2009 | C116: 87.3 | D116: 217.7 | E116: =IF($A116<DATE(2018,7,1),"-",INDEX('Annual Inflation'!$AM$52:$AT$52, MATCH(YEAR(EOMONTH($A116,6)), 'Annual Inflation'!$AM$6:$AT$6, 0))/100) -> - | F116: =IF($A116<DATE(2018,7,1),"-",INDEX('Annual Inflation'!$AM$49:$AT$49, MATCH(YEAR(EOMONTH($A116,6)), 'Annual Inflation'!$AM$6:$AT$6, 0))/100) -> - | G116: 87.3 | H116: 217.7 | I116: 217.7
A117: 2008-11-01 | B117: 2009 | C117: 87.3 | D117: 216 | E117: =IF($A117<DATE(2018,7,1),"-",INDEX('Annual Inflation'!$AM$52:$AT$52, MATCH(YEAR(EOMONTH($A117,6)), 'Annual Inflation'!$AM$6:$AT$6, 0))/100) -> - | F117: =IF($A117<DATE(2018,7,1),"-",INDEX('Annual Inflation'!$AM$49:$AT$49, MATCH(YEAR(EOMONTH($A117,6)), 'Annual Inflation'!$AM$6:$AT$6, 0))/100) -> - | G117: 87.3 | H117: 216 | I117: 216
A118: 2008-12-01 | B118: 2009 | C118: 87.1 | D118: 212.9 | E118: =IF($A118<DATE(2018,7,1),"-",INDEX('Annual Inflation'!$AM$52:$AT$52, MATCH(YEAR(EOMONTH($A118,6)), 'Annual Inflation'!$AM$6:$AT$6, 0))/100) -> - | F118: =IF($A118<DATE(2018,7,1),"-",INDEX('Annual Inflation'!$AM$49:$AT$49, MATCH(YEAR(EOMONTH($A118,6)), 'Annual Inflation'!$AM$6:$AT$6, 0))/100) -> - | G118: 87.1 | H118: 212.9 | I118: 212.9
A119: 2009-01-01 | B119: 2009 | C119: 86.6 | D119: 210.1 | E119: =IF($A119<DATE(2018,7,1),"-",INDEX('Annual Inflation'!$AM$52:$AT$52, MATCH(YEAR(EOMONTH($A119,6)), 'Annual Inflation'!$AM$6:$AT$6, 0))/100) -> - | F119: =IF($A119<DATE(2018,7,1),"-",INDEX('Annual Inflation'!$AM$49:$AT$49, MATCH(YEAR(EOMONTH($A119,6)), 'Annual Inflation'!$AM$6:$AT$6, 0))/100) -> - | G119: 86.6 | H119: 210.1 | I119: 210.1
A120: 2009-02-01 | B120: 2009 | C120: 87.2 | D120: 211.4 | E120: =IF($A120<DATE(2018,7,1),"-",INDEX('Annual Inflation'!$AM$52:$AT$52, MATCH(YEAR(EOMONTH($A120,6)), 'Annual Inflation'!$AM$6:$AT$6, 0))/100) -> - | F120: =IF($A120<DATE(2018,7,1),"-",INDEX('Annual Inflation'!$AM$49:$AT$49, MATCH(YEAR(EOMONTH($A120,6)), 'Annual Inflation'!$AM$6:$AT$6, 0))/100) -> - | G120: 87.2 | H120: 211.4 | I120: 211.4
A121: 2009-03-01 | B121: 2009 | C121: 87.3 | D121: 211.3 | E121: =IF($A121<DATE(2018,7,1),"-",INDEX('Annual Inflation'!$AM$52:$AT$52, MATCH(YEAR(EOMONTH($A121,6)), 'Annual Inflation'!$AM$6:$AT$6, 0))/100) -> - | F121: =IF($A121<DATE(2018,7,1),"-",INDEX('Annual Inflation'!$AM$49:$AT$49, MATCH(YEAR(EOMONTH($A121,6)), 'Annual Inflation'!$AM$6:$AT$6, 0))/100) -> - | G121: 87.3 | H121: 211.3 | I121: 211.3
A122: 2009-04-01 | B122: 2010 | C122: 87.5 | D122: 211.5 | E122: =IF($A122<DATE(2018,7,1),"-",INDEX('Annual Inflation'!$AM$52:$AT$52, MATCH(YEAR(EOMONTH($A122,6)), 'Annual Inflation'!$AM$6:$AT$6, 0))/100) -> - | F122: =IF($A122<DATE(2018,7,1),"-",INDEX('Annual Inflation'!$AM$49:$AT$49, MATCH(YEAR(EOMONTH($A122,6)), 'Annual Inflation'!$AM$6:$AT$6, 0))/100) -> - | G122: 87.5 | H122: 211.5 | I122: 211.5
A123: 2009-05-01 | B123: 2010 | C123: 87.9 | D123: 212.8 | E123: =IF($A123<DATE(2018,7,1),"-",INDEX('Annual Inflation'!$AM$52:$AT$52, MATCH(YEAR(EOMONTH($A123,6)), 'Annual Inflation'!$AM$6:$AT$6, 0))/100) -> - | F123: =IF($A123<DATE(2018,7,1),"-",INDEX('Annual Inflation'!$AM$49:$AT$49, MATCH(YEAR(EOMONTH($A123,6)), 'Annual Inflation'!$AM$6:$AT$6, 0))/100) -> - | G123: 87.9 | H123: 212.8 | I123: 212.8
A124: 2009-06-01 | B124: 2010 | C124: 88.1 | D124: 213.4 | E124: =IF($A124<DATE(2018,7,1),"-",INDEX('Annual Inflation'!$AM$52:$AT$52, MATCH(YEAR(EOMONTH($A124,6)), 'Annual Inflation'!$AM$6:$AT$6, 0))/100) -> - | F124: =IF($A124<DATE(2018,7,1),"-",INDEX('Annual Inflation'!$AM$49:$AT$49, MATCH(YEAR(EOMONTH($A124,6)), 'Annual Inflation'!$AM$6:$AT$6, 0))/100) -> - | G124: 88.1 | H124: 213.4 | I124: 213.4
A125: 2009-07-01 | B125: 2010 | C125: 88 | D125: 213.4 | E125: =IF($A125<DATE(2018,7,1),"-",INDEX('Annual Inflation'!$AM$52:$AT$52, MATCH(YEAR(EOMONTH($A125,6)), 'Annual Inflation'!$AM$6:$AT$6, 0))/100) -> - | F125: =IF($A125<DATE(2018,7,1),"-",INDEX('Annual Inflation'!$AM$49:$AT$49, MATCH(YEAR(EOMONTH($A125,6)), 'Annual Inflation'!$AM$6:$AT$6, 0))/100) -> - | G125: 88 | H125: 213.4 | I125: 213.4
A126: 2009-08-01 | B126: 2010 | C126: 88.3 | D126: 214.4 | E126: =IF($A126<DATE(2018,7,1),"-",INDEX('Annual Inflation'!$AM$52:$AT$52, MATCH(YEAR(EOMONTH($A126,6)), 'Annual Inflation'!$AM$6:$AT$6, 0))/100) -> - | F126: =IF($A126<DATE(2018,7,1),"-",INDEX('Annual Inflation'!$AM$49:$AT$49, MATCH(YEAR(EOMONTH($A126,6)), 'Annual Inflation'!$AM$6:$AT$6, 0))/100) -> - | G126: 88.3 | H126: 214.4 | I126: 214.4
A127: 2009-09-01 | B127: 2010 | C127: 88.3 | D127: 215.3 | E127: =IF($A127<DATE(2018,7,1),"-",INDEX('Annual Inflation'!$AM$52:$AT$52, MATCH(YEAR(EOMONTH($A127,6)), 'Annual Inflation'!$AM$6:$AT$6, 0))/100) -> - | F127: =IF($A127<DATE(2018,7,1),"-",INDEX('Annual Inflation'!$AM$49:$AT$49, MATCH(YEAR(EOMONTH($A127,6)), 'Annual Inflation'!$AM$6:$AT$6, 0))/100) -> - | G127: 88.3 | H127: 215.3 | I127: 215.3
A128: 2009-10-01 | B128: 2010 | C128: 88.4 | D128: 216 | E128: =IF($A128<DATE(2018,7,1),"-",INDEX('Annual Inflation'!$AM$52:$AT$52, MATCH(YEAR(EOMONTH($A128,6)), 'Annual Inflation'!$AM$6:$AT$6, 0))/100) -> - | F128: =IF($A128<DATE(2018,7,1),"-",INDEX('Annual Inflation'!$AM$49:$AT$49, MATCH(YEAR(EOMONTH($A128,6)), 'Annual Inflation'!$AM$6:$AT$6, 0))/100) -> - | G128: 88.4 | H128: 216 | I128: 216
A129: 2009-11-01 | B129: 2010 | C129: 88.6 | D129: 216.6 | E129: =IF($A129<DATE(2018,7,1),"-",INDEX('Annual Inflation'!$AM$52:$AT$52, MATCH(YEAR(EOMONTH($A129,6)), 'Annual Inflation'!$AM$6:$AT$6, 0))/100) -> - | F129: =IF($A129<DATE(2018,7,1),"-",INDEX('Annual Inflation'!$AM$49:$AT$49, MATCH(YEAR(EOMONTH($A129,6)), 'Annual Inflation'!$AM$6:$AT$6, 0))/100) -> - | G129: 88.6 | H129: 216.6 | I129: 216.6
A130: 2009-12-01 | B130: 2010 | C130: 88.9 | D130: 218 | E130: =IF($A130<DATE(2018,7,1),"-",INDEX('Annual Inflation'!$AM$52:$AT$52, MATCH(YEAR(EOMONTH($A130,6)), 'Annual Inflation'!$AM$6:$AT$6, 0))/100) -> - | F130: =IF($A130<DATE(2018,7,1),"-",INDEX('Annual Inflation'!$AM$49:$AT$49, MATCH(YEAR(EOMONTH($A130,6)), 'Annual Inflation'!$AM$6:$AT$6, 0))/100) -> - | G130: 88.9 | H130: 218 | I130: 218
A131: 2010-01-01 | B131: =IF(MONTH(A131)>=4,YEAR(A131)+1,YEAR(A131)) -> 2010 | C131: 88.8 | D131: 217.9 | E131: =IF($A131<DATE(2018,7,1),"-",INDEX('Annual Inflation'!$AM$52:$AT$52, MATCH(YEAR(EOMONTH($A131,6)), 'Annual Inflation'!$AM$6:$AT$6, 0))/100) -> - | F131: =IF($A131<DATE(2018,7,1),"-",INDEX('Annual Inflation'!$AM$49:$AT$49, MATCH(YEAR(EOMONTH($A131,6)), 'Annual Inflation'!$AM$6:$AT$6, 0))/100) -> - | G131: =IF(ISBLANK(C131),G130*((1+E131)^(1/12)),C131) -> 88.8 | H131: =IF(ISBLANK(D131),H130*((1+F131)^(1/12)),D131) -> 217.9 | I131: =IF($A131<DATE(2021,4,1),H131,IF(A131=DATE(2021,4,1),I130*((0.5*G131/G130)+(0.5*H131/H130)),I130*(G131/G130))) -> 217.9
A132: 2010-02-01 | B132: 2010 | C132: 89 | D132: 219.2 | E132: =IF($A132<DATE(2018,7,1),"-",INDEX('Annual Inflation'!$AM$52:$AT$52, MATCH(YEAR(EOMONTH($A132,6)), 'Annual Inflation'!$AM$6:$AT$6, 0))/100) -> - | F132: =IF($A132<DATE(2018,7,1),"-",INDEX('Annual Inflation'!$AM$49:$AT$49, MATCH(YEAR(EOMONTH($A132,6)), 'Annual Inflation'!$AM$6:$AT$6, 0))/100) -> - | G132: 89 | H132: 219.2 | I132: 219.2
A133: 2010-03-01 | B133: 2010 | C133: 89.4 | D133: 220.7 | E133: =IF($A133<DATE(2018,7,1),"-",INDEX('Annual Inflation'!$AM$52:$AT$52, MATCH(YEAR(EOMONTH($A133,6)), 'Annual Inflation'!$AM$6:$AT$6, 0))/100) -> - | F133: =IF($A133<DATE(2018,7,1),"-",INDEX('Annual Inflation'!$AM$49:$AT$49, MATCH(YEAR(EOMONTH($A133,6)), 'Annual Inflation'!$AM$6:$AT$6, 0))/100) -> - | G133: 89.4 | H133: 220.7 | I133: 220.7
A134: 2010-04-01 | B134: 2011 | C134: 89.9 | D134: 222.8 | E134: =IF($A134<DATE(2018,7,1),"-",INDEX('Annual Inflation'!$AM$52:$AT$52, MATCH(YEAR(EOMONTH($A134,6)), 'Annual Inflation'!$AM$6:$AT$6, 0))/100) -> - | F134: =IF($A134<DATE(2018,7,1),"-",INDEX('Annual Inflation'!$AM$49:$AT$49, MATCH(YEAR(EOMONTH($A134,6)), 'Annual Inflation'!$AM$6:$AT$6, 0))/100) -> - | G134: 89.9 | H134: 222.8 | I134: 222.8
A135: 2010-05-01 | B135: 2011 | C135: 90.1 | D135: 223.6 | E135: =IF($A135<DATE(2018,7,1),"-",INDEX('Annual Inflation'!$AM$52:$AT$52, MATCH(YEAR(EOMONTH($A135,6)), 'Annual Inflation'!$AM$6:$AT$6, 0))/100) -> - | F135: =IF($A135<DATE(2018,7,1),"-",INDEX('Annual Inflation'!$AM$49:$AT$49, MATCH(YEAR(EOMONTH($A135,6)), 'Annual Inflation'!$AM$6:$AT$6, 0))/100) -> - | G135: 90.1 | H135: 223.6 | I135: 223.6
A136: 2010-06-01 | B136: 2011 | C136: 90.2 | D136: 224.1 | E136: =IF($A136<DATE(2018,7,1),"-",INDEX('Annual Inflation'!$AM$52:$AT$52, MATCH(YEAR(EOMONTH($A136,6)), 'Annual Inflation'!$AM$6:$AT$6, 0))/100) -> - | F136: =IF($A136<DATE(2018,7,1),"-",INDEX('Annual Inflation'!$AM$49:$AT$49, MATCH(YEAR(EOMONTH($A136,6)), 'Annual Inflation'!$AM$6:$AT$6, 0))/100) -> - | G136: 90.2 | H136: 224.1 | I136: 224.1
A137: 2010-07-01 | B137: 2011 | C137: 90 | D137: 223.6 | E137: =IF($A137<DATE(2018,7,1),"-",INDEX('Annual Inflation'!$AM$52:$AT$52, MATCH(YEAR(EOMONTH($A137,6)), 'Annual Inflation'!$AM$6:$AT$6, 0))/100) -> - | F137: =IF($A137<DATE(2018,7,1),"-",INDEX('Annual Inflation'!$AM$49:$AT$49, MATCH(YEAR(EOMONTH($A137,6)), 'Annual Inflation'!$AM$6:$AT$6, 0))/100) -> - | G137: 90 | H137: 223.6 | I137: 223.6
A138: 2010-08-01 | B138: 2011 | C138: 90.4 | D138: 224.5 | E138: =IF($A138<DATE(2018,7,1),"-",INDEX('Annual Inflation'!$AM$52:$AT$52, MATCH(YEAR(EOMONTH($A138,6)), 'Annual Inflation'!$AM$6:$AT$6, 0))/100) -> - | F138: =IF($A138<DATE(2018,7,1),"-",INDEX('Annual Inflation'!$AM$49:$AT$49, MATCH(YEAR(EOMONTH($A138,6)), 'Annual Inflation'!$AM$6:$AT$6, 0))/100) -> - | G138: 90.4 | H138: 224.5 | I138: 224.5
A139: 2010-09-01 | B139: 2011 | C139: 90.4 | D139: 225.3 | E139: =IF($A139<DATE(2018,7,1),"-",INDEX('Annual Inflation'!$AM$52:$AT$52, MATCH(YEAR(EOMONTH($A139,6)), 'Annual Inflation'!$AM$6:$AT$6, 0))/100) -> - | F139: =IF($A139<DATE(2018,7,1),"-",INDEX('Annual Inflation'!$AM$49:$AT$49, MATCH(YEAR(EOMONTH($A139,6)), 'Annual Inflation'!$AM$6:$AT$6, 0))/100) -> - | G139: 90.4 | H139: 225.3 | I139: 225.3
A140: 2010-10-01 | B140: 2011 | C140: 90.6 | D140: 225.8 | E140: =IF($A140<DATE(2018,7,1),"-",INDEX('Annual Inflation'!$AM$52:$AT$52, MATCH(YEAR(EOMONTH($A140,6)), 'Annual Inflation'!$AM$6:$AT$6, 0))/100) -> - | F140: =IF($A140<DATE(2018,7,1),"-",INDEX('Annual Inflation'!$AM$49:$AT$49, MATCH(YEAR(EOMONTH($A140,6)), 'Annual Inflation'!$AM$6:$AT$6, 0))/100) -> - | G140: 90.6 | H140: 225.8 | I140: 225.8
A141: 2010-11-01 | B141: 2011 | C141: 90.9 | D141: 226.8 | E141: =IF($A141<DATE(2018,7,1),"-",INDEX('Annual Inflation'!$AM$52:$AT$52, MATCH(YEAR(EOMONTH($A141,6)), 'Annual Inflation'!$AM$6:$AT$6, 0))/100) -> - | F141: =IF($A141<DATE(2018,7,1),"-",INDEX('Annual Inflation'!$AM$49:$AT$49, MATCH(YEAR(EOMONTH($A141,6)), 'Annual Inflation'!$AM$6:$AT$6, 0))/100) -> - | G141: 90.9 | H141: 226.8 | I141: 226.8
A142: 2010-12-01 | B142: 2011 | C142: 91.7 | D142: 228.4 | E142: =IF($A142<DATE(2018,7,1),"-",INDEX('Annual Inflation'!$AM$52:$AT$52, MATCH(YEAR(EOMONTH($A142,6)), 'Annual Inflation'!$AM$6:$AT$6, 0))/100) -> - | F142: =IF($A142<DATE(2018,7,1),"-",INDEX('Annual Inflation'!$AM$49:$AT$49, MATCH(YEAR(EOMONTH($A142,6)), 'Annual Inflation'!$AM$6:$AT$6, 0))/100) -> - | G142: 91.7 | H142: 228.4 | I142: 228.4
A143: 2011-01-01 | B143: 2011 | C143: 91.8 | D143: 229 | E143: =IF($A143<DATE(2018,7,1),"-",INDEX('Annual Inflation'!$AM$52:$AT$52, MATCH(YEAR(EOMONTH($A143,6)), 'Annual Inflation'!$AM$6:$AT$6, 0))/100) -> - | F143: =IF($A143<DATE(2018,7,1),"-",INDEX('Annual Inflation'!$AM$49:$AT$49, MATCH(YEAR(EOMONTH($A143,6)), 'Annual Inflation'!$AM$6:$AT$6, 0))/100) -> - | G143: 91.8 | H143: 229 | I143: 229
A144: 2011-02-01 | B144: 2011 | C144: 92.3 | D144: 231.3 | E144: =IF($A144<DATE(2018,7,1),"-",INDEX('Annual Inflation'!$AM$52:$AT$52, MATCH(YEAR(EOMONTH($A144,6)), 'Annual Inflation'!$AM$6:$AT$6, 0))/100) -> - | F144: =IF($A144<DATE(2018,7,1),"-",INDEX('Annual Inflation'!$AM$49:$AT$49, MATCH(YEAR(EOMONTH($A144,6)), 'Annual Inflation'!$AM$6:$AT$6, 0))/100) -> - | G144: 92.3 | H144: 231.3 | I144: 231.3
A145: 2011-03-01 | B145: 2011 | C145: 92.6 | D145: 232.5 | E145: =IF($A145<DATE(2018,7,1),"-",INDEX('Annual Inflation'!$AM$52:$AT$52, MATCH(YEAR(EOMONTH($A145,6)), 'Annual Inflation'!$AM$6:$AT$6, 0))/100) -> - | F145: =IF($A145<DATE(2018,7,1),"-",INDEX('Annual Inflation'!$AM$49:$AT$49, MATCH(YEAR(EOMONTH($A145,6)), 'Annual Inflation'!$AM$6:$AT$6, 0))/100) -> - | G145: 92.6 | H145: 232.5 | I145: 232.5
A146: 2011-04-01 | B146: 2012 | C146: 93.3 | D146: 234.4 | E146: =IF($A146<DATE(2018,7,1),"-",INDEX('Annual Inflation'!$AM$52:$AT$52, MATCH(YEAR(EOMONTH($A146,6)), 'Annual Inflation'!$AM$6:$AT$6, 0))/100) -> - | F146: =IF($A146<DATE(2018,7,1),"-",INDEX('Annual Inflation'!$AM$49:$AT$49, MATCH(YEAR(EOMONTH($A146,6)), 'Annual Inflation'!$AM$6:$AT$6, 0))/100) -> - | G146: 93.3 | H146: 234.4 | I146: 234.4
A147: 2011-05-01 | B147: 2012 | C147: 93.5 | D147: 235.2 | E147: =IF($A147<DATE(2018,7,1),"-",INDEX('Annual Inflation'!$AM$52:$AT$52, MATCH(YEAR(EOMONTH($A147,6)), 'Annual Inflation'!$AM$6:$AT$6, 0))/100) -> - | F147: =IF($A147<DATE(2018,7,1),"-",INDEX('Annual Inflation'!$AM$49:$AT$49, MATCH(YEAR(EOMONTH($A147,6)), 'Annual Inflation'!$AM$6:$AT$6, 0))/100) -> - | G147: 93.5 | H147: 235.2 | I147: 235.2
A148: 2011-06-01 | B148: 2012 | C148: 93.5 | D148: 235.2 | E148: =IF($A148<DATE(2018,7,1),"-",INDEX('Annual Inflation'!$AM$52:$AT$52, MATCH(YEAR(EOMONTH($A148,6)), 'Annual Inflation'!$AM$6:$AT$6, 0))/100) -> - | F148: =IF($A148<DATE(2018,7,1),"-",INDEX('Annual Inflation'!$AM$49:$AT$49, MATCH(YEAR(EOMONTH($A148,6)), 'Annual Inflation'!$AM$6:$AT$6, 0))/100) -> - | G148: 93.5 | H148: 235.2 | I148: 235.2
A149: 2011-07-01 | B149: 2012 | C149: 93.5 | D149: 234.7 | E149: =IF($A149<DATE(2018,7,1),"-",INDEX('Annual Inflation'!$AM$52:$AT$52, MATCH(YEAR(EOMONTH($A149,6)), 'Annual Inflation'!$AM$6:$AT$6, 0))/100) -> - | F149: =IF($A149<DATE(2018,7,1),"-",INDEX('Annual Inflation'!$AM$49:$AT$49, MATCH(YEAR(EOMONTH($A149,6)), 'Annual Inflation'!$AM$6:$AT$6, 0))/100) -> - | G149: 93.5 | H149: 234.7 | I149: 234.7
A150: 2011-08-01 | B150: 2012 | C150: 93.9 | D150: 236.1 | E150: =IF($A150<DATE(2018,7,1),"-",INDEX('Annual Inflation'!$AM$52:$AT$52, MATCH(YEAR(EOMONTH($A150,6)), 'Annual Inflation'!$AM$6:$AT$6, 0))/100) -> - | F150: =IF($A150<DATE(2018,7,1),"-",INDEX('Annual Inflation'!$AM$49:$AT$49, MATCH(YEAR(EOMONTH($A150,6)), 'Annual Inflation'!$AM$6:$AT$6, 0))/100) -> - | G150: 93.9 | H150: 236.1 | I150: 236.1
A151: 2011-09-01 | B151: 2012 | C151: 94.5 | D151: 237.9 | E151: =IF($A151<DATE(2018,7,1),"-",INDEX('Annual Inflation'!$AM$52:$AT$52, MATCH(YEAR(EOMONTH($A151,6)), 'Annual Inflation'!$AM$6:$AT$6, 0))/100) -> - | F151: =IF($A151<DATE(2018,7,1),"-",INDEX('Annual Inflation'!$AM$49:$AT$49, MATCH(YEAR(EOMONTH($A151,6)), 'Annual Inflation'!$AM$6:$AT$6, 0))/100) -> - | G151: 94.5 | H151: 237.9 | I151: 237.9
A152: 2011-10-01 | B152: 2012 | C152: 94.5 | D152: 238 | E152: =IF($A152<DATE(2018,7,1),"-",INDEX('Annual Inflation'!$AM$52:$AT$52, MATCH(YEAR(EOMONTH($A152,6)), 'Annual Inflation'!$AM$6:$AT$6, 0))/100) -> - | F152: =IF($A152<DATE(2018,7,1),"-",INDEX('Annual Inflation'!$AM$49:$AT$49, MATCH(YEAR(EOMONTH($A152,6)), 'Annual Inflation'!$AM$6:$AT$6, 0))/100) -> - | G152: 94.5 | H152: 238 | I152: 238
A153: 2011-11-01 | B153: 2012 | C153: 94.7 | D153: 238.5 | E153: =IF($A153<DATE(2018,7,1),"-",INDEX('Annual Inflation'!$AM$52:$AT$52, MATCH(YEAR(EOMONTH($A153,6)), 'Annual Inflation'!$AM$6:$AT$6, 0))/100) -> - | F153: =IF($A153<DATE(2018,7,1),"-",INDEX('Annual Inflation'!$AM$49:$AT$49, MATCH(YEAR(EOMONTH($A153,6)), 'Annual Inflation'!$AM$6:$AT$6, 0))/100) -> - | G153: 94.7 | H153: 238.5 | I153: 238.5
A154: 2011-12-01 | B154: 2012 | C154: 95 | D154: 239.4 | E154: =IF($A154<DATE(2018,7,1),"-",INDEX('Annual Inflation'!$AM$52:$AT$52, MATCH(YEAR(EOMONTH($A154,6)), 'Annual Inflation'!$AM$6:$AT$6, 0))/100) -> - | F154: =IF($A154<DATE(2018,7,1),"-",INDEX('Annual Inflation'!$AM$49:$AT$49, MATCH(YEAR(EOMONTH($A154,6)), 'Annual Inflation'!$AM$6:$AT$6, 0))/100) -> - | G154: 95 | H154: 239.4 | I154: 239.4
A155: 2012-01-01 | B155: 2012 | C155: 94.7 | D155: 238 | E155: =IF($A155<DATE(2018,7,1),"-",INDEX('Annual Inflation'!$AM$52:$AT$52, MATCH(YEAR(EOMONTH($A155,6)), 'Annual Inflation'!$AM$6:$AT$6, 0))/100) -> - | F155: =IF($A155<DATE(2018,7,1),"-",INDEX('Annual Inflation'!$AM$49:$AT$49, MATCH(YEAR(EOMONTH($A155,6)), 'Annual Inflation'!$AM$6:$AT$6, 0))/100) -> - | G155: 94.7 | H155: 238 | I155: 238
A156: 2012-02-01 | B156: 2012 | C156: 95.2 | D156: 239.9 | E156: =IF($A156<DATE(2018,7,1),"-",INDEX('Annual Inflation'!$AM$52:$AT$52, MATCH(YEAR(EOMONTH($A156,6)), 'Annual Inflation'!$AM$6:$AT$6, 0))/100) -> - | F156: =IF($A156<DATE(2018,7,1),"-",INDEX('Annual Inflation'!$AM$49:$AT$49, MATCH(YEAR(EOMONTH($A156,6)), 'Annual Inflation'!$AM$6:$AT$6, 0))/100) -> - | G156: 95.2 | H156: 239.9 | I156: 239.9
A157: 2012-03-01 | B157: 2012 | C157: 95.4 | D157: 240.8 | E157: =IF($A157<DATE(2018,7,1),"-",INDEX('Annual Inflation'!$AM$52:$AT$52, MATCH(YEAR(EOMONTH($A157,6)), 'Annual Inflation'!$AM$6:$AT$6, 0))/100) -> - | F157: =IF($A157<DATE(2018,7,1),"-",INDEX('Annual Inflation'!$AM$49:$AT$49, MATCH(YEAR(EOMONTH($A157,6)), 'Annual Inflation'!$AM$6:$AT$6, 0))/100) -> - | G157: 95.4 | H157: 240.8 | I157: 240.8
A158: 2012-04-01 | B158: 2013 | C158: 95.9 | D158: 242.5 | E158: =IF($A158<DATE(2018,7,1),"-",INDEX('Annual Inflation'!$AM$52:$AT$52, MATCH(YEAR(EOMONTH($A158,6)), 'Annual Inflation'!$AM$6:$AT$6, 0))/100) -> - | F158: =IF($A158<DATE(2018,7,1),"-",INDEX('Annual Inflation'!$AM$49:$AT$49, MATCH(YEAR(EOMONTH($A158,6)), 'Annual Inflation'!$AM$6:$AT$6, 0))/100) -> - | G158: 95.9 | H158: 242.5 | I158: 242.5
A159: 2012-05-01 | B159: 2013 | C159: 95.9 | D159: 242.4 | E159: =IF($A159<DATE(2018,7,1),"-",INDEX('Annual Inflation'!$AM$52:$AT$52, MATCH(YEAR(EOMONTH($A159,6)), 'Annual Inflation'!$AM$6:$AT$6, 0))/100) -> - | F159: =IF($A159<DATE(2018,7,1),"-",INDEX('Annual Inflation'!$AM$49:$AT$49, MATCH(YEAR(EOMONTH($A159,6)), 'Annual Inflation'!$AM$6:$AT$6, 0))/100) -> - | G159: 95.9 | H159: 242.4 | I159: 242.4
A160: 2012-06-01 | B160: 2013 | C160: 95.6 | D160: 241.8 | E160: =IF($A160<DATE(2018,7,1),"-",INDEX('Annual Inflation'!$AM$52:$AT$52, MATCH(YEAR(EOMONTH($A160,6)), 'Annual Inflation'!$AM$6:$AT$6, 0))/100) -> - | F160: =IF($A160<DATE(2018,7,1),"-",INDEX('Annual Inflation'!$AM$49:$AT$49, MATCH(YEAR(EOMONTH($A160,6)), 'Annual Inflation'!$AM$6:$AT$6, 0))/100) -> - | G160: 95.6 | H160: 241.8 | I160: 241.8
A161: 2012-07-01 | B161: 2013 | C161: 95.7 | D161: 242.1 | E161: =IF($A161<DATE(2018,7,1),"-",INDEX('Annual Inflation'!$AM$52:$AT$52, MATCH(YEAR(EOMONTH($A161,6)), 'Annual Inflation'!$AM$6:$AT$6, 0))/100) -> - | F161: =IF($A161<DATE(2018,7,1),"-",INDEX('Annual Inflation'!$AM$49:$AT$49, MATCH(YEAR(EOMONTH($A161,6)), 'Annual Inflation'!$AM$6:$AT$6, 0))/100) -> - | G161: 95.7 | H161: 242.1 | I161: 242.1
A162: 2012-08-01 | B162: 2013 | C162: 96.1 | D162: 243 | E162: =IF($A162<DATE(2018,7,1),"-",INDEX('Annual Inflation'!$AM$52:$AT$52, MATCH(YEAR(EOMONTH($A162,6)), 'Annual Inflation'!$AM$6:$AT$6, 0))/100) -> - | F162: =IF($A162<DATE(2018,7,1),"-",INDEX('Annual Inflation'!$AM$49:$AT$49, MATCH(YEAR(EOMONTH($A162,6)), 'Annual Inflation'!$AM$6:$AT$6, 0))/100) -> - | G162: 96.1 | H162: 243 | I162: 243
A163: 2012-09-01 | B163: 2013 | C163: 96.4 | D163: 244.2 | E163: =IF($A163<DATE(2018,7,1),"-",INDEX('Annual Inflation'!$AM$52:$AT$52, MATCH(YEAR(EOMONTH($A163,6)), 'Annual Inflation'!$AM$6:$AT$6, 0))/100) -> - | F163: =IF($A163<DATE(2018,7,1),"-",INDEX('Annual Inflation'!$AM$49:$AT$49, MATCH(YEAR(EOMONTH($A163,6)), 'Annual Inflation'!$AM$6:$AT$6, 0))/100) -> - | G163: 96.4 | H163: 244.2 | I163: 244.2
A164: 2012-10-01 | B164: 2013 | C164: 96.8 | D164: 245.6 | E164: =IF($A164<DATE(2018,7,1),"-",INDEX('Annual Inflation'!$AM$52:$AT$52, MATCH(YEAR(EOMONTH($A164,6)), 'Annual Inflation'!$AM$6:$AT$6, 0))/100) -> - | F164: =IF($A164<DATE(2018,7,1),"-",INDEX('Annual Inflation'!$AM$49:$AT$49, MATCH(YEAR(EOMONTH($A164,6)), 'Annual Inflation'!$AM$6:$AT$6, 0))/100) -> - | G164: 96.8 | H164: 245.6 | I164: 245.6
A165: 2012-11-01 | B165: 2013 | C165: 97 | D165: 245.6 | E165: =IF($A165<DATE(2018,7,1),"-",INDEX('Annual Inflation'!$AM$52:$AT$52, MATCH(YEAR(EOMONTH($A165,6)), 'Annual Inflation'!$AM$6:$AT$6, 0))/100) -> - | F165: =IF($A165<DATE(2018,7,1),"-",INDEX('Annual Inflation'!$AM$49:$AT$49, MATCH(YEAR(EOMONTH($A165,6)), 'Annual Inflation'!$AM$6:$AT$6, 0))/100) -> - | G165: 97 | H165: 245.6 | I165: 245.6
A166: 2012-12-01 | B166: 2013 | C166: 97.3 | D166: 246.8 | E166: =IF($A166<DATE(2018,7,1),"-",INDEX('Annual Inflation'!$AM$52:$AT$52, MATCH(YEAR(EOMONTH($A166,6)), 'Annual Inflation'!$AM$6:$AT$6, 0))/100) -> - | F166: =IF($A166<DATE(2018,7,1),"-",INDEX('Annual Inflation'!$AM$49:$AT$49, MATCH(YEAR(EOMONTH($A166,6)), 'Annual Inflation'!$AM$6:$AT$6, 0))/100) -> - | G166: 97.3 | H166: 246.8 | I166: 246.8
A167: 2013-01-01 | B167: 2013 | C167: 97 | D167: 245.8 | E167: =IF($A167<DATE(2018,7,1),"-",INDEX('Annual Inflation'!$AM$52:$AT$52, MATCH(YEAR(EOMONTH($A167,6)), 'Annual Inflation'!$AM$6:$AT$6, 0))/100) -> - | F167: =IF($A167<DATE(2018,7,1),"-",INDEX('Annual Inflation'!$AM$49:$AT$49, MATCH(YEAR(EOMONTH($A167,6)), 'Annual Inflation'!$AM$6:$AT$6, 0))/100) -> - | G167: 97 | H167: 245.8 | I167: 245.8
A168: 2013-02-01 | B168: 2013 | C168: 97.5 | D168: 247.6 | E168: =IF($A168<DATE(2018,7,1),"-",INDEX('Annual Inflation'!$AM$52:$AT$52, MATCH(YEAR(EOMONTH($A168,6)), 'Annual Inflation'!$AM$6:$AT$6, 0))/100) -> - | F168: =IF($A168<DATE(2018,7,1),"-",INDEX('Annual Inflation'!$AM$49:$AT$49, MATCH(YEAR(EOMONTH($A168,6)), 'Annual Inflation'!$AM$6:$AT$6, 0))/100) -> - | G168: 97.5 | H168: 247.6 | I168: 247.6
A169: 2013-03-01 | B169: 2013 | C169: 97.8 | D169: 248.7 | E169: =IF($A169<DATE(2018,7,1),"-",INDEX('Annual Inflation'!$AM$52:$AT$52, MATCH(YEAR(EOMONTH($A169,6)), 'Annual Inflation'!$AM$6:$AT$6, 0))/100) -> - | F169: =IF($A169<DATE(2018,7,1),"-",INDEX('Annual Inflation'!$AM$49:$AT$49, MATCH(YEAR(EOMONTH($A169,6)), 'Annual Inflation'!$AM$6:$AT$6, 0))/100) -> - | G169: 97.8 | H169: 248.7 | I169: 248.7
A170: 2013-04-01 | B170: 2014 | C170: 98 | D170: 249.5 | E170: =IF($A170<DATE(2018,7,1),"-",INDEX('Annual Inflation'!$AM$52:$AT$52, MATCH(YEAR(EOMONTH($A170,6)), 'Annual Inflation'!$AM$6:$AT$6, 0))/100) -> - | F170: =IF($A170<DATE(2018,7,1),"-",INDEX('Annual Inflation'!$AM$49:$AT$49, MATCH(YEAR(EOMONTH($A170,6)), 'Annual Inflation'!$AM$6:$AT$6, 0))/100) -> - | G170: 98 | H170: 249.5 | I170: 249.5
A171: 2013-05-01 | B171: 2014 | C171: 98.2 | D171: 250 | E171: =IF($A171<DATE(2018,7,1),"-",INDEX('Annual Inflation'!$AM$52:$AT$52, MATCH(YEAR(EOMONTH($A171,6)), 'Annual Inflation'!$AM$6:$AT$6, 0))/100) -> - | F171: =IF($A171<DATE(2018,7,1),"-",INDEX('Annual Inflation'!$AM$49:$AT$49, MATCH(YEAR(EOMONTH($A171,6)), 'Annual Inflation'!$AM$6:$AT$6, 0))/100) -> - | G171: 98.2 | H171: 250 | I171: 250
A172: 2013-06-01 | B172: 2014 | C172: 98 | D172: 249.7 | E172: =IF($A172<DATE(2018,7,1),"-",INDEX('Annual Inflation'!$AM$52:$AT$52, MATCH(YEAR(EOMONTH($A172,6)), 'Annual Inflation'!$AM$6:$AT$6, 0))/100) -> - | F172: =IF($A172<DATE(2018,7,1),"-",INDEX('Annual Inflation'!$AM$49:$AT$49, MATCH(YEAR(EOMONTH($A172,6)), 'Annual Inflation'!$AM$6:$AT$6, 0))/100) -> - | G172: 98 | H172: 249.7 | I172: 249.7
A173: 2013-07-01 | B173: 2014 | C173: 98 | D173: 249.7 | E173: =IF($A173<DATE(2018,7,1),"-",INDEX('Annual Inflation'!$AM$52:$AT$52, MATCH(YEAR(EOMONTH($A173,6)), 'Annual Inflation'!$AM$6:$AT$6, 0))/100) -> - | F173: =IF($A173<DATE(2018,7,1),"-",INDEX('Annual Inflation'!$AM$49:$AT$49, MATCH(YEAR(EOMONTH($A173,6)), 'Annual Inflation'!$AM$6:$AT$6, 0))/100) -> - | G173: 98 | H173: 249.7 | I173: 249.7
A174: 2013-08-01 | B174: 2014 | C174: 98.4 | D174: 251 | E174: =IF($A174<DATE(2018,7,1),"-",INDEX('Annual Inflation'!$AM$52:$AT$52, MATCH(YEAR(EOMONTH($A174,6)), 'Annual Inflation'!$AM$6:$AT$6, 0))/100) -> - | F174: =IF($A174<DATE(2018,7,1),"-",INDEX('Annual Inflation'!$AM$49:$AT$49, MATCH(YEAR(EOMONTH($A174,6)), 'Annual Inflation'!$AM$6:$AT$6, 0))/100) -> - | G174: 98.4 | H174: 251 | I174: 251
A175: 2013-09-01 | B175: 2014 | C175: 98.7 | D175: 251.9 | E175: =IF($A175<DATE(2018,7,1),"-",INDEX('Annual Inflation'!$AM$52:$AT$52, MATCH(YEAR(EOMONTH($A175,6)), 'Annual Inflation'!$AM$6:$AT$6, 0))/100) -> - | F175: =IF($A175<DATE(2018,7,1),"-",INDEX('Annual Inflation'!$AM$49:$AT$49, MATCH(YEAR(EOMONTH($A175,6)), 'Annual Inflation'!$AM$6:$AT$6, 0))/100) -> - | G175: 98.7 | H175: 251.9 | I175: 251.9
A176: 2013-10-01 | B176: 2014 | C176: 98.8 | D176: 251.9 | E176: =IF($A176<DATE(2018,7,1),"-",INDEX('Annual Inflation'!$AM$52:$AT$52, MATCH(YEAR(EOMONTH($A176,6)), 'Annual Inflation'!$AM$6:$AT$6, 0))/100) -> - | F176: =IF($A176<DATE(2018,7,1),"-",INDEX('Annual Inflation'!$AM$49:$AT$49, MATCH(YEAR(EOMONTH($A176,6)), 'Annual Inflation'!$AM$6:$AT$6, 0))/100) -> - | G176: 98.8 | H176: 251.9 | I176: 251.9
A177: 2013-11-01 | B177: 2014 | C177: 98.8 | D177: 252.1 | E177: =IF($A177<DATE(2018,7,1),"-",INDEX('Annual Inflation'!$AM$52:$AT$52, MATCH(YEAR(EOMONTH($A177,6)), 'Annual Inflation'!$AM$6:$AT$6, 0))/100) -> - | F177: =IF($A177<DATE(2018,7,1),"-",INDEX('Annual Inflation'!$AM$49:$AT$49, MATCH(YEAR(EOMONTH($A177,6)), 'Annual Inflation'!$AM$6:$AT$6, 0))/100) -> - | G177: 98.8 | H177: 252.1 | I177: 252.1
A178: 2013-12-01 | B178: 2014 | C178: 99.2 | D178: 253.4 | E178: =IF($A178<DATE(2018,7,1),"-",INDEX('Annual Inflation'!$AM$52:$AT$52, MATCH(YEAR(EOMONTH($A178,6)), 'Annual Inflation'!$AM$6:$AT$6, 0))/100) -> - | F178: =IF($A178<DATE(2018,7,1),"-",INDEX('Annual Inflation'!$AM$49:$AT$49, MATCH(YEAR(EOMONTH($A178,6)), 'Annual Inflation'!$AM$6:$AT$6, 0))/100) -> - | G178: 99.2 | H178: 253.4 | I178: 253.4
A179: 2014-01-01 | B179: 2014 | C179: 98.7 | D179: 252.6 | E179: =IF($A179<DATE(2018,7,1),"-",INDEX('Annual Inflation'!$AM$52:$AT$52, MATCH(YEAR(EOMONTH($A179,6)), 'Annual Inflation'!$AM$6:$AT$6, 0))/100) -> - | F179: =IF($A179<DATE(2018,7,1),"-",INDEX('Annual Inflation'!$AM$49:$AT$49, MATCH(YEAR(EOMONTH($A179,6)), 'Annual Inflation'!$AM$6:$AT$6, 0))/100) -> - | G179: 98.7 | H179: 252.6 | I179: 252.6
A180: 2014-02-01 | B180: 2014 | C180: 99.1 | D180: 254.2 | E180: =IF($A180<DATE(2018,7,1),"-",INDEX('Annual Inflation'!$AM$52:$AT$52, MATCH(YEAR(EOMONTH($A180,6)), 'Annual Inflation'!$AM$6:$AT$6, 0))/100) -> - | F180: =IF($A180<DATE(2018,7,1),"-",INDEX('Annual Inflation'!$AM$49:$AT$49, MATCH(YEAR(EOMONTH($A180,6)), 'Annual Inflation'!$AM$6:$AT$6, 0))/100) -> - | G180: 99.1 | H180: 254.2 | I180: 254.2
A181: 2014-03-01 | B181: 2014 | C181: 99.3 | D181: 254.8 | E181: =IF($A181<DATE(2018,7,1),"-",INDEX('Annual Inflation'!$AM$52:$AT$52, MATCH(YEAR(EOMONTH($A181,6)), 'Annual Inflation'!$AM$6:$AT$6, 0))/100) -> - | F181: =IF($A181<DATE(2018,7,1),"-",INDEX('Annual Inflation'!$AM$49:$AT$49, MATCH(YEAR(EOMONTH($A181,6)), 'Annual Inflation'!$AM$6:$AT$6, 0))/100) -> - | G181: 99.3 | H181: 254.8 | I181: 254.8
A182: 2014-04-01 | B182: 2015 | C182: 99.6 | D182: 255.7 | E182: =IF($A182<DATE(2018,7,1),"-",INDEX('Annual Inflation'!$AM$52:$AT$52, MATCH(YEAR(EOMONTH($A182,6)), 'Annual Inflation'!$AM$6:$AT$6, 0))/100) -> - | F182: =IF($A182<DATE(2018,7,1),"-",INDEX('Annual Inflation'!$AM$49:$AT$49, MATCH(YEAR(EOMONTH($A182,6)), 'Annual Inflation'!$AM$6:$AT$6, 0))/100) -> - | G182: 99.6 | H182: 255.7 | I182: 255.7
A183: 2014-05-01 | B183: 2015 | C183: 99.6 | D183: 255.9 | E183: =IF($A183<DATE(2018,7,1),"-",INDEX('Annual Inflation'!$AM$52:$AT$52, MATCH(YEAR(EOMONTH($A183,6)), 'Annual Inflation'!$AM$6:$AT$6, 0))/100) -> - | F183: =IF($A183<DATE(2018,7,1),"-",INDEX('Annual Inflation'!$AM$49:$AT$49, MATCH(YEAR(EOMONTH($A183,6)), 'Annual Inflation'!$AM$6:$AT$6, 0))/100) -> - | G183: 99.6 | H183: 255.9 | I183: 255.9
A184: 2014-06-01 | B184: 2015 | C184: 99.8 | D184: 256.3 | E184: =IF($A184<DATE(2018,7,1),"-",INDEX('Annual Inflation'!$AM$52:$AT$52, MATCH(YEAR(EOMONTH($A184,6)), 'Annual Inflation'!$AM$6:$AT$6, 0))/100) -> - | F184: =IF($A184<DATE(2018,7,1),"-",INDEX('Annual Inflation'!$AM$49:$AT$49, MATCH(YEAR(EOMONTH($A184,6)), 'Annual Inflation'!$AM$6:$AT$6, 0))/100) -> - | G184: 99.8 | H184: 256.3 | I184: 256.3
A185: 2014-07-01 | B185: 2015 | C185: 99.6 | D185: 256 | E185: =IF($A185<DATE(2018,7,1),"-",INDEX('Annual Inflation'!$AM$52:$AT$52, MATCH(YEAR(EOMONTH($A185,6)), 'Annual Inflation'!$AM$6:$AT$6, 0))/100) -> - | F185: =IF($A185<DATE(2018,7,1),"-",INDEX('Annual Inflation'!$AM$49:$AT$49, MATCH(YEAR(EOMONTH($A185,6)), 'Annual Inflation'!$AM$6:$AT$6, 0))/100) -> - | G185: 99.6 | H185: 256 | I185: 256
A186: 2014-08-01 | B186: 2015 | C186: 99.9 | D186: 257 | E186: =IF($A186<DATE(2018,7,1),"-",INDEX('Annual Inflation'!$AM$52:$AT$52, MATCH(YEAR(EOMONTH($A186,6)), 'Annual Inflation'!$AM$6:$AT$6, 0))/100) -> - | F186: =IF($A186<DATE(2018,7,1),"-",INDEX('Annual Inflation'!$AM$49:$AT$49, MATCH(YEAR(EOMONTH($A186,6)), 'Annual Inflation'!$AM$6:$AT$6, 0))/100) -> - | G186: 99.9 | H186: 257 | I186: 257
A187: 2014-09-01 | B187: 2015 | C187: 100 | D187: 257.6 | E187: =IF($A187<DATE(2018,7,1),"-",INDEX('Annual Inflation'!$AM$52:$AT$52, MATCH(YEAR(EOMONTH($A187,6)), 'Annual Inflation'!$AM$6:$AT$6, 0))/100) -> - | F187: =IF($A187<DATE(2018,7,1),"-",INDEX('Annual Inflation'!$AM$49:$AT$49, MATCH(YEAR(EOMONTH($A187,6)), 'Annual Inflation'!$AM$6:$AT$6, 0))/100) -> - | G187: 100 | H187: 257.6 | I187: 257.6
A188: 2014-10-01 | B188: 2015 | C188: 100.1 | D188: 257.7 | E188: =IF($A188<DATE(2018,7,1),"-",INDEX('Annual Inflation'!$AM$52:$AT$52, MATCH(YEAR(EOMONTH($A188,6)), 'Annual Inflation'!$AM$6:$AT$6, 0))/100) -> - | F188: =IF($A188<DATE(2018,7,1),"-",INDEX('Annual Inflation'!$AM$49:$AT$49, MATCH(YEAR(EOMONTH($A188,6)), 'Annual Inflation'!$AM$6:$AT$6, 0))/100) -> - | G188: 100.1 | H188: 257.7 | I188: 257.7
A189: 2014-11-01 | B189: 2015 | C189: 99.9 | D189: 257.1 | E189: =IF($A189<DATE(2018,7,1),"-",INDEX('Annual Inflation'!$AM$52:$AT$52, MATCH(YEAR(EOMONTH($A189,6)), 'Annual Inflation'!$AM$6:$AT$6, 0))/100) -> - | F189: =IF($A189<DATE(2018,7,1),"-",INDEX('Annual Inflation'!$AM$49:$AT$49, MATCH(YEAR(EOMONTH($A189,6)), 'Annual Inflation'!$AM$6:$AT$6, 0))/100) -> - | G189: 99.9 | H189: 257.1 | I189: 257.1
A190: 2014-12-01 | B190: 2015 | C190: 99.9 | D190: 257.5 | E190: =IF($A190<DATE(2018,7,1),"-",INDEX('Annual Inflation'!$AM$52:$AT$52, MATCH(YEAR(EOMONTH($A190,6)), 'Annual Inflation'!$AM$6:$AT$6, 0))/100) -> - | F190: =IF($A190<DATE(2018,7,1),"-",INDEX('Annual Inflation'!$AM$49:$AT$49, MATCH(YEAR(EOMONTH($A190,6)), 'Annual Inflation'!$AM$6:$AT$6, 0))/100) -> - | G190: 99.9 | H190: 257.5 | I190: 257.5
A191: 2015-01-01 | B191: 2015 | C191: 99.2 | D191: 255.4 | E191: =IF($A191<DATE(2018,7,1),"-",INDEX('Annual Inflation'!$AM$52:$AT$52, MATCH(YEAR(EOMONTH($A191,6)), 'Annual Inflation'!$AM$6:$AT$6, 0))/100) -> - | F191: =IF($A191<DATE(2018,7,1),"-",INDEX('Annual Inflation'!$AM$49:$AT$49, MATCH(YEAR(EOMONTH($A191,6)), 'Annual Inflation'!$AM$6:$AT$6, 0))/100) -> - | G191: 99.2 | H191: 255.4 | I191: 255.4
A192: 2015-02-01 | B192: 2015 | C192: 99.5 | D192: 256.7 | E192: =IF($A192<DATE(2018,7,1),"-",INDEX('Annual Inflation'!$AM$52:$AT$52, MATCH(YEAR(EOMONTH($A192,6)), 'Annual Inflation'!$AM$6:$AT$6, 0))/100) -> - | F192: =IF($A192<DATE(2018,7,1),"-",INDEX('Annual Inflation'!$AM$49:$AT$49, MATCH(YEAR(EOMONTH($A192,6)), 'Annual Inflation'!$AM$6:$AT$6, 0))/100) -> - | G192: 99.5 | H192: 256.7 | I192: 256.7
A193: 2015-03-01 | B193: 2015 | C193: 99.6 | D193: 257.1 | E193: =IF($A193<DATE(2018,7,1),"-",INDEX('Annual Inflation'!$AM$52:$AT$52, MATCH(YEAR(EOMONTH($A193,6)), 'Annual Inflation'!$AM$6:$AT$6, 0))/100) -> - | F193: =IF($A193<DATE(2018,7,1),"-",INDEX('Annual Inflation'!$AM$49:$AT$49, MATCH(YEAR(EOMONTH($A193,6)), 'Annual Inflation'!$AM$6:$AT$6, 0))/100) -> - | G193: 99.6 | H193: 257.1 | I193: 257.1
A194: 2015-04-01 | B194: 2016 | C194: 99.9 | D194: 258 | E194: =IF($A194<DATE(2018,7,1),"-",INDEX('Annual Inflation'!$AM$52:$AT$52, MATCH(YEAR(EOMONTH($A194,6)), 'Annual Inflation'!$AM$6:$AT$6, 0))/100) -> - | F194: =IF($A194<DATE(2018,7,1),"-",INDEX('Annual Inflation'!$AM$49:$AT$49, MATCH(YEAR(EOMONTH($A194,6)), 'Annual Inflation'!$AM$6:$AT$6, 0))/100) -> - | G194: 99.9 | H194: 258 | I194: 258
A195: 2015-05-01 | B195: =IF(MONTH(A195)>=4,YEAR(A195)+1,YEAR(A195)) -> 2016 | C195: 100.1 | D195: 258.5 | E195: =IF($A195<DATE(2018,7,1),"-",INDEX('Annual Inflation'!$AM$52:$AT$52, MATCH(YEAR(EOMONTH($A195,6)), 'Annual Inflation'!$AM$6:$AT$6, 0))/100) -> - | F195: =IF($A195<DATE(2018,7,1),"-",INDEX('Annual Inflation'!$AM$49:$AT$49, MATCH(YEAR(EOMONTH($A195,6)), 'Annual Inflation'!$AM$6:$AT$6, 0))/100) -> - | G195: =IF(ISBLANK(C195),G194*((1+E195)^(1/12)),C195) -> 100.1 | H195: =IF(ISBLANK(D195),H194*((1+F195)^(1/12)),D195) -> 258.5 | I195: =IF($A195<DATE(2021,4,1),H195,IF(A195=DATE(2021,4,1),I194*((0.5*G195/G194)+(0.5*H195/H194)),I194*(G195/G194))) -> 258.5
A196: 2015-06-01 | B196: 2016 | C196: 100.1 | D196: 258.9 | E196: =IF($A196<DATE(2018,7,1),"-",INDEX('Annual Inflation'!$AM$52:$AT$52, MATCH(YEAR(EOMONTH($A196,6)), 'Annual Inflation'!$AM$6:$AT$6, 0))/100) -> - | F196: =IF($A196<DATE(2018,7,1),"-",INDEX('Annual Inflation'!$AM$49:$AT$49, MATCH(YEAR(EOMONTH($A196,6)), 'Annual Inflation'!$AM$6:$AT$6, 0))/100) -> - | G196: 100.1 | H196: 258.9 | I196: 258.9
A197: 2015-07-01 | B197: 2016 | C197: 100 | D197: 258.6 | E197: =IF($A197<DATE(2018,7,1),"-",INDEX('Annual Inflation'!$AM$52:$AT$52, MATCH(YEAR(EOMONTH($A197,6)), 'Annual Inflation'!$AM$6:$AT$6, 0))/100) -> - | F197: =IF($A197<DATE(2018,7,1),"-",INDEX('Annual Inflation'!$AM$49:$AT$49, MATCH(YEAR(EOMONTH($A197,6)), 'Annual Inflation'!$AM$6:$AT$6, 0))/100) -> - | G197: 100 | H197: 258.6 | I197: 258.6
A198: 2015-08-01 | B198: 2016 | C198: 100.3 | D198: 259.8 | E198: =IF($A198<DATE(2018,7,1),"-",INDEX('Annual Inflation'!$AM$52:$AT$52, MATCH(YEAR(EOMONTH($A198,6)), 'Annual Inflation'!$AM$6:$AT$6, 0))/100) -> - | F198: =IF($A198<DATE(2018,7,1),"-",INDEX('Annual Inflation'!$AM$49:$AT$49, MATCH(YEAR(EOMONTH($A198,6)), 'Annual Inflation'!$AM$6:$AT$6, 0))/100) -> - | G198: 100.3 | H198: 259.8 | I198: 259.8
A199: 2015-09-01 | B199: 2016 | C199: 100.2 | D199: 259.6 | E199: =IF($A199<DATE(2018,7,1),"-",INDEX('Annual Inflation'!$AM$52:$AT$52, MATCH(YEAR(EOMONTH($A199,6)), 'Annual Inflation'!$AM$6:$AT$6, 0))/100) -> - | F199: =IF($A199<DATE(2018,7,1),"-",INDEX('Annual Inflation'!$AM$49:$AT$49, MATCH(YEAR(EOMONTH($A199,6)), 'Annual Inflation'!$AM$6:$AT$6, 0))/100) -> - | G199: 100.2 | H199: 259.6 | I199: 259.6
A200: 2015-10-01 | B200: 2016 | C200: 100.3 | D200: 259.5 | E200: =IF($A200<DATE(2018,7,1),"-",INDEX('Annual Inflation'!$AM$52:$AT$52, MATCH(YEAR(EOMONTH($A200,6)), 'Annual Inflation'!$AM$6:$AT$6, 0))/100) -> - | F200: =IF($A200<DATE(2018,7,1),"-",INDEX('Annual Inflation'!$AM$49:$AT$49, MATCH(YEAR(EOMONTH($A200,6)), 'Annual Inflation'!$AM$6:$AT$6, 0))/100) -> - | G200: 100.3 | H200: 259.5 | I200: 259.5
... 125 more rows
